Workbook

Sheet Contents
F2: =Workbook.Title -> Cost Recovery
A4: Information
A6: Title | B6: Cost Recovery
A7: Objective | B7: Estimates the additional charge on MPF/GEA rentals from the deployment of BT's proposed network expansion
A8: Version | B8: Version 1.0
A9: Status | B9: Approved for release
A11: Confidentiality status | B11: Non confidential
B13: FALSE
A15: Contents
A17: Sheet | B17: Description
A18: Contents | B18: Presents the workbook structure and the terms and conditions of this model
A19: Style Guideline | B19: Sets out style guidelines of this model
A20: Control | B20: Sets out the key parameters of the model
A22: Actual model sheets
A23: Input_Lists | B23: Element and Service name lists, as well as years.
A24: Linked_Inputs | B24: Inputs coming from cost module, relating to costs and volumes.
A25: Other_Inputs | B25: Inputs relating to inflation, price/cost trends and element routing.
A26: CCA | B26: Calculates the total CCA costs for the proposed network expansion
A27: Adjustments | B27: Calculates adjustments to account for future network build and higher unit costs in remote areas
A28: Adjusted CCA | B28: Applies adjustements to total CCA costs
A29: Additional charge | B29: Calculates the additional charge
A30: Scenarios | B30: Sets out the scenarios and sensitivities tested
A31: Charts | B31: Shows sensitivity charts
A34: Terms and conditions
A36: The terms and conditions on which OFCOM is making available the model are set out below.
A37: The NGA Cost Model provided has been developed to help understand the cost of fibre based access services on a hypothetical FTTC network.
A38: All right, title and interest in the provided model (the ‘Model’) constructed in Excel to understand the cost of fibre based access services on a hypothetical FTTC network are owned by OFCOM. Such title and interest is protected by United Kingdom intellectual property laws and international treaty provisions. While you may freely use the Model for the purposes for which it is provided, as set out in the accompanying model documentation, it is not to be modified in any way or used for commercial gain or otherwise without the prior written permission of OFCOM.
A39: No representation or warranty is given as to the accuracy, completeness or correctness of the provided Model and it is provided 'as is'. It is provided without any representation or endorsement made and without warranty of any kind, whether express or implied, including but not limited to the implied warranties of satisfactory quality, fitness for a particular purpose, non-infringement, compatibility, security and accuracy.
A40: OFCOM does not accept any responsibility for any loss, disruption or damage to your data or your computer system which may occur whilst using the Model or material derived from the Model. OFCOM does not warrant that the functions contained in the Model will be uninterrupted or error free. Also, OFCOM does not warrant that defects will be corrected, or that the Model provided is free of viruses.
A41: In no event will OFCOM be liable for any loss or damage including, without limitation, indirect or consequential loss or damage, or any loss or damages whatsoever arising from use or loss of use of, data or profits arising out of or in connection with the use or otherwise of the provided Model. By using this Model, you agree to the above.

Sheet Quality Assurance (hidden)
D2: Quality Assurance
A4: Workbook QA
A6: Verified by | B6: Enter name of reviewer
A7: Date | B7: Enter date review completed
A8: Version | B8: Enter version of workbook checked
A9: Status | B9: QA completed but issues to resolve
A11: Type of QA | B11: Self-check by author | C11: Yes
B12: Internal QA - informal | C12: Yes
B13: Internal QA - formal | C13: Yes
B14: External QA | C14: Yes
A16: Objective of QA | B16: Check input data | C16: Yes
B17: Check calculations | C17: Yes
B18: Check methodology | C18: Yes
B19: Check implementation | C19: Yes
A21: QA results delivery format | B21: Report | C21: Yes
B22: Presentation | C22: Yes
B23: Notes to spreadsheet | C23: Yes
A25: QA notes
A27: Sheet | B27: Issue | C27: Details | D27: Status (issue resolved?)

Sheet Style Guidelines
H2: Style Guidelines
A5: Styles
B8: Input | C8: 100 | E8: An input to the model that it is expected the user will change (change at will)
B10: Output | C10: 100 | E10: A key result from this part of the model (in particular one that will be used elsewhere in the model)
B12: Highlight | C12: 100 | E12: A cell that is highlighted for uncertainty
B14: Note or Source | C14: Note | E14: A note (NB smaller than standard font size)
B16: Un-format | E16: Going back to default Excel formatting

Sheet Control
A1: Control
B3: Scenario | D3: =[3]Control!$H$20 -> B1 | E3: UBC_scenario
B4: Techset | D4: =[3]Control!$H$25 -> 9 | E4: Techset_scenario
B6: Cost recovery
B7: Number of broadband lines | D7: MED | E7: Broadband_scenario
B9: Top-down adjustments
B10: % of households with at least 24Mb/s by 2021/22 | D10: 0.97 | E10: BDUK_target

Sheet Inputs-->

Sheet Input_Lists
A1: Input List
B5: CATEGORY | D5: ITEM | E5: UNITS
B6: General
B8: Years | G8: =[3]Input_Lists!$G$9:$R$9 -> 1 | H8: 2 | I8: 3 | J8: 4 | K8: 5 | L8: 6 | M8: 7 | N8: 8 | O8: 9 | P8: 10 | Q8: 11 | R8: 12 | S8: years_number
D9: Calender Years | G9: =[3]Input_Lists!$G$10:$R$10 -> 2017 | H9: 2018 | I9: 2019 | J9: 2020 | K9: 2021 | L9: 2022 | M9: 2023 | N9: 2024 | O9: 2025 | P9: 2026 | Q9: 2027 | R9: 2028 | S9: natural_years
D10: Financial year | F10: FY | G10: =[3]Input_Lists!$G$11:$R$11 -> 2017/18 | H10: 2018/19 | I10: 2019/20 | J10: 2020/21 | K10: 2021/22 | L10: 2022/23 | M10: 2023/24 | N10: 2024/25 | O10: 2025/26 | P10: 2026/27 | Q10: 2027/28 | R10: 2028/29 | S10: financial_years
D12: 1000000 | E12: million
B15: Network
B17: Network Elements
D18: Element | E18: Element.Locations | F18: Element.Names | G18: Element.Units
C19: 1 | D19: =[3]Input_Lists!$D$34:$D$133 -> Re-shell | E19: =[3]Input_Lists!$E$34:$E$133 -> FTTC.PCP | F19: =[3]Input_Lists!$F$34:$F$133 -> FTTC.PCP_Re-shell | G19: =[3]Input_Lists!$H$34:$H$133 -> Unit
C20: 2 | D20: Connector | E20: FTTC.PCP | F20: FTTC.PCP_Connector | G20: Unit
C21: 3 | D21: Extra faults at PCP/Copper | E21: FTTC.PCP | F21: FTTC.PCP_Extra faults at PCP/Copper | G21: Unit
C22: 4 | D22: Duct to FTTC Cab | E22: FTTC.PCP | F22: FTTC.PCP_Duct to FTTC Cab | G22: Unit
C23: 5 | D23: Copper to Cab Type1 | E23: FTTC.PCP | F23: FTTC.PCP_Copper to Cab Type1 | G23: Unit
C24: 6 | D24: Copper to Cab Type2 | E24: FTTC.PCP | F24: FTTC.PCP_Copper to Cab Type2 | G24: Unit
C25: 7 | D25: Unused | E25: 0 | F25: Unused | G25: -
C26: 8 | D26: Power Connection | E26: FTTC.CAB | F26: FTTC.CAB_Power Connection | G26: Unit
C27: 9 | D27: Civils (concrete Base) | E27: FTTC.CAB | F27: FTTC.CAB_Civils (concrete Base) | G27: Unit
C28: 10 | D28: Certification Managed Service | E28: FTTC.CAB | F28: FTTC.CAB_Certification Managed Service | G28: Unit
C29: 11 | D29: Unused | E29: 0 | F29: Unused | G29: -
C30: 12 | D30: Type1 DSLAM Cabinet | E30: FTTC.CAB | F30: FTTC.CAB_Type1 DSLAM Cabinet | G30: Unit
C31: 13 | D31: Type1 DSLAM Access Card | E31: FTTC.CAB | F31: FTTC.CAB_Type1 DSLAM Access Card | G31: Unit
C32: 14 | D32: Type1 DSLAM GE port | E32: FTTC.CAB | F32: FTTC.CAB_Type1 DSLAM GE port | G32: Unit
C33: 15 | D33: Type2 DSLAM Cabinet | E33: FTTC.CAB | F33: FTTC.CAB_Type2 DSLAM Cabinet | G33: Unit
C34: 16 | D34: Type2 DSLAM Access Card | E34: FTTC.CAB | F34: FTTC.CAB_Type2 DSLAM Access Card | G34: Unit
C35: 17 | D35: Type2 DSLAM GE port | E35: FTTC.CAB | F35: FTTC.CAB_Type2 DSLAM GE port | G35: Unit
C36: 18 | D36: ADSL migration costs | E36: LR-VDSL | F36: LR-VDSL_ADSL migration costs | G36: Subs
C37: 19 | D37: ADSL migration vols | E37: LR-VDSL | F37: LR-VDSL_ADSL migration vols | G37: Subs
C38: 20 | D38: Unused | E38: 0 | F38: Unused | G38: -
C39: 21 | D39: Fibre | E39: FTTC.Segment3 | F39: FTTC.Segment3_Fibre | G39: m
C40: 22 | D40: Fibre testing | E40: FTTC.Segment3 | F40: FTTC.Segment3_Fibre testing | G40: Unit
C41: 23 | D41: Duct and Pole | E41: FTTC.Segment3 | F41: FTTC.Segment3_Duct and Pole | G41: m
C42: 24 | D42: Track Joint | E42: FTTC.Segment3 | F42: FTTC.Segment3_Track Joint | G42: Unit
C43: 25 | D43: Aggregation Node | E43: FTTC.Segment3 | F43: FTTC.Segment3_Aggregation Node | G43: Unit
C44: 26 | D44: Unused | E44: 0 | F44: Unused | G44: -
C45: 27 | D45: Primary Splitter | E45: FTTP.Node | F45: FTTP.Node_Primary Splitter | G45: Unit
C46: 28 | D46: Primary Tray | E46: FTTP.Node | F46: FTTP.Node_Primary Tray | G46: Unit
C47: 29 | D47: Secondary Splitter | E47: FTTP.Node | F47: FTTP.Node_Secondary Splitter | G47: Unit
C48: 30 | D48: Secondary Tray | E48: FTTP.Node | F48: FTTP.Node_Secondary Tray | G48: Unit
C49: 31 | D49: GPON port | E49: FTTP.Node | F49: FTTP.Node_GPON port | G49: Unit
C50: 32 | D50: Unused | E50: 0 | F50: Unused | G50: -
C51: 33 | D51: Fibre | E51: FTTP.Segment3 | F51: FTTP.Segment3_Fibre | G51: m
C52: 34 | D52: Fibre testing | E52: FTTP.Segment3 | F52: FTTP.Segment3_Fibre testing | G52: Unit
C53: 35 | D53: Duct and Pole | E53: FTTP.Segment3 | F53: FTTP.Segment3_Duct and Pole | G53: m
C54: 36 | D54: Track Joint | E54: FTTP.Segment3 | F54: FTTP.Segment3_Track Joint | G54: Unit
C55: 37 | D55: Aggregation Node | E55: FTTP.Segment3 | F55: FTTP.Segment3_Aggregation Node | G55: Unit
C56: 38 | D56: Unused | E56: 0 | F56: Unused | G56: -
C57: 39 | D57: Fibre | E57: FTTP.Segment2 | F57: FTTP.Segment2_Fibre | G57: m
C58: 40 | D58: Fibre testing | E58: FTTP.Segment2 | F58: FTTP.Segment2_Fibre testing | G58: Unit
C59: 41 | D59: Duct and Pole | E59: FTTP.Segment2 | F59: FTTP.Segment2_Duct and Pole | G59: m
C60: 42 | D60: Fibre | E60: FTTP.Segment1 | F60: FTTP.Segment1_Fibre | G60: Unit
C61: 43 | D61: Unused | E61: 0 | F61: Unused | G61: -
C62: 44 | D62: Primary Splitter | E62: G.fast.Node | F62: G.fast.Node_Primary Splitter | G62: Unit
C63: 45 | D63: Primary Tray | E63: G.fast.Node | F63: G.fast.Node_Primary Tray | G63: Unit
C64: 46 | D64: DSLAM | E64: G.fast.Node | F64: G.fast.Node_DSLAM | G64: Unit
C65: 47 | D65: Hybrid Closure | E65: G.fast.Node | F65: G.fast.Node_Hybrid Closure | G65: Unit
C66: 48 | D66: Power_Box | E66: G.fast.Node | F66: G.fast.Node_Power_Box | G66: Unit
C67: 49 | D67: Copper_Intercept_Point | E67: G.fast.Node | F67: G.fast.Node_Copper_Intercept_Point | G67: Unit
C68: 50 | D68: GPON port | E68: G.fast.Node | F68: G.fast.Node_GPON port | G68: Unit
C69: 51 | D69: Unused | E69: 0 | F69: Unused | G69: -
C70: 52 | D70: Fibre | E70: G.fast.Segment3 | F70: G.fast.Segment3_Fibre | G70: m
C71: 53 | D71: Fibre testing | E71: G.fast.Segment3 | F71: G.fast.Segment3_Fibre testing | G71: Unit
C72: 54 | D72: Duct and Pole | E72: G.fast.Segment3 | F72: G.fast.Segment3_Duct and Pole | G72: m
C73: 55 | D73: Track Joint | E73: G.fast.Segment3 | F73: G.fast.Segment3_Track Joint | G73: Unit
C74: 56 | D74: Aggregation Node | E74: G.fast.Segment3 | F74: G.fast.Segment3_Aggregation Node | G74: Unit
C75: 57 | D75: Unused | E75: 0 | F75: Unused | G75: -
C76: 58 | D76: Fibre | E76: G.fast.Segment2 | F76: G.fast.Segment2_Fibre | G76: m
C77: 59 | D77: Fibre testing | E77: G.fast.Segment2 | F77: G.fast.Segment2_Fibre testing | G77: Unit
C78: 60 | D78: Duct and Pole | E78: G.fast.Segment2 | F78: G.fast.Segment2_Duct and Pole | G78: m
C79: 61 | D79: Unused | E79: 0 | F79: Unused | G79: Unit
C80: 62 | D80: Unused | E80: 0 | F80: Unused | G80: -
C81: 63 | D81: GE OLT Card | E81: EXCH | F81: EXCH_GE OLT Card | G81: Unit
C82: 64 | D82: GPON OLT Card | E82: EXCH | F82: EXCH_GPON OLT Card | G82: Unit
C83: 65 | D83: Unused | E83: 0 | F83: Unused | G83: -
C84: 66 | D84: OCR Subrack | E84: EXCH | F84: EXCH_OCR Subrack | G84: Unit
C85: 67 | D85: Unused | E85: 0 | F85: Unused | G85: -
C86: 68 | D86: Fibre | E86: Remote Parent | F86: Remote Parent_Fibre | G86: Unit
C87: 69 | D87: Fibre Testing | E87: Remote Parent | F87: Remote Parent_Fibre Testing | G87: Unit
C88: 70 | D88: Track Joint | E88: Remote Parent | F88: Remote Parent_Track Joint | G88: Unit
C89: 71 | D89: Unused | E89: 0 | F89: Unused | G89: Unit
C90: 72 | D90: Remote Parent Planning | E90: Other | F90: Other_Remote Parent Planning | G90: -
C91: 73 | D91: FTTC DSLAM planning | E91: Other | F91: Other_FTTC DSLAM planning | G91: -
C92: 74 | D92: FTTP planning | E92: Other | F92: Other_FTTP planning | G92: -
C93: 75 | D93: G.fast planning | E93: Other | F93: Other_G.fast planning | G93: Unit
C94: 76 | D94: Unused | E94: 0 | F94: Unused | G94: Unit
C95: 77 | D95: OSSBSS_Hardware | E95: Other | F95: Other_OSSBSS_Hardware | G95: Unit
C96: 78 | D96: OSSBSS_Software | E96: Other | F96: Other_OSSBSS_Software | G96: -
C97: 79 | D97: Unused | E97: 0 | F97: Unused | G97: -
C98: 80 | D98: Unused | E98: 0 | F98: Unused | G98: -
C99: 81 | D99: Unused | E99: 0 | F99: Unused | G99: -
C100: 82 | D100: Unused | E100: 0 | F100: Unused | G100: -
C101: 83 | D101: Software Configuration | E101: Other | F101: Other_Software Configuration | G101: -
C102: 84 | D102: FTTC Engineer PCP Jumpering | E102: Other | F102: Other_FTTC Engineer PCP Jumpering | G102: -
C103: 85 | D103: Gfast Engineer PCP Jumpering | E103: Other | F103: Other_Gfast Engineer PCP Jumpering | G103: -
C104: 86 | D104: FTTC Premise Visit | E104: Other | F104: Other_FTTC Premise Visit | G104: -
C105: 87 | D105: FTTP Premise Visit | E105: Other | F105: Other_FTTP Premise Visit | G105: -
C106: 88 | D106: Gfast Premise Visit | E106: Other | F106: Other_Gfast Premise Visit | G106: -
C107: 89 | D107: Unused | E107: 0 | F107: Unused | G107: -
C108: 90 | D108: Unused | E108: 0 | F108: Unused | G108: -
C109: 91 | D109: FTTC Field Interventions | E109: Other | F109: Other_FTTC Field Interventions | G109: -
C110: 92 | D110: Unused | E110: 0 | F110: Unused | G110: -
C111: 93 | D111: Gfast Field Interventions | E111: Other | F111: Other_Gfast Field Interventions | G111: -
C112: 94 | D112: SLG Payments_Rentals | E112: Other | F112: Other_SLG Payments_Rentals | G112: -
C113: 95 | D113: SLG Payments_Connections | E113: Other | F113: Other_SLG Payments_Connections | G113: -
C114: 96 | D114: Unused | E114: 0 | F114: Unused | G114: -
C115: 97 | D115: Unused | E115: 0 | F115: Unused | G115: -
C116: 98 | D116: Cumulo | E116: Other | F116: Other_Cumulo | G116: -
C117: 99 | D117: Unused | E117: 0 | F117: Unused | G117: -
C118: 100 | D118: Unused | E118: 0 | F118: Unused | G118: -
B120: Services
C122: 1 | D122: =[3]Input_Lists!$D$17:$D$28 -> WLA rentals
C123: 2 | D123: Unused
C124: 3 | D124: Unused
C125: 4 | D125: FTTC Customer Site Installations
C126: 5 | D126: FTTC Provision
C127: 6 | D127: FTTC Software Change
C128: 7 | D128: FTTP Customer Site Installations
C129: 8 | D129: Unused
C130: 9 | D130: FTTP Software Change
C131: 10 | D131: Gfast Customer Site Installations
C132: 11 | D132: Gfast Provision
C133: 12 | D133: Gfast Software Change
D134: service_names

Sheet Linked_Inputs
A1: Linked Inputs
G7: =years_number -> 1 | H7: 2 | I7: 3 | J7: 4 | K7: 5 | L7: 6 | M7: 7 | N7: 8 | O7: 9 | P7: 10 | Q7: 11 | R7: 12
E8: Element | G8: =financial_years -> 2017/18 | H8: 2018/19 | I8: 2019/20 | J8: 2020/21 | K8: 2021/22 | L8: 2022/23 | M8: 2023/24 | N8: 2024/25 | O8: 2025/26 | P8: 2026/27 | Q8: 2027/28 | R8: 2028/29
C11: Element volumes | G11: element_volumes
D12: 1 | E12: =Element.Names -> FTTC.PCP_Re-shell | G12: =[3]Link_CostDep!$G$111:$R$210 -> 0 | H12: 25677 | I12: 77030 | J12: 154058 | K12: 256763 | L12: 359469 | M12: 462174 | N12: 564879 | O12: 667583 | P12: 744612 | Q12: 795965 | R12: 821640
D13: 2 | E13: FTTC.PCP_Connector | G13: 0 | H13: 25677 | I13: 77030 | J13: 154058 | K13: 256763 | L13: 359469 | M13: 462174 | N13: 564879 | O13: 667583 | P13: 744612 | Q13: 795965 | R13: 821640
D14: 3 | E14: FTTC.PCP_Extra faults at PCP/Copper | G14: 0 | H14: 25677 | I14: 77030 | J14: 154058 | K14: 256763 | L14: 359469 | M14: 462174 | N14: 564879 | O14: 667583 | P14: 744612 | Q14: 795965 | R14: 821640
D15: 4 | E15: FTTC.PCP_Duct to FTTC Cab | G15: 0 | H15: 25677 | I15: 77030 | J15: 154058 | K15: 256763 | L15: 359469 | M15: 462174 | N15: 564879 | O15: 667583 | P15: 744612 | Q15: 795965 | R15: 821640
D16: 5 | E16: FTTC.PCP_Copper to Cab Type1 | G16: 0 | H16: 25677 | I16: 77030 | J16: 154058 | K16: 256763 | L16: 359469 | M16: 462174 | N16: 564879 | O16: 667583 | P16: 744612 | Q16: 795965 | R16: 821640
D17: 6 | E17: FTTC.PCP_Copper to Cab Type2 | G17: 0 | H17: 25677 | I17: 77030 | J17: 154058 | K17: 256763 | L17: 359469 | M17: 462174 | N17: 564879 | O17: 667583 | P17: 744612 | Q17: 795965 | R17: 821640
D18: 7 | E18: Unused | G18: 0 | H18: 25677 | I18: 77030 | J18: 154058 | K18: 256763 | L18: 359469 | M18: 462174 | N18: 564879 | O18: 667583 | P18: 744612 | Q18: 795965 | R18: 821640
D19: 8 | E19: FTTC.CAB_Power Connection | G19: 0 | H19: 25677 | I19: 77030 | J19: 154058 | K19: 256763 | L19: 359469 | M19: 462174 | N19: 564879 | O19: 667583 | P19: 744612 | Q19: 795965 | R19: 821640
D20: 9 | E20: FTTC.CAB_Civils (concrete Base) | G20: 0 | H20: 25677 | I20: 77030 | J20: 154058 | K20: 256763 | L20: 359469 | M20: 462174 | N20: 564879 | O20: 667583 | P20: 744612 | Q20: 795965 | R20: 821640
D21: 10 | E21: FTTC.CAB_Certification Managed Service | G21: 0 | H21: 25677 | I21: 77030 | J21: 154058 | K21: 256763 | L21: 359469 | M21: 462174 | N21: 564879 | O21: 667583 | P21: 744612 | Q21: 795965 | R21: 821640
D22: 11 | E22: Unused | G22: 0 | H22: 25677 | I22: 77030 | J22: 154058 | K22: 256763 | L22: 359469 | M22: 462174 | N22: 564879 | O22: 667583 | P22: 744612 | Q22: 795965 | R22: 821640
D23: 12 | E23: FTTC.CAB_Type1 DSLAM Cabinet | G23: 0 | H23: 25677 | I23: 77030 | J23: 154058 | K23: 256763 | L23: 359469 | M23: 462174 | N23: 564879 | O23: 667583 | P23: 744612 | Q23: 795965 | R23: 821640
D24: 13 | E24: FTTC.CAB_Type1 DSLAM Access Card | G24: 0 | H24: 25677 | I24: 77030 | J24: 154058 | K24: 256763 | L24: 359469 | M24: 462174 | N24: 564879 | O24: 667583 | P24: 744612 | Q24: 795965 | R24: 821640
D25: 14 | E25: FTTC.CAB_Type1 DSLAM GE port | G25: 0 | H25: 25677 | I25: 77030 | J25: 154058 | K25: 256763 | L25: 359469 | M25: 462174 | N25: 564879 | O25: 667583 | P25: 744612 | Q25: 795965 | R25: 821640
D26: 15 | E26: FTTC.CAB_Type2 DSLAM Cabinet | G26: 0 | H26: 25677 | I26: 77030 | J26: 154058 | K26: 256763 | L26: 359469 | M26: 462174 | N26: 564879 | O26: 667583 | P26: 744612 | Q26: 795965 | R26: 821640
D27: 16 | E27: FTTC.CAB_Type2 DSLAM Access Card | G27: 0 | H27: 25677 | I27: 77030 | J27: 154058 | K27: 256763 | L27: 359469 | M27: 462174 | N27: 564879 | O27: 667583 | P27: 744612 | Q27: 795965 | R27: 821640
D28: 17 | E28: FTTC.CAB_Type2 DSLAM GE port | G28: 0 | H28: 25677 | I28: 77030 | J28: 154058 | K28: 256763 | L28: 359469 | M28: 462174 | N28: 564879 | O28: 667583 | P28: 744612 | Q28: 795965 | R28: 821640
D29: 18 | E29: LR-VDSL_ADSL migration costs | G29: 0 | H29: 25677 | I29: 77030 | J29: 154058 | K29: 256763 | L29: 359469 | M29: 462174 | N29: 564879 | O29: 667583 | P29: 744612 | Q29: 795965 | R29: 821640
D30: 19 | E30: LR-VDSL_ADSL migration vols | G30: 0 | H30: 25677 | I30: 77030 | J30: 154058 | K30: 256763 | L30: 359469 | M30: 462174 | N30: 564879 | O30: 667583 | P30: 744612 | Q30: 795965 | R30: 821640
D31: 20 | E31: Unused | G31: 0 | H31: 25677 | I31: 77030 | J31: 154058 | K31: 256763 | L31: 359469 | M31: 462174 | N31: 564879 | O31: 667583 | P31: 744612 | Q31: 795965 | R31: 821640
D32: 21 | E32: FTTC.Segment3_Fibre | G32: 0 | H32: 25677 | I32: 77030 | J32: 154058 | K32: 256763 | L32: 359469 | M32: 462174 | N32: 564879 | O32: 667583 | P32: 744612 | Q32: 795965 | R32: 821640
D33: 22 | E33: FTTC.Segment3_Fibre testing | G33: 0 | H33: 25677 | I33: 77030 | J33: 154058 | K33: 256763 | L33: 359469 | M33: 462174 | N33: 564879 | O33: 667583 | P33: 744612 | Q33: 795965 | R33: 821640
D34: 23 | E34: FTTC.Segment3_Duct and Pole | G34: 0 | H34: 25677 | I34: 77030 | J34: 154058 | K34: 256763 | L34: 359469 | M34: 462174 | N34: 564879 | O34: 667583 | P34: 744612 | Q34: 795965 | R34: 821640
D35: 24 | E35: FTTC.Segment3_Track Joint | G35: 0 | H35: 25677 | I35: 77030 | J35: 154058 | K35: 256763 | L35: 359469 | M35: 462174 | N35: 564879 | O35: 667583 | P35: 744612 | Q35: 795965 | R35: 821640
D36: 25 | E36: FTTC.Segment3_Aggregation Node | G36: 0 | H36: 25677 | I36: 77030 | J36: 154058 | K36: 256763 | L36: 359469 | M36: 462174 | N36: 564879 | O36: 667583 | P36: 744612 | Q36: 795965 | R36: 821640
D37: 26 | E37: Unused | G37: 0 | H37: 25677 | I37: 77030 | J37: 154058 | K37: 256763 | L37: 359469 | M37: 462174 | N37: 564879 | O37: 667583 | P37: 744612 | Q37: 795965 | R37: 821640
D38: 27 | E38: FTTP.Node_Primary Splitter | G38: 0 | H38: 25677 | I38: 77030 | J38: 154058 | K38: 256763 | L38: 359469 | M38: 462174 | N38: 564879 | O38: 667583 | P38: 744612 | Q38: 795965 | R38: 821640
D39: 28 | E39: FTTP.Node_Primary Tray | G39: 0 | H39: 25677 | I39: 77030 | J39: 154058 | K39: 256763 | L39: 359469 | M39: 462174 | N39: 564879 | O39: 667583 | P39: 744612 | Q39: 795965 | R39: 821640
D40: 29 | E40: FTTP.Node_Secondary Splitter | G40: 0 | H40: 25677 | I40: 77030 | J40: 154058 | K40: 256763 | L40: 359469 | M40: 462174 | N40: 564879 | O40: 667583 | P40: 744612 | Q40: 795965 | R40: 821640
D41: 30 | E41: FTTP.Node_Secondary Tray | G41: 0 | H41: 25677 | I41: 77030 | J41: 154058 | K41: 256763 | L41: 359469 | M41: 462174 | N41: 564879 | O41: 667583 | P41: 744612 | Q41: 795965 | R41: 821640
D42: 31 | E42: FTTP.Node_GPON port | G42: 0 | H42: 25677 | I42: 77030 | J42: 154058 | K42: 256763 | L42: 359469 | M42: 462174 | N42: 564879 | O42: 667583 | P42: 744612 | Q42: 795965 | R42: 821640
D43: 32 | E43: Unused | G43: 0 | H43: 25677 | I43: 77030 | J43: 154058 | K43: 256763 | L43: 359469 | M43: 462174 | N43: 564879 | O43: 667583 | P43: 744612 | Q43: 795965 | R43: 821640
D44: 33 | E44: FTTP.Segment3_Fibre | G44: 0 | H44: 25677 | I44: 77030 | J44: 154058 | K44: 256763 | L44: 359469 | M44: 462174 | N44: 564879 | O44: 667583 | P44: 744612 | Q44: 795965 | R44: 821640
D45: 34 | E45: FTTP.Segment3_Fibre testing | G45: 0 | H45: 25677 | I45: 77030 | J45: 154058 | K45: 256763 | L45: 359469 | M45: 462174 | N45: 564879 | O45: 667583 | P45: 744612 | Q45: 795965 | R45: 821640
D46: 35 | E46: FTTP.Segment3_Duct and Pole | G46: 0 | H46: 25677 | I46: 77030 | J46: 154058 | K46: 256763 | L46: 359469 | M46: 462174 | N46: 564879 | O46: 667583 | P46: 744612 | Q46: 795965 | R46: 821640
D47: 36 | E47: FTTP.Segment3_Track Joint | G47: 0 | H47: 25677 | I47: 77030 | J47: 154058 | K47: 256763 | L47: 359469 | M47: 462174 | N47: 564879 | O47: 667583 | P47: 744612 | Q47: 795965 | R47: 821640
D48: 37 | E48: FTTP.Segment3_Aggregation Node | G48: 0 | H48: 25677 | I48: 77030 | J48: 154058 | K48: 256763 | L48: 359469 | M48: 462174 | N48: 564879 | O48: 667583 | P48: 744612 | Q48: 795965 | R48: 821640
D49: 38 | E49: Unused | G49: 0 | H49: 25677 | I49: 77030 | J49: 154058 | K49: 256763 | L49: 359469 | M49: 462174 | N49: 564879 | O49: 667583 | P49: 744612 | Q49: 795965 | R49: 821640
D50: 39 | E50: FTTP.Segment2_Fibre | G50: 0 | H50: 25677 | I50: 77030 | J50: 154058 | K50: 256763 | L50: 359469 | M50: 462174 | N50: 564879 | O50: 667583 | P50: 744612 | Q50: 795965 | R50: 821640
D51: 40 | E51: FTTP.Segment2_Fibre testing | G51: 0 | H51: 25677 | I51: 77030 | J51: 154058 | K51: 256763 | L51: 359469 | M51: 462174 | N51: 564879 | O51: 667583 | P51: 744612 | Q51: 795965 | R51: 821640
D52: 41 | E52: FTTP.Segment2_Duct and Pole | G52: 0 | H52: 25677 | I52: 77030 | J52: 154058 | K52: 256763 | L52: 359469 | M52: 462174 | N52: 564879 | O52: 667583 | P52: 744612 | Q52: 795965 | R52: 821640
D53: 42 | E53: FTTP.Segment1_Fibre | G53: 0 | H53: 25677 | I53: 77030 | J53: 154058 | K53: 256763 | L53: 359469 | M53: 462174 | N53: 564879 | O53: 667583 | P53: 744612 | Q53: 795965 | R53: 821640
D54: 43 | E54: Unused | G54: 0 | H54: 25677 | I54: 77030 | J54: 154058 | K54: 256763 | L54: 359469 | M54: 462174 | N54: 564879 | O54: 667583 | P54: 744612 | Q54: 795965 | R54: 821640
D55: 44 | E55: G.fast.Node_Primary Splitter | G55: 0 | H55: 25677 | I55: 77030 | J55: 154058 | K55: 256763 | L55: 359469 | M55: 462174 | N55: 564879 | O55: 667583 | P55: 744612 | Q55: 795965 | R55: 821640
D56: 45 | E56: G.fast.Node_Primary Tray | G56: 0 | H56: 25677 | I56: 77030 | J56: 154058 | K56: 256763 | L56: 359469 | M56: 462174 | N56: 564879 | O56: 667583 | P56: 744612 | Q56: 795965 | R56: 821640
D57: 46 | E57: G.fast.Node_DSLAM | G57: 0 | H57: 25677 | I57: 77030 | J57: 154058 | K57: 256763 | L57: 359469 | M57: 462174 | N57: 564879 | O57: 667583 | P57: 744612 | Q57: 795965 | R57: 821640
D58: 47 | E58: G.fast.Node_Hybrid Closure | G58: 0 | H58: 25677 | I58: 77030 | J58: 154058 | K58: 256763 | L58: 359469 | M58: 462174 | N58: 564879 | O58: 667583 | P58: 744612 | Q58: 795965 | R58: 821640
D59: 48 | E59: G.fast.Node_Power_Box | G59: 0 | H59: 25677 | I59: 77030 | J59: 154058 | K59: 256763 | L59: 359469 | M59: 462174 | N59: 564879 | O59: 667583 | P59: 744612 | Q59: 795965 | R59: 821640
D60: 49 | E60: G.fast.Node_Copper_Intercept_Point | G60: 0 | H60: 25677 | I60: 77030 | J60: 154058 | K60: 256763 | L60: 359469 | M60: 462174 | N60: 564879 | O60: 667583 | P60: 744612 | Q60: 795965 | R60: 821640
D61: 50 | E61: G.fast.Node_GPON port | G61: 0 | H61: 25677 | I61: 77030 | J61: 154058 | K61: 256763 | L61: 359469 | M61: 462174 | N61: 564879 | O61: 667583 | P61: 744612 | Q61: 795965 | R61: 821640
D62: 51 | E62: Unused | G62: 0 | H62: 25677 | I62: 77030 | J62: 154058 | K62: 256763 | L62: 359469 | M62: 462174 | N62: 564879 | O62: 667583 | P62: 744612 | Q62: 795965 | R62: 821640
D63: 52 | E63: G.fast.Segment3_Fibre | G63: 0 | H63: 25677 | I63: 77030 | J63: 154058 | K63: 256763 | L63: 359469 | M63: 462174 | N63: 564879 | O63: 667583 | P63: 744612 | Q63: 795965 | R63: 821640
D64: 53 | E64: G.fast.Segment3_Fibre testing | G64: 0 | H64: 25677 | I64: 77030 | J64: 154058 | K64: 256763 | L64: 359469 | M64: 462174 | N64: 564879 | O64: 667583 | P64: 744612 | Q64: 795965 | R64: 821640
D65: 54 | E65: G.fast.Segment3_Duct and Pole | G65: 0 | H65: 25677 | I65: 77030 | J65: 154058 | K65: 256763 | L65: 359469 | M65: 462174 | N65: 564879 | O65: 667583 | P65: 744612 | Q65: 795965 | R65: 821640
D66: 55 | E66: G.fast.Segment3_Track Joint | G66: 0 | H66: 25677 | I66: 77030 | J66: 154058 | K66: 256763 | L66: 359469 | M66: 462174 | N66: 564879 | O66: 667583 | P66: 744612 | Q66: 795965 | R66: 821640
D67: 56 | E67: G.fast.Segment3_Aggregation Node | G67: 0 | H67: 25677 | I67: 77030 | J67: 154058 | K67: 256763 | L67: 359469 | M67: 462174 | N67: 564879 | O67: 667583 | P67: 744612 | Q67: 795965 | R67: 821640
D68: 57 | E68: Unused | G68: 0 | H68: 25677 | I68: 77030 | J68: 154058 | K68: 256763 | L68: 359469 | M68: 462174 | N68: 564879 | O68: 667583 | P68: 744612 | Q68: 795965 | R68: 821640
D69: 58 | E69: G.fast.Segment2_Fibre | G69: 0 | H69: 25677 | I69: 77030 | J69: 154058 | K69: 256763 | L69: 359469 | M69: 462174 | N69: 564879 | O69: 667583 | P69: 744612 | Q69: 795965 | R69: 821640
D70: 59 | E70: G.fast.Segment2_Fibre testing | G70: 0 | H70: 25677 | I70: 77030 | J70: 154058 | K70: 256763 | L70: 359469 | M70: 462174 | N70: 564879 | O70: 667583 | P70: 744612 | Q70: 795965 | R70: 821640
D71: 60 | E71: G.fast.Segment2_Duct and Pole | G71: 0 | H71: 25677 | I71: 77030 | J71: 154058 | K71: 256763 | L71: 359469 | M71: 462174 | N71: 564879 | O71: 667583 | P71: 744612 | Q71: 795965 | R71: 821640
D72: 61 | E72: Unused | G72: 0 | H72: 25677 | I72: 77030 | J72: 154058 | K72: 256763 | L72: 359469 | M72: 462174 | N72: 564879 | O72: 667583 | P72: 744612 | Q72: 795965 | R72: 821640
D73: 62 | E73: Unused | G73: 0 | H73: 25677 | I73: 77030 | J73: 154058 | K73: 256763 | L73: 359469 | M73: 462174 | N73: 564879 | O73: 667583 | P73: 744612 | Q73: 795965 | R73: 821640
D74: 63 | E74: EXCH_GE OLT Card | G74: 0 | H74: 25677 | I74: 77030 | J74: 154058 | K74: 256763 | L74: 359469 | M74: 462174 | N74: 564879 | O74: 667583 | P74: 744612 | Q74: 795965 | R74: 821640
D75: 64 | E75: EXCH_GPON OLT Card | G75: 0 | H75: 25677 | I75: 77030 | J75: 154058 | K75: 256763 | L75: 359469 | M75: 462174 | N75: 564879 | O75: 667583 | P75: 744612 | Q75: 795965 | R75: 821640
D76: 65 | E76: Unused | G76: 0 | H76: 25677 | I76: 77030 | J76: 154058 | K76: 256763 | L76: 359469 | M76: 462174 | N76: 564879 | O76: 667583 | P76: 744612 | Q76: 795965 | R76: 821640
D77: 66 | E77: EXCH_OCR Subrack | G77: 0 | H77: 25677 | I77: 77030 | J77: 154058 | K77: 256763 | L77: 359469 | M77: 462174 | N77: 564879 | O77: 667583 | P77: 744612 | Q77: 795965 | R77: 821640
D78: 67 | E78: Unused | G78: 0 | H78: 25677 | I78: 77030 | J78: 154058 | K78: 256763 | L78: 359469 | M78: 462174 | N78: 564879 | O78: 667583 | P78: 744612 | Q78: 795965 | R78: 821640
D79: 68 | E79: Remote Parent_Fibre | G79: 0 | H79: 25677 | I79: 77030 | J79: 154058 | K79: 256763 | L79: 359469 | M79: 462174 | N79: 564879 | O79: 667583 | P79: 744612 | Q79: 795965 | R79: 821640
D80: 69 | E80: Remote Parent_Fibre Testing | G80: 0 | H80: 25677 | I80: 77030 | J80: 154058 | K80: 256763 | L80: 359469 | M80: 462174 | N80: 564879 | O80: 667583 | P80: 744612 | Q80: 795965 | R80: 821640
D81: 70 | E81: Remote Parent_Track Joint | G81: 0 | H81: 25677 | I81: 77030 | J81: 154058 | K81: 256763 | L81: 359469 | M81: 462174 | N81: 564879 | O81: 667583 | P81: 744612 | Q81: 795965 | R81: 821640
D82: 71 | E82: Unused | G82: 0 | H82: 25677 | I82: 77030 | J82: 154058 | K82: 256763 | L82: 359469 | M82: 462174 | N82: 564879 | O82: 667583 | P82: 744612 | Q82: 795965 | R82: 821640
D83: 72 | E83: Other_Remote Parent Planning | G83: 0 | H83: 25677 | I83: 77030 | J83: 154058 | K83: 256763 | L83: 359469 | M83: 462174 | N83: 564879 | O83: 667583 | P83: 744612 | Q83: 795965 | R83: 821640
D84: 73 | E84: Other_FTTC DSLAM planning | G84: 0 | H84: 25677 | I84: 77030 | J84: 154058 | K84: 256763 | L84: 359469 | M84: 462174 | N84: 564879 | O84: 667583 | P84: 744612 | Q84: 795965 | R84: 821640
D85: 74 | E85: Other_FTTP planning | G85: 0 | H85: 25677 | I85: 77030 | J85: 154058 | K85: 256763 | L85: 359469 | M85: 462174 | N85: 564879 | O85: 667583 | P85: 744612 | Q85: 795965 | R85: 821640
D86: 75 | E86: Other_G.fast planning | G86: 0 | H86: 25677 | I86: 77030 | J86: 154058 | K86: 256763 | L86: 359469 | M86: 462174 | N86: 564879 | O86: 667583 | P86: 744612 | Q86: 795965 | R86: 821640
D87: 76 | E87: Unused | G87: 0 | H87: 25677 | I87: 77030 | J87: 154058 | K87: 256763 | L87: 359469 | M87: 462174 | N87: 564879 | O87: 667583 | P87: 744612 | Q87: 795965 | R87: 821640
D88: 77 | E88: Other_OSSBSS_Hardware | G88: 0 | H88: 25677 | I88: 77030 | J88: 154058 | K88: 256763 | L88: 359469 | M88: 462174 | N88: 564879 | O88: 667583 | P88: 744612 | Q88: 795965 | R88: 821640
D89: 78 | E89: Other_OSSBSS_Software | G89: 0 | H89: 25677 | I89: 77030 | J89: 154058 | K89: 256763 | L89: 359469 | M89: 462174 | N89: 564879 | O89: 667583 | P89: 744612 | Q89: 795965 | R89: 821640
D90: 79 | E90: Unused | G90: 0 | H90: 25677 | I90: 77030 | J90: 154058 | K90: 256763 | L90: 359469 | M90: 462174 | N90: 564879 | O90: 667583 | P90: 744612 | Q90: 795965 | R90: 821640
D91: 80 | E91: Unused | G91: 0 | H91: 25677 | I91: 77030 | J91: 154058 | K91: 256763 | L91: 359469 | M91: 462174 | N91: 564879 | O91: 667583 | P91: 744612 | Q91: 795965 | R91: 821640
D92: 81 | E92: Unused | G92: 0 | H92: 25677 | I92: 77030 | J92: 154058 | K92: 256763 | L92: 359469 | M92: 462174 | N92: 564879 | O92: 667583 | P92: 744612 | Q92: 795965 | R92: 821640
D93: 82 | E93: Unused | G93: 0 | H93: 25677 | I93: 77030 | J93: 154058 | K93: 256763 | L93: 359469 | M93: 462174 | N93: 564879 | O93: 667583 | P93: 744612 | Q93: 795965 | R93: 821640
D94: 83 | E94: Other_Software Configuration | G94: 0 | H94: 35433.18892 | I94: 80623.3429 | J94: 135570.4619 | K94: 200274.5461 | L94: 239302.4063 | M94: 278330.2666 | N94: 317358.1268 | O94: 356385.9871 | P94: 359980.6584 | Q94: 353818.3647 | R94: 337899.1059
D95: 84 | E95: Other_FTTC Engineer PCP Jumpering | G95: 0 | H95: 18467.87896 | I95: 38299.59443 | J95: 59500.32854 | K95: 82071.94948 | L95: 87542.55359 | M95: 93015.50161 | N95: 98489.35324 | O95: 103962.8131 | P95: 90969.49823 | Q95: 76607.49649 | R95: 60879.36757
D96: 85 | E96: Other_Gfast Engineer PCP Jumpering | G96: 0 | H96: 6400.992614 | I96: 13274.69287 | J96: 20622.89689 | K96: 28446.2522 | L96: 30342.37122 | M96: 32239.30264 | N96: 34136.54725 | O96: 36033.65608 | P96: 31530.15501 | Q96: 26552.26517 | R96: 21100.87374
D97: 86 | E97: Other_FTTC Premise Visit | G97: 0 | H97: 646.4829497 | I97: 916.0142345 | J97: 1097.451234 | K97: 1283.918024 | L97: 1152.627995 | M97: 1088.894718 | N97: 1058.157094 | O97: 1036.875573 | P97: 859.173315 | Q97: 692.571183 | R97: 556.4413059
D98: 87 | E98: Other_FTTP Premise Visit | G98: 0 | H98: 2232.854865 | I98: 4631.106387 | J98: 7194.754565 | K98: 9923.7994 | L98: 10585.38603 | M98: 11246.97265 | N98: 11908.55928 | O98: 12570.14591 | P98: 10998.87767 | Q98: 9262.212774 | R98: 7360.151222
D99: 88 | E99: Other_Gfast Premise Visit | G99: 0 | H99: 224.0718924 | I99: 317.4918117 | J99: 380.3781287 | K99: 445.0077785 | L99: 399.5024712 | M99: 377.4124285 | N99: 366.7587251 | O99: 359.3825202 | P99: 297.7906697 | Q99: 240.0461383 | R99: 192.863333
D100: 89 | E100: Unused | G100: 0 | H100: 25677 | I100: 77030 | J100: 154058 | K100: 256763 | L100: 359469 | M100: 462174 | N100: 564879 | O100: 667583 | P100: 744612 | Q100: 795965 | R100: 821640
D101: 90 | E101: Unused | G101: 0 | H101: 25677 | I101: 77030 | J101: 154058 | K101: 256763 | L101: 359469 | M101: 462174 | N101: 564879 | O101: 667583 | P101: 744612 | Q101: 795965 | R101: 821640
D102: 91 | E102: Other_FTTC Field Interventions | G102: 0 | H102: 25677 | I102: 77030 | J102: 154058 | K102: 256763 | L102: 359469 | M102: 462174 | N102: 564879 | O102: 667583 | P102: 744612 | Q102: 795965 | R102: 821640
D103: 92 | E103: Unused | G103: 0 | H103: 25677 | I103: 77030 | J103: 154058 | K103: 256763 | L103: 359469 | M103: 462174 | N103: 564879 | O103: 667583 | P103: 744612 | Q103: 795965 | R103: 821640
D104: 93 | E104: Other_Gfast Field Interventions | G104: 0 | H104: 25677 | I104: 77030 | J104: 154058 | K104: 256763 | L104: 359469 | M104: 462174 | N104: 564879 | O104: 667583 | P104: 744612 | Q104: 795965 | R104: 821640
D105: 94 | E105: Other_SLG Payments_Rentals | G105: 0 | H105: 25677 | I105: 77030 | J105: 154058 | K105: 256763 | L105: 359469 | M105: 462174 | N105: 564879 | O105: 667583 | P105: 744612 | Q105: 795965 | R105: 821640
D106: 95 | E106: Other_SLG Payments_Connections | G106: 0 | H106: 26231.17159 | I106: 54971.88764 | J106: 85840.15063 | K106: 118713.0753 | L106: 126918.1804 | M106: 135035.4698 | N106: 143109.544 | O106: 151170.357 | P106: 132341.5669 | Q106: 111489.3571 | R106: 88591.0879
D107: 96 | E107: Unused | G107: 0 | H107: 25677 | I107: 77030 | J107: 154058 | K107: 256763 | L107: 359469 | M107: 462174 | N107: 564879 | O107: 667583 | P107: 744612 | Q107: 795965 | R107: 821640
D108: 97 | E108: Unused | G108: 0 | H108: 25677 | I108: 77030 | J108: 154058 | K108: 256763 | L108: 359469 | M108: 462174 | N108: 564879 | O108: 667583 | P108: 744612 | Q108: 795965 | R108: 821640
D109: 98 | E109: Other_Cumulo | G109: 0 | H109: 25677 | I109: 77030 | J109: 154058 | K109: 256763 | L109: 359469 | M109: 462174 | N109: 564879 | O109: 667583 | P109: 744612 | Q109: 795965 | R109: 821640
D110: 99 | E110: Unused | G110: 0 | H110: 25677 | I110: 77030 | J110: 154058 | K110: 256763 | L110: 359469 | M110: 462174 | N110: 564879 | O110: 667583 | P110: 744612 | Q110: 795965 | R110: 821640
D111: 100 | E111: Unused | G111: 0 | H111: 25677 | I111: 77030 | J111: 154058 | K111: 256763 | L111: 359469 | M111: 462174 | N111: 564879 | O111: 667583 | P111: 744612 | Q111: 795965 | R111: 821640
C115: Network investment (Capex) | G115: network_capex
D116: 1 | E116: =Element.Names -> FTTC.PCP_Re-shell | G116: =[3]Link_CostDep!$G$318:$R$417 -> 0 | H116: 1303724.248 | I116: 1286991.743 | J116: 1269247.274 | K116: 1255399.527 | L116: 0 | M116: 0 | N116: 0 | O116: 0 | P116: 0 | Q116: 0 | R116: 0
D117: 2 | E117: FTTC.PCP_Connector | G117: 0 | H117: 2232351.488 | I117: 2186957.675 | J117: 2144627.154 | K117: 2102048.272 | L117: 0 | M117: 0 | N117: 0 | O117: 0 | P117: 0 | Q117: 0 | R117: 0
D118: 3 | E118: FTTC.PCP_Extra faults at PCP/Copper | G118: 0 | H118: 0 | I118: 0 | J118: 0 | K118: 0 | L118: 0 | M118: 0 | N118: 0 | O118: 0 | P118: 0 | Q118: 0 | R118: 0
D119: 4 | E119: FTTC.PCP_Duct to FTTC Cab | G119: 0 | H119: 2130505.34 | I119: 2119742.568 | J119: 2111140.98 | K119: 2101506.863 | L119: 0 | M119: 0 | N119: 0 | O119: 0 | P119: 0 | Q119: 0 | R119: 0
D120: 5 | E120: FTTC.PCP_Copper to Cab Type1 | G120: 0 | H120: 1790479.523 | I120: 1768712.442 | J120: 1748603.009 | K120: 1728722.211 | L120: 0 | M120: 0 | N120: 0 | O120: 0 | P120: 0 | Q120: 0 | R120: 0
D121: 6 | E121: FTTC.PCP_Copper to Cab Type2 | G121: 0 | H121: 888593.5907 | I121: 876758.9503 | J121: 866790.6112 | K121: 856935.6075 | L121: 0 | M121: 0 | N121: 0 | O121: 0 | P121: 0 | Q121: 0 | R121: 0
D122: 7 | E122: Unused | G122: 0 | H122: 0 | I122: 0 | J122: 0 | K122: 0 | L122: 0 | M122: 0 | N122: 0 | O122: 0 | P122: 0 | Q122: 0 | R122: 0
D123: 8 | E123: FTTC.CAB_Power Connection | G123: 0 | H123: 15676786.95 | I123: 15838712.51 | J123: 16018296.05 | K123: 16191691.42 | L123: 0 | M123: 0 | N123: 0 | O123: 0 | P123: 0 | Q123: 0 | R123: 0
D124: 9 | E124: FTTC.CAB_Civils (concrete Base) | G124: 0 | H124: 5597952.829 | I124: 5524703.599 | J124: 5457859.506 | K124: 5389086.855 | L124: 0 | M124: 0 | N124: 0 | O124: 0 | P124: 0 | Q124: 0 | R124: 0
D125: 10 | E125: FTTC.CAB_Certification Managed Service | G125: 0 | H125: 3290304.615 | I125: 3324290.176 | J125: 3361981.865 | K125: 3398374.754 | L125: 0 | M125: 0 | N125: 0 | O125: 0 | P125: 0 | Q125: 0 | R125: 0
D126: 11 | E126: Unused | G126: 0 | H126: 0 | I126: 0 | J126: 0 | K126: 0 | L126: 0 | M126: 0 | N126: 0 | O126: 0 | P126: 0 | Q126: 0 | R126: 0
D127: 12 | E127: FTTC.CAB_Type1 DSLAM Cabinet | G127: 0 | H127: 7470843.461 | I127: 7318543.726 | J127: 7175064.764 | K127: 7034398.686 | L127: 0 | M127: 0 | N127: 0 | O127: 6500767.423 | P127: 6371368.831 | Q127: 6246459.092 | R127: 6123998.189
D128: 13 | E128: FTTC.CAB_Type1 DSLAM Access Card | G128: 0 | H128: 2314017.857 | I128: 2227782.422 | J128: 2146394.022 | K128: 2067419.458 | L128: 0 | M128: 0 | N128: 0 | O128: 1780733.859 | P128: 1715213.42 | Q128: 1652550.893 | R128: 1591746.826
D129: 14 | E129: FTTC.CAB_Type1 DSLAM GE port | G129: 0 | H129: 0 | I129: 0 | J129: 0 | K129: 0 | L129: 0 | M129: 0 | N129: 0 | O129: 0 | P129: 0 | Q129: 0 | R129: 0
D130: 15 | E130: FTTC.CAB_Type2 DSLAM Cabinet | G130: 0 | H130: 2208155.147 | I130: 2160597.05 | J130: 2118238.865 | K130: 2076711.107 | L130: 0 | M130: 0 | N130: 0 | O130: 1921430.039 | P130: 1880969.932 | Q130: 1844093.796 | R130: 1807940.611
D131: 16 | E131: FTTC.CAB_Type2 DSLAM Access Card | G131: 0 | H131: 1563654.578 | I131: 1507731.437 | J131: 1454521.825 | K131: 1402724.176 | L131: 0 | M131: 0 | N131: 0 | O131: 1215350.382 | P131: 1172459.241 | Q131: 1131081.778 | R131: 1090802.302
D132: 17 | E132: FTTC.CAB_Type2 DSLAM GE port | G132: 0 | H132: 0 | I132: 0 | J132: 0 | K132: 0 | L132: 0 | M132: 0 | N132: 0 | O132: 0 | P132: 0 | Q132: 0 | R132: 0
D133: 18 | E133: LR-VDSL_ADSL migration costs | G133: 0 | H133: 0 | I133: 0 | J133: 0 | K133: 0 | L133: 0 | M133: 0 | N133: 0 | O133: 0 | P133: 0 | Q133: 0 | R133: 0
D134: 19 | E134: LR-VDSL_ADSL migration vols | G134: 0 | H134: 0 | I134: 0 | J134: 0 | K134: 0 | L134: 0 | M134: 0 | N134: 0 | O134: 0 | P134: 0 | Q134: 0 | R134: 0
D135: 20 | E135: Unused | G135: 0 | H135: 0 | I135: 0 | J135: 0 | K135: 0 | L135: 0 | M135: 0 | N135: 0 | O135: 0 | P135: 0 | Q135: 0 | R135: 0
D136: 21 | E136: FTTC.Segment3_Fibre | G136: 0 | H136: 15240895.24 | I136: 14706268.36 | J136: 14197359.46 | K136: 13702416.07 | L136: 0 | M136: 0 | N136: 0 | O136: 0 | P136: 0 | Q136: 0 | R136: 0
D137: 22 | E137: FTTC.Segment3_Fibre testing | G137: 0 | H137: 44555.00997 | I137: 43657.73469 | J137: 42821.26275 | K137: 41979.49451 | L137: 0 | M137: 0 | N137: 0 | O137: 0 | P137: 0 | Q137: 0 | R137: 0
D138: 23 | E138: FTTC.Segment3_Duct and Pole | G138: 0 | H138: 59732793.94 | I138: 59446130.7 | J138: 59189877.03 | K138: 58919053.86 | L138: 0 | M138: 0 | N138: 0 | O138: 0 | P138: 0 | Q138: 0 | R138: 0
D139: 24 | E139: FTTC.Segment3_Track Joint | G139: 0 | H139: 154033.7727 | I139: 150440.5035 | J139: 147741.8747 | K139: 145820.7582 | L139: 0 | M139: 0 | N139: 0 | O139: 0 | P139: 0 | Q139: 0 | R139: 0
D140: 25 | E140: FTTC.Segment3_Aggregation Node | G140: 0 | H140: 706529.5012 | I140: 680310.6823 | J140: 655883.2812 | K140: 631853.8456 | L140: 0 | M140: 0 | N140: 0 | O140: 0 | P140: 0 | Q140: 0 | R140: 0
D141: 26 | E141: Unused | G141: 0 | H141: 0 | I141: 0 | J141: 0 | K141: 0 | L141: 0 | M141: 0 | N141: 0 | O141: 0 | P141: 0 | Q141: 0 | R141: 0
D142: 27 | E142: FTTP.Node_Primary Splitter | G142: 0 | H142: 303077.0928 | I142: 296989.5604 | J142: 291167.1242 | K142: 285458.836 | L142: 0 | M142: 0 | N142: 0 | O142: 0 | P142: 0 | Q142: 0 | R142: 0
D143: 28 | E143: FTTP.Node_Primary Tray | G143: 0 | H143: 13313.01211 | I143: 13034.88191 | J143: 12789.85296 | K143: 12528.79803 | L143: 0 | M143: 0 | N143: 0 | O143: 0 | P143: 0 | Q143: 0 | R143: 0
D144: 29 | E144: FTTP.Node_Secondary Splitter | G144: 0 | H144: 697403.8771 | I144: 682833.9902 | J144: 669998.1166 | K144: 656322.7198 | L144: 0 | M144: 0 | N144: 0 | O144: 0 | P144: 0 | Q144: 0 | R144: 0
D145: 30 | E145: FTTP.Node_Secondary Tray | G145: 0 | H145: 69254.04549 | I145: 67863.02568 | J145: 66532.58115 | K145: 65228.21978 | L145: 0 | M145: 0 | N145: 0 | O145: 0 | P145: 0 | Q145: 0 | R145: 0
D146: 31 | E146: FTTP.Node_GPON port | G146: 0 | H146: 0 | I146: 0 | J146: 0 | K146: 0 | L146: 0 | M146: 0 | N146: 0 | O146: 0 | P146: 0 | Q146: 0 | R146: 0
D147: 32 | E147: Unused | G147: 0 | H147: 0 | I147: 0 | J147: 0 | K147: 0 | L147: 0 | M147: 0 | N147: 0 | O147: 0 | P147: 0 | Q147: 0 | R147: 0
D148: 33 | E148: FTTP.Segment3_Fibre | G148: 0 | H148: 1702517.242 | I148: 1636062.819 | J148: 1585946.816 | K148: 1524790.431 | L148: 0 | M148: 0 | N148: 0 | O148: 0 | P148: 0 | Q148: 0 | R148: 0
D149: 34 | E149: FTTP.Segment3_Fibre testing | G149: 0 | H149: 13754.47883 | I149: 13469.81911 | J149: 13219.25755 | K149: 12952.02789 | L149: 0 | M149: 0 | N149: 0 | O149: 0 | P149: 0 | Q149: 0 | R149: 0
D150: 35 | E150: FTTP.Segment3_Duct and Pole | G150: 0 | H150: 16974110.16 | I150: 16823417.66 | J150: 16819830.9 | K150: 16678689.29 | L150: 0 | M150: 0 | N150: 0 | O150: 0 | P150: 0 | Q150: 0 | R150: 0
D151: 36 | E151: FTTP.Segment3_Track Joint | G151: 0 | H151: 10012.19523 | I151: 9827.771583 | J151: 9651.479251 | K151: 9478.349282 | L151: 0 | M151: 0 | N151: 0 | O151: 0 | P151: 0 | Q151: 0 | R151: 0
D152: 37 | E152: FTTP.Segment3_Aggregation Node | G152: 0 | H152: 45781.18405 | I152: 44098.98661 | J152: 42499.44717 | K152: 40957.92555 | L152: 0 | M152: 0 | N152: 0 | O152: 0 | P152: 0 | Q152: 0 | R152: 0
D153: 38 | E153: Unused | G153: 0 | H153: 0 | I153: 0 | J153: 0 | K153: 0 | L153: 0 | M153: 0 | N153: 0 | O153: 0 | P153: 0 | Q153: 0 | R153: 0
D154: 39 | E154: FTTP.Segment2_Fibre | G154: 0 | H154: 421997.9078 | I154: 407184.3875 | J154: 393103.9413 | K154: 379490.8426 | L154: 0 | M154: 0 | N154: 0 | O154: 0 | P154: 0 | Q154: 0 | R154: 0
D155: 40 | E155: FTTP.Segment2_Fibre testing | G155: 0 | H155: 51466.18313 | I155: 50442.53246 | J155: 49463.50483 | K155: 48503.47892 | L155: 0 | M155: 0 | N155: 0 | O155: 0 | P155: 0 | Q155: 0 | R155: 0
D156: 41 | E156: FTTP.Segment2_Duct and Pole | G156: 0 | H156: 5803203.347 | I156: 5775204.442 | J156: 5750457.493 | K156: 5725521.559 | L156: 0 | M156: 0 | N156: 0 | O156: 0 | P156: 0 | Q156: 0 | R156: 0
D157: 42 | E157: FTTP.Segment1_Fibre | G157: 0 | H157: 555014.0703 | I157: 1070836.269 | J157: 1550792.649 | K157: 1996249.022 | L157: 1927169.03 | M157: 1860259.082 | N157: 1796097.841 | O157: 1733738.592 | P157: 1255406.238 | Q157: 808103.0188 | R157: 389884.4815
D158: 43 | E158: Unused | G158: 0 | H158: 0 | I158: 0 | J158: 0 | K158: 0 | L158: 0 | M158: 0 | N158: 0 | O158: 0 | P158: 0 | Q158: 0 | R158: 0
D159: 44 | E159: G.fast.Node_Primary Splitter | G159: 0 | H159: 1315865.464 | I159: 1289435.313 | J159: 1264156.125 | K159: 1239372.532 | L159: 0 | M159: 0 | N159: 0 | O159: 0 | P159: 0 | Q159: 0 | R159: 0
D160: 45 | E160: G.fast.Node_Primary Tray | G160: 0 | H160: 42807.46494 | I160: 41936.91638 | J160: 41125.26734 | K160: 40308.70081 | L160: 0 | M160: 0 | N160: 0 | O160: 0 | P160: 0 | Q160: 0 | R160: 0
D161: 46 | E161: G.fast.Node_DSLAM | G161: 0 | H161: 10050149.64 | I161: 9846799.381 | J161: 9653754.342 | K161: 9464493.923 | L161: 0 | M161: 0 | N161: 0 | O161: 8745155.177 | P161: 8572414.541 | Q161: 8404353.628 | R161: 8239587.524
D162: 47 | E162: G.fast.Node_Hybrid Closure | G162: 0 | H162: 3411576.685 | I162: 3285725.037 | J162: 3166546.635 | K162: 3051691.021 | L162: 0 | M162: 0 | N162: 0 | O162: 0 | P162: 0 | Q162: 0 | R162: 0
D163: 48 | E163: G.fast.Node_Power_Box | G163: 0 | H163: 6223390.8 | I163: 6288320.273 | J163: 6358004.399 | K163: 6428460.731 | L163: 0 | M163: 0 | N163: 0 | O163: 0 | P163: 0 | Q163: 0 | R163: 0
D164: 49 | E164: G.fast.Node_Copper_Intercept_Point | G164: 0 | H164: 2451559.199 | I164: 2422131.866 | J164: 2394593.36 | K164: 2367367.954 | L164: 0 | M164: 0 | N164: 0 | O164: 0 | P164: 0 | Q164: 0 | R164: 0
D165: 50 | E165: G.fast.Node_GPON port | G165: 0 | H165: 0 | I165: 0 | J165: 0 | K165: 0 | L165: 0 | M165: 0 | N165: 0 | O165: 0 | P165: 0 | Q165: 0 | R165: 0
D166: 51 | E166: Unused | G166: 0 | H166: 0 | I166: 0 | J166: 0 | K166: 0 | L166: 0 | M166: 0 | N166: 0 | O166: 0 | P166: 0 | Q166: 0 | R166: 0
D167: 52 | E167: G.fast.Segment3_Fibre | G167: 0 | H167: 16216565.89 | I167: 15647714 | J167: 15106226.47 | K167: 14583477.06 | L167: 0 | M167: 0 | N167: 0 | O167: 0 | P167: 0 | Q167: 0 | R167: 0
D168: 53 | E168: G.fast.Segment3_Fibre testing | G168: 0 | H168: 44226.98374 | I168: 43336.23283 | J168: 42506.00085 | K168: 41670.35145 | L168: 0 | M168: 0 | N168: 0 | O168: 0 | P168: 0 | Q168: 0 | R168: 0
D169: 54 | E169: G.fast.Segment3_Duct and Pole | G169: 0 | H169: 63556685.7 | I169: 63251671.25 | J169: 62979013.09 | K169: 62707530.27 | L169: 0 | M169: 0 | N169: 0 | O169: 0 | P169: 0 | Q169: 0 | R169: 0
D170: 55 | E170: G.fast.Segment3_Track Joint | G170: 0 | H170: 66234.52228 | I170: 64258.5065 | J170: 63105.82587 | K170: 61973.82223 | L170: 0 | M170: 0 | N170: 0 | O170: 0 | P170: 0 | Q170: 0 | R170: 0
D171: 56 | E171: G.fast.Segment3_Aggregation Node | G171: 0 | H171: 301459.7265 | I171: 290382.8007 | J171: 279601.6261 | K171: 269699.5565 | L171: 0 | M171: 0 | N171: 0 | O171: 0 | P171: 0 | Q171: 0 | R171: 0
D172: 57 | E172: Unused | G172: 0 | H172: 0 | I172: 0 | J172: 0 | K172: 0 | L172: 0 | M172: 0 | N172: 0 | O172: 0 | P172: 0 | Q172: 0 | R172: 0
D173: 58 | E173: G.fast.Segment2_Fibre | G173: 0 | H173: 1164957.622 | I173: 1123923.176 | J173: 1085029.93 | K173: 1047482.581 | L173: 0 | M173: 0 | N173: 0 | O173: 0 | P173: 0 | Q173: 0 | R173: 0
D174: 59 | E174: G.fast.Segment2_Fibre testing | G174: 0 | H174: 74993.58113 | I174: 73490.8896 | J174: 72064.52165 | K174: 70665.83775 | L174: 0 | M174: 0 | N174: 0 | O174: 0 | P174: 0 | Q174: 0 | R174: 0
D175: 60 | E175: G.fast.Segment2_Duct and Pole | G175: 0 | H175: 16020188.36 | I175: 15940901.27 | J175: 15872185.03 | K175: 15803765.01 | L175: 0 | M175: 0 | N175: 0 | O175: 0 | P175: 0 | Q175: 0 | R175: 0
D176: 61 | E176: Unused | G176: 0 | H176: 0 | I176: 0 | J176: 0 | K176: 0 | L176: 0 | M176: 0 | N176: 0 | O176: 0 | P176: 0 | Q176: 0 | R176: 0
D177: 62 | E177: Unused | G177: 0 | H177: 0 | I177: 0 | J177: 0 | K177: 0 | L177: 0 | M177: 0 | N177: 0 | O177: 0 | P177: 0 | Q177: 0 | R177: 0
D178: 63 | E178: EXCH_GE OLT Card | G178: 0 | H178: 1211055.821 | I178: 1143395.475 | J178: 1084435.449 | K178: 1028515.74 | L178: 0 | M178: 0 | N178: 0 | O178: 0 | P178: 0 | Q178: 0 | R178: 0
D179: 64 | E179: EXCH_GPON OLT Card | G179: 0 | H179: 4196925.935 | I179: 3972349.056 | J179: 3767511.964 | K179: 3573237.447 | L179: 0 | M179: 0 | N179: 0 | O179: 0 | P179: 0 | Q179: 0 | R179: 0
D180: 65 | E180: Unused | G180: 0 | H180: 0 | I180: 0 | J180: 0 | K180: 0 | L180: 0 | M180: 0 | N180: 0 | O180: 0 | P180: 0 | Q180: 0 | R180: 0
D181: 66 | E181: EXCH_OCR Subrack | G181: 0 | H181: 140414.6801 | I181: 137814.4961 | J181: 135328.8437 | K181: 132888.023 | L181: 0 | M181: 0 | N181: 0 | O181: 0 | P181: 0 | Q181: 0 | R181: 116991.4506
D182: 67 | E182: Unused | G182: 0 | H182: 0 | I182: 0 | J182: 0 | K182: 0 | L182: 0 | M182: 0 | N182: 0 | O182: 0 | P182: 0 | Q182: 0 | R182: 0
D183: 68 | E183: Remote Parent_Fibre | G183: 0 | H183: 257256.6787 | I183: 248232.5149 | J183: 239642.4543 | K183: 231349.6518 | L183: 0 | M183: 0 | N183: 0 | O183: 0 | P183: 0 | Q183: 0 | R183: 0
D184: 69 | E184: Remote Parent_Fibre Testing | G184: 0 | H184: 6893.640727 | I184: 6756.527782 | J184: 6625.391872 | K184: 6496.801149 | L184: 0 | M184: 0 | N184: 0 | O184: 0 | P184: 0 | Q184: 0 | R184: 0
D185: 70 | E185: Remote Parent_Track Joint | G185: 0 | H185: 22259.71705 | I185: 21849.69527 | J185: 21457.75151 | K185: 21072.83851 | L185: 0 | M185: 0 | N185: 0 | O185: 0 | P185: 0 | Q185: 0 | R185: 0
D186: 71 | E186: Unused | G186: 0 | H186: 0 | I186: 0 | J186: 0 | K186: 0 | L186: 0 | M186: 0 | N186: 0 | O186: 0 | P186: 0 | Q186: 0 | R186: 0
D187: 72 | E187: Other_Remote Parent Planning | G187: 0 | H187: 45314.89001 | I187: 44404.70622 | J187: 43534.15855 | K187: 42680.67784 | L187: 0 | M187: 0 | N187: 0 | O187: 0 | P187: 0 | Q187: 0 | R187: 0
D188: 73 | E188: Other_FTTC DSLAM planning | G188: 0 | H188: 4467853.356 | I188: 4505247.817 | J188: 4547493.429 | K188: 4587804.864 | L188: 0 | M188: 0 | N188: 0 | O188: 0 | P188: 0 | Q188: 0 | R188: 0
D189: 74 | E189: Other_FTTP planning | G189: 0 | H189: 1713459.326 | I189: 1728239.167 | J189: 1744001.964 | K189: 1759908.528 | L189: 0 | M189: 0 | N189: 0 | O189: 0 | P189: 0 | Q189: 0 | R189: 0
D190: 75 | E190: Other_G.fast planning | G190: 0 | H190: 1954866.035 | I190: 1971728.186 | J190: 1989711.779 | K190: 2007841.405 | L190: 0 | M190: 0 | N190: 0 | O190: 0 | P190: 0 | Q190: 0 | R190: 0
D191: 76 | E191: Unused | G191: 0 | H191: 0 | I191: 0 | J191: 0 | K191: 0 | L191: 0 | M191: 0 | N191: 0 | O191: 0 | P191: 0 | Q191: 0 | R191: 0
D192: 77 | E192: Other_OSSBSS_Hardware | G192: 0 | H192: 0 | I192: 0 | J192: 0 | K192: 0 | L192: 0 | M192: 0 | N192: 0 | O192: 0 | P192: 0 | Q192: 0 | R192: 0
D193: 78 | E193: Other_OSSBSS_Software | G193: 0 | H193: 0 | I193: 0 | J193: 0 | K193: 0 | L193: 0 | M193: 0 | N193: 0 | O193: 0 | P193: 0 | Q193: 0 | R193: 0
D194: 79 | E194: Unused | G194: 0 | H194: 0 | I194: 0 | J194: 0 | K194: 0 | L194: 0 | M194: 0 | N194: 0 | O194: 0 | P194: 0 | Q194: 0 | R194: 0
D195: 80 | E195: Unused | G195: 0 | H195: 0 | I195: 0 | J195: 0 | K195: 0 | L195: 0 | M195: 0 | N195: 0 | O195: 0 | P195: 0 | Q195: 0 | R195: 0
D196: 81 | E196: Unused | G196: 0 | H196: 0 | I196: 0 | J196: 0 | K196: 0 | L196: 0 | M196: 0 | N196: 0 | O196: 0 | P196: 0 | Q196: 0 | R196: 0
D197: 82 | E197: Unused | G197: 0 | H197: 0 | I197: 0 | J197: 0 | K197: 0 | L197: 0 | M197: 0 | N197: 0 | O197: 0 | P197: 0 | Q197: 0 | R197: 0
D198: 83 | E198: Other_Software Configuration | G198: 0 | H198: 0 | I198: 0 | J198: 0 | K198: 0 | L198: 0 | M198: 0 | N198: 0 | O198: 0 | P198: 0 | Q198: 0 | R198: 0
D199: 84 | E199: Other_FTTC Engineer PCP Jumpering | G199: 0 | H199: 0 | I199: 0 | J199: 0 | K199: 0 | L199: 0 | M199: 0 | N199: 0 | O199: 0 | P199: 0 | Q199: 0 | R199: 0
D200: 85 | E200: Other_Gfast Engineer PCP Jumpering | G200: 0 | H200: 0 | I200: 0 | J200: 0 | K200: 0 | L200: 0 | M200: 0 | N200: 0 | O200: 0 | P200: 0 | Q200: 0 | R200: 0
D201: 86 | E201: Other_FTTC Premise Visit | G201: 0 | H201: 0 | I201: 0 | J201: 0 | K201: 0 | L201: 0 | M201: 0 | N201: 0 | O201: 0 | P201: 0 | Q201: 0 | R201: 0
D202: 87 | E202: Other_FTTP Premise Visit | G202: 0 | H202: 0 | I202: 0 | J202: 0 | K202: 0 | L202: 0 | M202: 0 | N202: 0 | O202: 0 | P202: 0 | Q202: 0 | R202: 0
D203: 88 | E203: Other_Gfast Premise Visit | G203: 0 | H203: 0 | I203: 0 | J203: 0 | K203: 0 | L203: 0 | M203: 0 | N203: 0 | O203: 0 | P203: 0 | Q203: 0 | R203: 0
D204: 89 | E204: Unused | G204: 0 | H204: 0 | I204: 0 | J204: 0 | K204: 0 | L204: 0 | M204: 0 | N204: 0 | O204: 0 | P204: 0 | Q204: 0 | R204: 0
D205: 90 | E205: Unused | G205: 0 | H205: 0 | I205: 0 | J205: 0 | K205: 0 | L205: 0 | M205: 0 | N205: 0 | O205: 0 | P205: 0 | Q205: 0 | R205: 0
D206: 91 | E206: Other_FTTC Field Interventions | G206: 0 | H206: 0 | I206: 0 | J206: 0 | K206: 0 | L206: 0 | M206: 0 | N206: 0 | O206: 0 | P206: 0 | Q206: 0 | R206: 0
D207: 92 | E207: Unused | G207: 0 | H207: 0 | I207: 0 | J207: 0 | K207: 0 | L207: 0 | M207: 0 | N207: 0 | O207: 0 | P207: 0 | Q207: 0 | R207: 0
D208: 93 | E208: Other_Gfast Field Interventions | G208: 0 | H208: 0 | I208: 0 | J208: 0 | K208: 0 | L208: 0 | M208: 0 | N208: 0 | O208: 0 | P208: 0 | Q208: 0 | R208: 0
D209: 94 | E209: Other_SLG Payments_Rentals | G209: 0 | H209: 0 | I209: 0 | J209: 0 | K209: 0 | L209: 0 | M209: 0 | N209: 0 | O209: 0 | P209: 0 | Q209: 0 | R209: 0
D210: 95 | E210: Other_SLG Payments_Connections | G210: 0 | H210: 0 | I210: 0 | J210: 0 | K210: 0 | L210: 0 | M210: 0 | N210: 0 | O210: 0 | P210: 0 | Q210: 0 | R210: 0
... 308 more rows

Sheet Other_Inputs
A1: Other Inputs
G8: =years_number -> 1 | H8: 2 | I8: 3 | J8: 4 | K8: 5 | L8: 6 | M8: 7 | N8: 8 | O8: 9 | P8: 10 | Q8: 11 | R8: 12
E9: Element | G9: =financial_years -> 2017/18 | H9: 2018/19 | I9: 2019/20 | J9: 2020/21 | K9: 2021/22 | L9: 2022/23 | M9: 2023/24 | N9: 2024/25 | O9: 2025/26 | P9: 2026/27 | Q9: 2027/28 | R9: 2028/29
C12: Openreach broadband lines
E13: Low | G13: 20.15287588 | H13: 20.19791539 | I13: 20.25652594 | J13: 20.31354284 | K13: 20.6013918 | L13: 20.87066498 | M13: 21.11601552 | N13: 21.33414088 | O13: 21.53717053 | P13: 21.72772479 | Q13: 21.90416993 | R13: 22.06963745 | S13: BB_lines_low | T13: Source: | U13: From March 2017 WLA Volumes module, Low BB and SFBB growth
E14: Medium | G14: 20.66309634 | H14: 20.96906494 | I14: 21.29294808 | J14: 21.61901137 | K14: 22.14203139 | L14: 22.63568019 | M14: 23.08998917 | N14: 23.49608393 | O14: 23.87213411 | P14: 24.22020349 | Q14: 24.53870631 | R14: 24.83291315 | S14: BB_lines_med | T14: Source: | U14: From March 2017 WLA Volumes module, Base case
E15: High | G15: 21.26608188 | H15: 21.85632088 | I15: 22.4466119 | J15: 23.02065089 | K15: 23.81764341 | L15: 24.59548714 | M15: 25.34510237 | N15: 26.05854292 | O15: 26.74504458 | P15: 27.40478401 | Q15: 28.03312452 | R15: 28.63239018 | S15: BB_lines_high | T15: Source: | U15: From March 2017 WLA Volumes module, High BB and SFBB growth
C17: Discount factors
E19: CPI Real Inflation rate | G19: =[3]Input_CostTrends!$G$9:$R$9 -> 0.02443392169 | H19: 0.02460671427 | I19: 0.02049746228 | J19: 0.0199968874 | K19: 0.0199968874 | L19: 0.0199968874 | M19: 0.0199968874 | N19: 0.0199968874 | O19: 0.0199968874 | P19: 0.0199968874 | Q19: 0.0199968874 | R19: 0.0199968874 | S19: inflation | T19: Source: | U19: CPI historical and forecasts used. See paragraph 4.25 of the Model Documentation for details
E20: CPI decimalised | G20: =1+G19 -> 1.024433922 | H20: =1+H19 -> 1.024606714 | I20: 1.020497462 | J20: 1.019996887 | K20: 1.019996887 | L20: 1.019996887 | M20: 1.019996887 | N20: 1.019996887 | O20: 1.019996887 | P20: 1.019996887 | Q20: 1.019996887 | R20: 1.019996887
E21: Nominal discount rate | G21: =[3]Input_CostTrends!$G$13:$R$13 -> 0.081 | H21: 0.081 | I21: 0.081 | J21: 0.08 | K21: 0.08 | L21: 0.08 | M21: 0.08 | N21: 0.08 | O21: 0.08 | P21: 0.08 | Q21: 0.08 | R21: 0.08 | S21: nominal_discount_rate
E22: Nominal cumulative discount factor | G22: =1+G21 -> 1.081 | H22: =G22*(1+H21) -> 1.168561 | I22: =H22*(1+I21) -> 1.263214441 | J22: 1.364271596 | K22: 1.473413324 | L22: 1.59128639 | M22: 1.718589301 | N22: 1.856076445 | O22: 2.004562561 | P22: 2.164927566 | Q22: 2.338121771 | R22: 2.525171513 | S22: discount_factor
C24: MEA invesment price trend
G25: MEA_CAPEX__price_trend
D26: 1 | E26: =Element.Names -> FTTC.PCP_Re-shell | G26: =[3]Link_CostDep!$G$523:$R$622 -> -0.01679348186 | H26: -0.01679348186 | I26: -0.01283438986 | J26: -0.0123499273 | K26: -0.0123499273 | L26: -0.0123499273 | M26: -0.0123499273 | N26: -0.0123499273 | O26: -0.0123499273 | P26: -0.0123499273 | Q26: -0.0123499273 | R26: -0.0123499273
D27: 2 | E27: FTTC.PCP_Connector | G27: -0.0240157652 | H27: -0.0240157652 | I27: -0.02008575527 | J27: -0.0196048514 | K27: -0.0196048514 | L27: -0.0196048514 | M27: -0.0196048514 | N27: -0.0196048514 | O27: -0.0196048514 | P27: -0.0196048514 | Q27: -0.0196048514 | R27: -0.0196048514
D28: 3 | E28: FTTC.PCP_Extra faults at PCP/Copper | G28: 0 | H28: 0 | I28: 0 | J28: 0 | K28: 0 | L28: 0 | M28: 0 | N28: 0 | O28: 0 | P28: 0 | Q28: 0 | R28: 0
D29: 4 | E29: FTTC.PCP_Duct to FTTC Cab | G29: -0.008790411135 | H29: -0.008790411135 | I29: -0.004799093054 | J29: -0.004310687078 | K29: -0.004310687078 | L29: -0.004310687078 | M29: -0.004310687078 | N29: -0.004310687078 | O29: -0.004310687078 | P29: -0.004310687078 | Q29: -0.004310687078 | R29: -0.004310687078
D30: 5 | E30: FTTC.PCP_Copper to Cab Type1 | G30: -0.01581749763 | H30: -0.01581749763 | I30: -0.01185447562 | J30: -0.01136953215 | K30: -0.01136953215 | L30: -0.01136953215 | M30: -0.01136953215 | N30: -0.01136953215 | O30: -0.01136953215 | P30: -0.01136953215 | Q30: -0.01136953215 | R30: -0.01136953215
D31: 6 | E31: FTTC.PCP_Copper to Cab Type2 | G31: -0.01581749763 | H31: -0.01581749763 | I31: -0.01185447562 | J31: -0.01136953215 | K31: -0.01136953215 | L31: -0.01136953215 | M31: -0.01136953215 | N31: -0.01136953215 | O31: -0.01136953215 | P31: -0.01136953215 | Q31: -0.01136953215 | R31: -0.01136953215
D32: 7 | E32: Unused | G32: 0 | H32: 0 | I32: 0 | J32: 0 | K32: 0 | L32: 0 | M32: 0 | N32: 0 | O32: 0 | P32: 0 | Q32: 0 | R32: 0
D33: 8 | E33: FTTC.CAB_Power Connection | G33: 0.006532541351 | H33: 0.006532541351 | I33: 0.01058556059 | J33: 0.01108151675 | K33: 0.01108151675 | L33: 0.01108151675 | M33: 0.01108151675 | N33: 0.01108151675 | O33: 0.01108151675 | P33: 0.01108151675 | Q33: 0.01108151675 | R33: 0.01108151675
D34: 9 | E34: FTTC.CAB_Civils (concrete Base) | G34: -0.01679348186 | H34: -0.01679348186 | I34: -0.01283438986 | J34: -0.0123499273 | K34: -0.0123499273 | L34: -0.0123499273 | M34: -0.0123499273 | N34: -0.0123499273 | O34: -0.0123499273 | P34: -0.0123499273 | Q34: -0.0123499273 | R34: -0.0123499273
D35: 10 | E35: FTTC.CAB_Certification Managed Service | G35: 0.006532541351 | H35: 0.006532541351 | I35: 0.01058556059 | J35: 0.01108151675 | K35: 0.01108151675 | L35: 0.01108151675 | M35: 0.01108151675 | N35: 0.01108151675 | O35: 0.01108151675 | P35: 0.01108151675 | Q35: 0.01108151675 | R35: 0.01108151675
D36: 11 | E36: Unused | G36: 0 | H36: 0 | I36: 0 | J36: 0 | K36: 0 | L36: 0 | M36: 0 | N36: 0 | O36: 0 | P36: 0 | Q36: 0 | R36: 0
D37: 12 | E37: FTTC.CAB_Type1 DSLAM Cabinet | G37: -0.0240157652 | H37: -0.0240157652 | I37: -0.02008575527 | J37: -0.0196048514 | K37: -0.0196048514 | L37: -0.0196048514 | M37: -0.0196048514 | N37: -0.0196048514 | O37: -0.0196048514 | P37: -0.0196048514 | Q37: -0.0196048514 | R37: -0.0196048514
D38: 13 | E38: FTTC.CAB_Type1 DSLAM Access Card | G38: -0.04099789088 | H38: -0.04099789088 | I38: -0.03713626313 | J38: -0.03666372698 | K38: -0.03666372698 | L38: -0.03666372698 | M38: -0.03666372698 | N38: -0.03666372698 | O38: -0.03666372698 | P38: -0.03666372698 | Q38: -0.03666372698 | R38: -0.03666372698
D39: 14 | E39: FTTC.CAB_Type1 DSLAM GE port | G39: 0 | H39: 0 | I39: 0 | J39: 0 | K39: 0 | L39: 0 | M39: 0 | N39: 0 | O39: 0 | P39: 0 | Q39: 0 | R39: 0
D40: 15 | E40: FTTC.CAB_Type2 DSLAM Cabinet | G40: -0.0240157652 | H40: -0.0240157652 | I40: -0.02008575527 | J40: -0.0196048514 | K40: -0.0196048514 | L40: -0.0196048514 | M40: -0.0196048514 | N40: -0.0196048514 | O40: -0.0196048514 | P40: -0.0196048514 | Q40: -0.0196048514 | R40: -0.0196048514
D41: 16 | E41: FTTC.CAB_Type2 DSLAM Access Card | G41: -0.03963151295 | H41: -0.03963151295 | I41: -0.03576438319 | J41: -0.03529117377 | K41: -0.03529117377 | L41: -0.03529117377 | M41: -0.03529117377 | N41: -0.03529117377 | O41: -0.03529117377 | P41: -0.03529117377 | Q41: -0.03529117377 | R41: -0.03529117377
D42: 17 | E42: FTTC.CAB_Type2 DSLAM GE port | G42: 0 | H42: 0 | I42: 0 | J42: 0 | K42: 0 | L42: 0 | M42: 0 | N42: 0 | O42: 0 | P42: 0 | Q42: 0 | R42: 0
D43: 18 | E43: LR-VDSL_ADSL migration costs | G43: -0.01327993862 | H43: -0.01327993862 | I43: -0.009306698579 | J43: -0.008820504762 | K43: -0.008820504762 | L43: -0.008820504762 | M43: -0.008820504762 | N43: -0.008820504762 | O43: -0.008820504762 | P43: -0.008820504762 | Q43: -0.008820504762 | R43: -0.008820504762
D44: 19 | E44: LR-VDSL_ADSL migration vols | G44: 0 | H44: 0 | I44: 0 | J44: 0 | K44: 0 | L44: 0 | M44: 0 | N44: 0 | O44: 0 | P44: 0 | Q44: 0 | R44: 0
D45: 20 | E45: Unused | G45: 0 | H45: 0 | I45: 0 | J45: 0 | K45: 0 | L45: 0 | M45: 0 | N45: 0 | O45: 0 | P45: 0 | Q45: 0 | R45: 0
D46: 21 | E46: FTTC.Segment3_Fibre | G46: -0.03894832399 | H46: -0.03894832399 | I46: -0.03507844322 | J46: -0.03460489717 | K46: -0.03460489717 | L46: -0.03460489717 | M46: -0.03460489717 | N46: -0.03460489717 | O46: -0.03460489717 | P46: -0.03460489717 | Q46: -0.03460489717 | R46: -0.03460489717
D47: 22 | E47: FTTC.Segment3_Fibre testing | G47: -0.02382056835 | H47: -0.02382056835 | I47: -0.01988977242 | J47: -0.01940877237 | K47: -0.01940877237 | L47: -0.01940877237 | M47: -0.01940877237 | N47: -0.01940877237 | O47: -0.01940877237 | P47: -0.01940877237 | Q47: -0.01940877237 | R47: -0.01940877237
D48: 23 | E48: FTTC.Segment3_Duct and Pole | G48: -0.008790411135 | H48: -0.008790411135 | I48: -0.004799093054 | J48: -0.004310687078 | K48: -0.004310687078 | L48: -0.004310687078 | M48: -0.004310687078 | N48: -0.004310687078 | O48: -0.004310687078 | P48: -0.004310687078 | Q48: -0.004310687078 | R48: -0.004310687078
D49: 24 | E49: FTTC.Segment3_Track Joint | G49: -0.022356592 | H49: -0.022356592 | I49: -0.01841990106 | J49: -0.01793817964 | K49: -0.01793817964 | L49: -0.01793817964 | M49: -0.01793817964 | N49: -0.01793817964 | O49: -0.01793817964 | P49: -0.01793817964 | Q49: -0.01793817964 | R49: -0.01793817964
D50: 25 | E50: FTTC.Segment3_Aggregation Node | G50: -0.04060749719 | H50: -0.04060749719 | I50: -0.03674429743 | J50: -0.03627156892 | K50: -0.03627156892 | L50: -0.03627156892 | M50: -0.03627156892 | N50: -0.03627156892 | O50: -0.03627156892 | P50: -0.03627156892 | Q50: -0.03627156892 | R50: -0.03627156892
D51: 26 | E51: Unused | G51: 0 | H51: 0 | I51: 0 | J51: 0 | K51: 0 | L51: 0 | M51: 0 | N51: 0 | O51: 0 | P51: 0 | Q51: 0 | R51: 0
D52: 27 | E52: FTTP.Node_Primary Splitter | G52: -0.0240157652 | H52: -0.0240157652 | I52: -0.02008575527 | J52: -0.0196048514 | K52: -0.0196048514 | L52: -0.0196048514 | M52: -0.0196048514 | N52: -0.0196048514 | O52: -0.0196048514 | P52: -0.0196048514 | Q52: -0.0196048514 | R52: -0.0196048514
D53: 28 | E53: FTTP.Node_Primary Tray | G53: -0.0240157652 | H53: -0.0240157652 | I53: -0.02008575527 | J53: -0.0196048514 | K53: -0.0196048514 | L53: -0.0196048514 | M53: -0.0196048514 | N53: -0.0196048514 | O53: -0.0196048514 | P53: -0.0196048514 | Q53: -0.0196048514 | R53: -0.0196048514
D54: 29 | E54: FTTP.Node_Secondary Splitter | G54: -0.0240157652 | H54: -0.0240157652 | I54: -0.02008575527 | J54: -0.0196048514 | K54: -0.0196048514 | L54: -0.0196048514 | M54: -0.0196048514 | N54: -0.0196048514 | O54: -0.0196048514 | P54: -0.0196048514 | Q54: -0.0196048514 | R54: -0.0196048514
D55: 30 | E55: FTTP.Node_Secondary Tray | G55: -0.0240157652 | H55: -0.0240157652 | I55: -0.02008575527 | J55: -0.0196048514 | K55: -0.0196048514 | L55: -0.0196048514 | M55: -0.0196048514 | N55: -0.0196048514 | O55: -0.0196048514 | P55: -0.0196048514 | Q55: -0.0196048514 | R55: -0.0196048514
D56: 31 | E56: FTTP.Node_GPON port | G56: 0 | H56: 0 | I56: 0 | J56: 0 | K56: 0 | L56: 0 | M56: 0 | N56: 0 | O56: 0 | P56: 0 | Q56: 0 | R56: 0
D57: 32 | E57: Unused | G57: 0 | H57: 0 | I57: 0 | J57: 0 | K57: 0 | L57: 0 | M57: 0 | N57: 0 | O57: 0 | P57: 0 | Q57: 0 | R57: 0
D58: 33 | E58: FTTP.Segment3_Fibre | G58: -0.03894832399 | H58: -0.03894832399 | I58: -0.03507844322 | J58: -0.03460489717 | K58: -0.03460489717 | L58: -0.03460489717 | M58: -0.03460489717 | N58: -0.03460489717 | O58: -0.03460489717 | P58: -0.03460489717 | Q58: -0.03460489717 | R58: -0.03460489717
D59: 34 | E59: FTTP.Segment3_Fibre testing | G59: -0.02382056835 | H59: -0.02382056835 | I59: -0.01988977242 | J59: -0.01940877237 | K59: -0.01940877237 | L59: -0.01940877237 | M59: -0.01940877237 | N59: -0.01940877237 | O59: -0.01940877237 | P59: -0.01940877237 | Q59: -0.01940877237 | R59: -0.01940877237
D60: 35 | E60: FTTP.Segment3_Duct and Pole | G60: -0.008790411135 | H60: -0.008790411135 | I60: -0.004799093054 | J60: -0.004310687078 | K60: -0.004310687078 | L60: -0.004310687078 | M60: -0.004310687078 | N60: -0.004310687078 | O60: -0.004310687078 | P60: -0.004310687078 | Q60: -0.004310687078 | R60: -0.004310687078
D61: 36 | E61: FTTP.Segment3_Track Joint | G61: -0.022356592 | H61: -0.022356592 | I61: -0.01841990106 | J61: -0.01793817964 | K61: -0.01793817964 | L61: -0.01793817964 | M61: -0.01793817964 | N61: -0.01793817964 | O61: -0.01793817964 | P61: -0.01793817964 | Q61: -0.01793817964 | R61: -0.01793817964
D62: 37 | E62: FTTP.Segment3_Aggregation Node | G62: -0.04060749719 | H62: -0.04060749719 | I62: -0.03674429743 | J62: -0.03627156892 | K62: -0.03627156892 | L62: -0.03627156892 | M62: -0.03627156892 | N62: -0.03627156892 | O62: -0.03627156892 | P62: -0.03627156892 | Q62: -0.03627156892 | R62: -0.03627156892
D63: 38 | E63: Unused | G63: 0 | H63: 0 | I63: 0 | J63: 0 | K63: 0 | L63: 0 | M63: 0 | N63: 0 | O63: 0 | P63: 0 | Q63: 0 | R63: 0
D64: 39 | E64: FTTP.Segment2_Fibre | G64: -0.03894832399 | H64: -0.03894832399 | I64: -0.03507844322 | J64: -0.03460489717 | K64: -0.03460489717 | L64: -0.03460489717 | M64: -0.03460489717 | N64: -0.03460489717 | O64: -0.03460489717 | P64: -0.03460489717 | Q64: -0.03460489717 | R64: -0.03460489717
D65: 40 | E65: FTTP.Segment2_Fibre testing | G65: -0.02382056835 | H65: -0.02382056835 | I65: -0.01988977242 | J65: -0.01940877237 | K65: -0.01940877237 | L65: -0.01940877237 | M65: -0.01940877237 | N65: -0.01940877237 | O65: -0.01940877237 | P65: -0.01940877237 | Q65: -0.01940877237 | R65: -0.01940877237
D66: 41 | E66: FTTP.Segment2_Duct and Pole | G66: -0.008790411135 | H66: -0.008790411135 | I66: -0.004799093054 | J66: -0.004310687078 | K66: -0.004310687078 | L66: -0.004310687078 | M66: -0.004310687078 | N66: -0.004310687078 | O66: -0.004310687078 | P66: -0.004310687078 | Q66: -0.004310687078 | R66: -0.004310687078
D67: 42 | E67: FTTP.Segment1_Fibre | G67: -0.03894832399 | H67: -0.03894832399 | I67: -0.03507844322 | J67: -0.03460489717 | K67: -0.03460489717 | L67: -0.03460489717 | M67: -0.03460489717 | N67: -0.03460489717 | O67: -0.03460489717 | P67: -0.03460489717 | Q67: -0.03460489717 | R67: -0.03460489717
D68: 43 | E68: Unused | G68: 0 | H68: 0 | I68: 0 | J68: 0 | K68: 0 | L68: 0 | M68: 0 | N68: 0 | O68: 0 | P68: 0 | Q68: 0 | R68: 0
D69: 44 | E69: G.fast.Node_Primary Splitter | G69: -0.0240157652 | H69: -0.0240157652 | I69: -0.02008575527 | J69: -0.0196048514 | K69: -0.0196048514 | L69: -0.0196048514 | M69: -0.0196048514 | N69: -0.0196048514 | O69: -0.0196048514 | P69: -0.0196048514 | Q69: -0.0196048514 | R69: -0.0196048514
D70: 45 | E70: G.fast.Node_Primary Tray | G70: -0.0240157652 | H70: -0.0240157652 | I70: -0.02008575527 | J70: -0.0196048514 | K70: -0.0196048514 | L70: -0.0196048514 | M70: -0.0196048514 | N70: -0.0196048514 | O70: -0.0196048514 | P70: -0.0196048514 | Q70: -0.0196048514 | R70: -0.0196048514
D71: 46 | E71: G.fast.Node_DSLAM | G71: -0.0240157652 | H71: -0.0240157652 | I71: -0.02008575527 | J71: -0.0196048514 | K71: -0.0196048514 | L71: -0.0196048514 | M71: -0.0196048514 | N71: -0.0196048514 | O71: -0.0196048514 | P71: -0.0196048514 | Q71: -0.0196048514 | R71: -0.0196048514
D72: 47 | E72: G.fast.Node_Hybrid Closure | G72: -0.04060749719 | H72: -0.04060749719 | I72: -0.03674429743 | J72: -0.03627156892 | K72: -0.03627156892 | L72: -0.03627156892 | M72: -0.03627156892 | N72: -0.03627156892 | O72: -0.03627156892 | P72: -0.03627156892 | Q72: -0.03627156892 | R72: -0.03627156892
D73: 48 | E73: G.fast.Node_Power_Box | G73: 0.006532541351 | H73: 0.006532541351 | I73: 0.01058556059 | J73: 0.01108151675 | K73: 0.01108151675 | L73: 0.01108151675 | M73: 0.01108151675 | N73: 0.01108151675 | O73: 0.01108151675 | P73: 0.01108151675 | Q73: 0.01108151675 | R73: 0.01108151675
D74: 49 | E74: G.fast.Node_Copper_Intercept_Point | G74: -0.01581749763 | H74: -0.01581749763 | I74: -0.01185447562 | J74: -0.01136953215 | K74: -0.01136953215 | L74: -0.01136953215 | M74: -0.01136953215 | N74: -0.01136953215 | O74: -0.01136953215 | P74: -0.01136953215 | Q74: -0.01136953215 | R74: -0.01136953215
D75: 50 | E75: G.fast.Node_GPON port | G75: 0 | H75: 0 | I75: 0 | J75: 0 | K75: 0 | L75: 0 | M75: 0 | N75: 0 | O75: 0 | P75: 0 | Q75: 0 | R75: 0
D76: 51 | E76: Unused | G76: 0 | H76: 0 | I76: 0 | J76: 0 | K76: 0 | L76: 0 | M76: 0 | N76: 0 | O76: 0 | P76: 0 | Q76: 0 | R76: 0
D77: 52 | E77: G.fast.Segment3_Fibre | G77: -0.03894832399 | H77: -0.03894832399 | I77: -0.03507844322 | J77: -0.03460489717 | K77: -0.03460489717 | L77: -0.03460489717 | M77: -0.03460489717 | N77: -0.03460489717 | O77: -0.03460489717 | P77: -0.03460489717 | Q77: -0.03460489717 | R77: -0.03460489717
D78: 53 | E78: G.fast.Segment3_Fibre testing | G78: -0.02382056835 | H78: -0.02382056835 | I78: -0.01988977242 | J78: -0.01940877237 | K78: -0.01940877237 | L78: -0.01940877237 | M78: -0.01940877237 | N78: -0.01940877237 | O78: -0.01940877237 | P78: -0.01940877237 | Q78: -0.01940877237 | R78: -0.01940877237
D79: 54 | E79: G.fast.Segment3_Duct and Pole | G79: -0.008790411135 | H79: -0.008790411135 | I79: -0.004799093054 | J79: -0.004310687078 | K79: -0.004310687078 | L79: -0.004310687078 | M79: -0.004310687078 | N79: -0.004310687078 | O79: -0.004310687078 | P79: -0.004310687078 | Q79: -0.004310687078 | R79: -0.004310687078
D80: 55 | E80: G.fast.Segment3_Track Joint | G80: -0.022356592 | H80: -0.022356592 | I80: -0.01841990106 | J80: -0.01793817964 | K80: -0.01793817964 | L80: -0.01793817964 | M80: -0.01793817964 | N80: -0.01793817964 | O80: -0.01793817964 | P80: -0.01793817964 | Q80: -0.01793817964 | R80: -0.01793817964
D81: 56 | E81: G.fast.Segment3_Aggregation Node | G81: -0.04060749719 | H81: -0.04060749719 | I81: -0.03674429743 | J81: -0.03627156892 | K81: -0.03627156892 | L81: -0.03627156892 | M81: -0.03627156892 | N81: -0.03627156892 | O81: -0.03627156892 | P81: -0.03627156892 | Q81: -0.03627156892 | R81: -0.03627156892
D82: 57 | E82: Unused | G82: 0 | H82: 0 | I82: 0 | J82: 0 | K82: 0 | L82: 0 | M82: 0 | N82: 0 | O82: 0 | P82: 0 | Q82: 0 | R82: 0
D83: 58 | E83: G.fast.Segment2_Fibre | G83: -0.03894832399 | H83: -0.03894832399 | I83: -0.03507844322 | J83: -0.03460489717 | K83: -0.03460489717 | L83: -0.03460489717 | M83: -0.03460489717 | N83: -0.03460489717 | O83: -0.03460489717 | P83: -0.03460489717 | Q83: -0.03460489717 | R83: -0.03460489717
D84: 59 | E84: G.fast.Segment2_Fibre testing | G84: -0.02382056835 | H84: -0.02382056835 | I84: -0.01988977242 | J84: -0.01940877237 | K84: -0.01940877237 | L84: -0.01940877237 | M84: -0.01940877237 | N84: -0.01940877237 | O84: -0.01940877237 | P84: -0.01940877237 | Q84: -0.01940877237 | R84: -0.01940877237
D85: 60 | E85: G.fast.Segment2_Duct and Pole | G85: -0.008790411135 | H85: -0.008790411135 | I85: -0.004799093054 | J85: -0.004310687078 | K85: -0.004310687078 | L85: -0.004310687078 | M85: -0.004310687078 | N85: -0.004310687078 | O85: -0.004310687078 | P85: -0.004310687078 | Q85: -0.004310687078 | R85: -0.004310687078
D86: 61 | E86: Unused | G86: 0 | H86: 0 | I86: 0 | J86: 0 | K86: 0 | L86: 0 | M86: 0 | N86: 0 | O86: 0 | P86: 0 | Q86: 0 | R86: 0
D87: 62 | E87: Unused | G87: 0 | H87: 0 | I87: 0 | J87: 0 | K87: 0 | L87: 0 | M87: 0 | N87: 0 | O87: 0 | P87: 0 | Q87: 0 | R87: 0
D88: 63 | E88: EXCH_GE OLT Card | G88: -0.05583285125 | H88: -0.05583285125 | I88: -0.05203095965 | J88: -0.05156573324 | K88: -0.05156573324 | L88: -0.05156573324 | M88: -0.05156573324 | N88: -0.05156573324 | O88: -0.05156573324 | P88: -0.05156573324 | Q88: -0.05156573324 | R88: -0.05156573324
D89: 64 | E89: EXCH_GPON OLT Card | G89: -0.05583285125 | H89: -0.05583285125 | I89: -0.05203095965 | J89: -0.05156573324 | K89: -0.05156573324 | L89: -0.05156573324 | M89: -0.05156573324 | N89: -0.05156573324 | O89: -0.05156573324 | P89: -0.05156573324 | Q89: -0.05156573324 | R89: -0.05156573324
D90: 65 | E90: Unused | G90: 0 | H90: 0 | I90: 0 | J90: 0 | K90: 0 | L90: 0 | M90: 0 | N90: 0 | O90: 0 | P90: 0 | Q90: 0 | R90: 0
D91: 66 | E91: EXCH_OCR Subrack | G91: -0.02245419042 | H91: -0.02245419042 | I91: -0.01851789248 | J91: -0.01803621916 | K91: -0.01803621916 | L91: -0.01803621916 | M91: -0.01803621916 | N91: -0.01803621916 | O91: -0.01803621916 | P91: -0.01803621916 | Q91: -0.01803621916 | R91: -0.01803621916
D92: 67 | E92: Unused | G92: 0 | H92: 0 | I92: 0 | J92: 0 | K92: 0 | L92: 0 | M92: 0 | N92: 0 | O92: 0 | P92: 0 | Q92: 0 | R92: 0
D93: 68 | E93: Remote Parent_Fibre | G93: -0.03894832399 | H93: -0.03894832399 | I93: -0.03507844322 | J93: -0.03460489717 | K93: -0.03460489717 | L93: -0.03460489717 | M93: -0.03460489717 | N93: -0.03460489717 | O93: -0.03460489717 | P93: -0.03460489717 | Q93: -0.03460489717 | R93: -0.03460489717
D94: 69 | E94: Remote Parent_Fibre Testing | G94: -0.02382056835 | H94: -0.02382056835 | I94: -0.01988977242 | J94: -0.01940877237 | K94: -0.01940877237 | L94: -0.01940877237 | M94: -0.01940877237 | N94: -0.01940877237 | O94: -0.01940877237 | P94: -0.01940877237 | Q94: -0.01940877237 | R94: -0.01940877237
D95: 70 | E95: Remote Parent_Track Joint | G95: -0.022356592 | H95: -0.022356592 | I95: -0.01841990106 | J95: -0.01793817964 | K95: -0.01793817964 | L95: -0.01793817964 | M95: -0.01793817964 | N95: -0.01793817964 | O95: -0.01793817964 | P95: -0.01793817964 | Q95: -0.01793817964 | R95: -0.01793817964
D96: 71 | E96: Unused | G96: 0 | H96: 0 | I96: 0 | J96: 0 | K96: 0 | L96: 0 | M96: 0 | N96: 0 | O96: 0 | P96: 0 | Q96: 0 | R96: 0
D97: 72 | E97: Other_Remote Parent Planning | G97: -0.0240157652 | H97: -0.0240157652 | I97: -0.02008575527 | J97: -0.0196048514 | K97: -0.0196048514 | L97: -0.0196048514 | M97: -0.0196048514 | N97: -0.0196048514 | O97: -0.0196048514 | P97: -0.0196048514 | Q97: -0.0196048514 | R97: -0.0196048514
D98: 73 | E98: Other_FTTC DSLAM planning | G98: 0.004580572882 | H98: 0.004580572882 | I98: 0.008625732099 | J98: 0.009120726458 | K98: 0.009120726458 | L98: 0.009120726458 | M98: 0.009120726458 | N98: 0.009120726458 | O98: 0.009120726458 | P98: 0.009120726458 | Q98: 0.009120726458 | R98: 0.009120726458
D99: 74 | E99: Other_FTTP planning | G99: 0.004580572882 | H99: 0.004580572882 | I99: 0.008625732099 | J99: 0.009120726458 | K99: 0.009120726458 | L99: 0.009120726458 | M99: 0.009120726458 | N99: 0.009120726458 | O99: 0.009120726458 | P99: 0.009120726458 | Q99: 0.009120726458 | R99: 0.009120726458
D100: 75 | E100: Other_G.fast planning | G100: 0.004580572882 | H100: 0.004580572882 | I100: 0.008625732099 | J100: 0.009120726458 | K100: 0.009120726458 | L100: 0.009120726458 | M100: 0.009120726458 | N100: 0.009120726458 | O100: 0.009120726458 | P100: 0.009120726458 | Q100: 0.009120726458 | R100: 0.009120726458
D101: 76 | E101: Unused | G101: 0 | H101: 0 | I101: 0 | J101: 0 | K101: 0 | L101: 0 | M101: 0 | N101: 0 | O101: 0 | P101: 0 | Q101: 0 | R101: 0
D102: 77 | E102: Other_OSSBSS_Hardware | G102: -0.0240157652 | H102: -0.0240157652 | I102: -0.02008575527 | J102: -0.0196048514 | K102: -0.0196048514 | L102: -0.0196048514 | M102: -0.0196048514 | N102: -0.0196048514 | O102: -0.0196048514 | P102: -0.0196048514 | Q102: -0.0196048514 | R102: -0.0196048514
D103: 78 | E103: Other_OSSBSS_Software | G103: -0.0240157652 | H103: -0.0240157652 | I103: -0.02008575527 | J103: -0.0196048514 | K103: -0.0196048514 | L103: -0.0196048514 | M103: -0.0196048514 | N103: -0.0196048514 | O103: -0.0196048514 | P103: -0.0196048514 | Q103: -0.0196048514 | R103: -0.0196048514
D104: 79 | E104: Unused | G104: 0 | H104: 0 | I104: 0 | J104: 0 | K104: 0 | L104: 0 | M104: 0 | N104: 0 | O104: 0 | P104: 0 | Q104: 0 | R104: 0
D105: 80 | E105: Unused | G105: 0 | H105: 0 | I105: 0 | J105: 0 | K105: 0 | L105: 0 | M105: 0 | N105: 0 | O105: 0 | P105: 0 | Q105: 0 | R105: 0
D106: 81 | E106: Unused | G106: 0 | H106: 0 | I106: 0 | J106: 0 | K106: 0 | L106: 0 | M106: 0 | N106: 0 | O106: 0 | P106: 0 | Q106: 0 | R106: 0
D107: 82 | E107: Unused | G107: 0 | H107: 0 | I107: 0 | J107: 0 | K107: 0 | L107: 0 | M107: 0 | N107: 0 | O107: 0 | P107: 0 | Q107: 0 | R107: 0
D108: 83 | E108: Other_Software Configuration | G108: 0 | H108: 0 | I108: 0 | J108: 0 | K108: 0 | L108: 0 | M108: 0 | N108: 0 | O108: 0 | P108: 0 | Q108: 0 | R108: 0
D109: 84 | E109: Other_FTTC Engineer PCP Jumpering | G109: 0 | H109: 0 | I109: 0 | J109: 0 | K109: 0 | L109: 0 | M109: 0 | N109: 0 | O109: 0 | P109: 0 | Q109: 0 | R109: 0
D110: 85 | E110: Other_Gfast Engineer PCP Jumpering | G110: 0 | H110: 0 | I110: 0 | J110: 0 | K110: 0 | L110: 0 | M110: 0 | N110: 0 | O110: 0 | P110: 0 | Q110: 0 | R110: 0
D111: 86 | E111: Other_FTTC Premise Visit | G111: 0 | H111: 0 | I111: 0 | J111: 0 | K111: 0 | L111: 0 | M111: 0 | N111: 0 | O111: 0 | P111: 0 | Q111: 0 | R111: 0
D112: 87 | E112: Other_FTTP Premise Visit | G112: 0 | H112: 0 | I112: 0 | J112: 0 | K112: 0 | L112: 0 | M112: 0 | N112: 0 | O112: 0 | P112: 0 | Q112: 0 | R112: 0
D113: 88 | E113: Other_Gfast Premise Visit | G113: 0 | H113: 0 | I113: 0 | J113: 0 | K113: 0 | L113: 0 | M113: 0 | N113: 0 | O113: 0 | P113: 0 | Q113: 0 | R113: 0
D114: 89 | E114: Unused | G114: 0 | H114: 0 | I114: 0 | J114: 0 | K114: 0 | L114: 0 | M114: 0 | N114: 0 | O114: 0 | P114: 0 | Q114: 0 | R114: 0
D115: 90 | E115: Unused | G115: 0 | H115: 0 | I115: 0 | J115: 0 | K115: 0 | L115: 0 | M115: 0 | N115: 0 | O115: 0 | P115: 0 | Q115: 0 | R115: 0
D116: 91 | E116: Other_FTTC Field Interventions | G116: 0 | H116: 0 | I116: 0 | J116: 0 | K116: 0 | L116: 0 | M116: 0 | N116: 0 | O116: 0 | P116: 0 | Q116: 0 | R116: 0
D117: 92 | E117: Unused | G117: 0 | H117: 0 | I117: 0 | J117: 0 | K117: 0 | L117: 0 | M117: 0 | N117: 0 | O117: 0 | P117: 0 | Q117: 0 | R117: 0
D118: 93 | E118: Other_Gfast Field Interventions | G118: 0 | H118: 0 | I118: 0 | J118: 0 | K118: 0 | L118: 0 | M118: 0 | N118: 0 | O118: 0 | P118: 0 | Q118: 0 | R118: 0
D119: 94 | E119: Other_SLG Payments_Rentals | G119: 0 | H119: 0 | I119: 0 | J119: 0 | K119: 0 | L119: 0 | M119: 0 | N119: 0 | O119: 0 | P119: 0 | Q119: 0 | R119: 0
D120: 95 | E120: Other_SLG Payments_Connections | G120: 0 | H120: 0 | I120: 0 | J120: 0 | K120: 0 | L120: 0 | M120: 0 | N120: 0 | O120: 0 | P120: 0 | Q120: 0 | R120: 0
D121: 96 | E121: Unused | G121: 0 | H121: 0 | I121: 0 | J121: 0 | K121: 0 | L121: 0 | M121: 0 | N121: 0 | O121: 0 | P121: 0 | Q121: 0 | R121: 0
D122: 97 | E122: Unused | G122: 0 | H122: 0 | I122: 0 | J122: 0 | K122: 0 | L122: 0 | M122: 0 | N122: 0 | O122: 0 | P122: 0 | Q122: 0 | R122: 0
D123: 98 | E123: Other_Cumulo | G123: 0 | H123: 0 | I123: 0 | J123: 0 | K123: 0 | L123: 0 | M123: 0 | N123: 0 | O123: 0 | P123: 0 | Q123: 0 | R123: 0
D124: 99 | E124: Unused | G124: 0 | H124: 0 | I124: 0 | J124: 0 | K124: 0 | L124: 0 | M124: 0 | N124: 0 | O124: 0 | P124: 0 | Q124: 0 | R124: 0
D125: 100 | E125: Unused | G125: 0 | H125: 0 | I125: 0 | J125: 0 | K125: 0 | L125: 0 | M125: 0 | N125: 0 | O125: 0 | P125: 0 | Q125: 0 | R125: 0
C128: MEA operating cost trend
G129: MEA_OPEX__price_trend
D130: 1 | E130: =Element.Names -> FTTC.PCP_Re-shell | G130: =[3]Link_CostDep!$G$624:$R$723 -> 0 | H130: 0 | I130: 0 | J130: 0 | K130: 0 | L130: 0 | M130: 0 | N130: 0 | O130: 0 | P130: 0 | Q130: 0 | R130: 0
D131: 2 | E131: FTTC.PCP_Connector | G131: 0 | H131: 0 | I131: 0 | J131: 0 | K131: 0 | L131: 0 | M131: 0 | N131: 0 | O131: 0 | P131: 0 | Q131: 0 | R131: 0
D132: 3 | E132: FTTC.PCP_Extra faults at PCP/Copper | G132: 0.03952951101 | H132: 0.03952951101 | I132: 0.04472569122 | J132: 0.01078739821 | K132: 0.01078739821 | L132: 0.01078739821 | M132: 0.01078739821 | N132: 0.01078739821 | O132: 0.01078739821 | P132: 0.01078739821 | Q132: 0.01078739821 | R132: 0.01078739821
D133: 4 | E133: FTTC.PCP_Duct to FTTC Cab | G133: 0.03359528409 | H133: 0.03359528409 | I133: 0.03858747448 | J133: 0.01078739821 | K133: 0.01078739821 | L133: 0.01078739821 | M133: 0.01078739821 | N133: 0.01078739821 | O133: 0.01078739821 | P133: 0.01078739821 | Q133: 0.01078739821 | R133: 0.01078739821
D134: 5 | E134: FTTC.PCP_Copper to Cab Type1 | G134: 0.03087972996 | H134: 0.03087972996 | I134: 0.03577857282 | J134: 0.01078739821 | K134: 0.01078739821 | L134: 0.01078739821 | M134: 0.01078739821 | N134: 0.01078739821 | O134: 0.01078739821 | P134: 0.01078739821 | Q134: 0.01078739821 | R134: 0.01078739821
D135: 6 | E135: FTTC.PCP_Copper to Cab Type2 | G135: 0 | H135: 0 | I135: 0 | J135: 0 | K135: 0 | L135: 0 | M135: 0 | N135: 0 | O135: 0 | P135: 0 | Q135: 0 | R135: 0
D136: 7 | E136: Unused | G136: 0 | H136: 0 | I136: 0 | J136: 0 | K136: 0 | L136: 0 | M136: 0 | N136: 0 | O136: 0 | P136: 0 | Q136: 0 | R136: 0
D137: 8 | E137: FTTC.CAB_Power Connection | G137: 0.006239746081 | H137: 0.006239746081 | I137: 0.01029158632 | J137: 0.01078739821 | K137: 0.01078739821 | L137: 0.01078739821 | M137: 0.01078739821 | N137: 0.01078739821 | O137: 0.01078739821 | P137: 0.01078739821 | Q137: 0.01078739821 | R137: 0.01078739821
D138: 9 | E138: FTTC.CAB_Civils (concrete Base) | G138: 0.006239746081 | H138: 0.006239746081 | I138: 0.01029158632 | J138: 0.01078739821 | K138: 0.01078739821 | L138: 0.01078739821 | M138: 0.01078739821 | N138: 0.01078739821 | O138: 0.01078739821 | P138: 0.01078739821 | Q138: 0.01078739821 | R138: 0.01078739821
D139: 10 | E139: FTTC.CAB_Certification Managed Service | G139: 0.006239746081 | H139: 0.006239746081 | I139: 0.01029158632 | J139: 0.01078739821 | K139: 0.01078739821 | L139: 0.01078739821 | M139: 0.01078739821 | N139: 0.01078739821 | O139: 0.01078739821 | P139: 0.01078739821 | Q139: 0.01078739821 | R139: 0.01078739821
D140: 11 | E140: Unused | G140: 0 | H140: 0 | I140: 0 | J140: 0 | K140: 0 | L140: 0 | M140: 0 | N140: 0 | O140: 0 | P140: 0 | Q140: 0 | R140: 0
D141: 12 | E141: FTTC.CAB_Type1 DSLAM Cabinet | G141: -0.01120443926 | H141: -0.01120443926 | I141: 0.05508337364 | J141: 0.0309174434 | K141: 0.0311236652 | L141: 0.03132789077 | M141: 0.03153005895 | N141: 0.03173011161 | O141: 0.03192799372 | P141: 0.03212365335 | Q141: 0.0323170417 | R141: 0.003152976179
D142: 13 | E142: FTTC.CAB_Type1 DSLAM Access Card | G142: 0.018631657 | H142: 0.018631657 | I142: 0.02310947077 | J142: 0.01078739821 | K142: 0.01078739821 | L142: 0.01078739821 | M142: 0.01078739821 | N142: 0.01078739821 | O142: 0.01078739821 | P142: 0.01078739821 | Q142: 0.01078739821 | R142: 0.01078739821
D143: 14 | E143: FTTC.CAB_Type1 DSLAM GE port | G143: 0.006239746081 | H143: 0.006239746081 | I143: 0.01029158632 | J143: 0.01078739821 | K143: 0.01078739821 | L143: 0.01078739821 | M143: 0.01078739821 | N143: 0.01078739821 | O143: 0.01078739821 | P143: 0.01078739821 | Q143: 0.01078739821 | R143: 0.01078739821
D144: 15 | E144: FTTC.CAB_Type2 DSLAM Cabinet | G144: -0.008578138235 | H144: -0.008578138235 | I144: 0.04882850497 | J144: 0.02813215006 | K144: 0.02835730769 | L144: 0.02858149132 | M144: 0.02880460764 | N144: 0.02902656519 | O144: 0.02924727449 | P144: 0.02946664816 | Q144: 0.02968460108 | R144: 0.004069309563
D145: 16 | E145: FTTC.CAB_Type2 DSLAM Access Card | G145: 0.01477059818 | H145: 0.01477059818 | I145: 0.01911568755 | J145: 0.01078739821 | K145: 0.01078739821 | L145: 0.01078739821 | M145: 0.01078739821 | N145: 0.01078739821 | O145: 0.01078739821 | P145: 0.01078739821 | Q145: 0.01078739821 | R145: 0.01078739821
D146: 17 | E146: FTTC.CAB_Type2 DSLAM GE port | G146: 0.006239746081 | H146: 0.006239746081 | I146: 0.01029158632 | J146: 0.01078739821 | K146: 0.01078739821 | L146: 0.01078739821 | M146: 0.01078739821 | N146: 0.01078739821 | O146: 0.01078739821 | P146: 0.01078739821 | Q146: 0.01078739821 | R146: 0.01078739821
D147: 18 | E147: LR-VDSL_ADSL migration costs | G147: 0 | H147: 0 | I147: 0 | J147: 0 | K147: 0 | L147: 0 | M147: 0 | N147: 0 | O147: 0 | P147: 0 | Q147: 0 | R147: 0
D148: 19 | E148: LR-VDSL_ADSL migration vols | G148: 0 | H148: 0 | I148: 0 | J148: 0 | K148: 0 | L148: 0 | M148: 0 | N148: 0 | O148: 0 | P148: 0 | Q148: 0 | R148: 0
D149: 20 | E149: Unused | G149: 0 | H149: 0 | I149: 0 | J149: 0 | K149: 0 | L149: 0 | M149: 0 | N149: 0 | O149: 0 | P149: 0 | Q149: 0 | R149: 0
D150: 21 | E150: FTTC.Segment3_Fibre | G150: 0.02936396027 | H150: 0.02936396027 | I150: 0.03421069835 | J150: 0.01078739821 | K150: 0.01078739821 | L150: 0.01078739821 | M150: 0.01078739821 | N150: 0.01078739821 | O150: 0.01078739821 | P150: 0.01078739821 | Q150: 0.01078739821 | R150: 0.01078739821
D151: 22 | E151: FTTC.Segment3_Fibre testing | G151: 0 | H151: 0 | I151: 0 | J151: 0 | K151: 0 | L151: 0 | M151: 0 | N151: 0 | O151: 0 | P151: 0 | Q151: 0 | R151: 0
D152: 23 | E152: FTTC.Segment3_Duct and Pole | G152: 0.03359528409 | H152: 0.03359528409 | I152: 0.03858747448 | J152: 0.01078739821 | K152: 0.01078739821 | L152: 0.01078739821 | M152: 0.01078739821 | N152: 0.01078739821 | O152: 0.01078739821 | P152: 0.01078739821 | Q152: 0.01078739821 | R152: 0.01078739821
D153: 24 | E153: FTTC.Segment3_Track Joint | G153: 0 | H153: 0 | I153: 0 | J153: 0 | K153: 0 | L153: 0 | M153: 0 | N153: 0 | O153: 0 | P153: 0 | Q153: 0 | R153: 0
D154: 25 | E154: FTTC.Segment3_Aggregation Node | G154: 0 | H154: 0 | I154: 0 | J154: 0 | K154: 0 | L154: 0 | M154: 0 | N154: 0 | O154: 0 | P154: 0 | Q154: 0 | R154: 0
D155: 26 | E155: Unused | G155: 0 | H155: 0 | I155: 0 | J155: 0 | K155: 0 | L155: 0 | M155: 0 | N155: 0 | O155: 0 | P155: 0 | Q155: 0 | R155: 0
D156: 27 | E156: FTTP.Node_Primary Splitter | G156: 0 | H156: 0 | I156: 0 | J156: 0 | K156: 0 | L156: 0 | M156: 0 | N156: 0 | O156: 0 | P156: 0 | Q156: 0 | R156: 0
D157: 28 | E157: FTTP.Node_Primary Tray | G157: 0 | H157: 0 | I157: 0 | J157: 0 | K157: 0 | L157: 0 | M157: 0 | N157: 0 | O157: 0 | P157: 0 | Q157: 0 | R157: 0
D158: 29 | E158: FTTP.Node_Secondary Splitter | G158: 0 | H158: 0 | I158: 0 | J158: 0 | K158: 0 | L158: 0 | M158: 0 | N158: 0 | O158: 0 | P158: 0 | Q158: 0 | R158: 0
D159: 30 | E159: FTTP.Node_Secondary Tray | G159: 0 | H159: 0 | I159: 0 | J159: 0 | K159: 0 | L159: 0 | M159: 0 | N159: 0 | O159: 0 | P159: 0 | Q159: 0 | R159: 0
D160: 31 | E160: FTTP.Node_GPON port | G160: 0.006239746081 | H160: 0.006239746081 | I160: 0.01029158632 | J160: 0.01078739821 | K160: 0.01078739821 | L160: 0.01078739821 | M160: 0.01078739821 | N160: 0.01078739821 | O160: 0.01078739821 | P160: 0.01078739821 | Q160: 0.01078739821 | R160: 0.01078739821
D161: 32 | E161: Unused | G161: 0 | H161: 0 | I161: 0 | J161: 0 | K161: 0 | L161: 0 | M161: 0 | N161: 0 | O161: 0 | P161: 0 | Q161: 0 | R161: 0
D162: 33 | E162: FTTP.Segment3_Fibre | G162: 0.02936396027 | H162: 0.02936396027 | I162: 0.03421069835 | J162: 0.01078739821 | K162: 0.01078739821 | L162: 0.01078739821 | M162: 0.01078739821 | N162: 0.01078739821 | O162: 0.01078739821 | P162: 0.01078739821 | Q162: 0.01078739821 | R162: 0.01078739821
D163: 34 | E163: FTTP.Segment3_Fibre testing | G163: 0 | H163: 0 | I163: 0 | J163: 0 | K163: 0 | L163: 0 | M163: 0 | N163: 0 | O163: 0 | P163: 0 | Q163: 0 | R163: 0
D164: 35 | E164: FTTP.Segment3_Duct and Pole | G164: 0.03359528409 | H164: 0.03359528409 | I164: 0.03858747448 | J164: 0.01078739821 | K164: 0.01078739821 | L164: 0.01078739821 | M164: 0.01078739821 | N164: 0.01078739821 | O164: 0.01078739821 | P164: 0.01078739821 | Q164: 0.01078739821 | R164: 0.01078739821
D165: 36 | E165: FTTP.Segment3_Track Joint | G165: 0 | H165: 0 | I165: 0 | J165: 0 | K165: 0 | L165: 0 | M165: 0 | N165: 0 | O165: 0 | P165: 0 | Q165: 0 | R165: 0
D166: 37 | E166: FTTP.Segment3_Aggregation Node | G166: 0 | H166: 0 | I166: 0 | J166: 0 | K166: 0 | L166: 0 | M166: 0 | N166: 0 | O166: 0 | P166: 0 | Q166: 0 | R166: 0
D167: 38 | E167: Unused | G167: 0 | H167: 0 | I167: 0 | J167: 0 | K167: 0 | L167: 0 | M167: 0 | N167: 0 | O167: 0 | P167: 0 | Q167: 0 | R167: 0
D168: 39 | E168: FTTP.Segment2_Fibre | G168: 0.02936396027 | H168: 0.02936396027 | I168: 0.03421069835 | J168: 0.01078739821 | K168: 0.01078739821 | L168: 0.01078739821 | M168: 0.01078739821 | N168: 0.01078739821 | O168: 0.01078739821 | P168: 0.01078739821 | Q168: 0.01078739821 | R168: 0.01078739821
D169: 40 | E169: FTTP.Segment2_Fibre testing | G169: 0 | H169: 0 | I169: 0 | J169: 0 | K169: 0 | L169: 0 | M169: 0 | N169: 0 | O169: 0 | P169: 0 | Q169: 0 | R169: 0
D170: 41 | E170: FTTP.Segment2_Duct and Pole | G170: 0.03359528409 | H170: 0.03359528409 | I170: 0.03858747448 | J170: 0.01078739821 | K170: 0.01078739821 | L170: 0.01078739821 | M170: 0.01078739821 | N170: 0.01078739821 | O170: 0.01078739821 | P170: 0.01078739821 | Q170: 0.01078739821 | R170: 0.01078739821
D171: 42 | E171: FTTP.Segment1_Fibre | G171: 0.02936396027 | H171: 0.02936396027 | I171: 0.03421069835 | J171: 0.01078739821 | K171: 0.01078739821 | L171: 0.01078739821 | M171: 0.01078739821 | N171: 0.01078739821 | O171: 0.01078739821 | P171: 0.01078739821 | Q171: 0.01078739821 | R171: 0.01078739821
D172: 43 | E172: Unused | G172: 0 | H172: 0 | I172: 0 | J172: 0 | K172: 0 | L172: 0 | M172: 0 | N172: 0 | O172: 0 | P172: 0 | Q172: 0 | R172: 0
D173: 44 | E173: G.fast.Node_Primary Splitter | G173: 0 | H173: 0 | I173: 0 | J173: 0 | K173: 0 | L173: 0 | M173: 0 | N173: 0 | O173: 0 | P173: 0 | Q173: 0 | R173: 0
D174: 45 | E174: G.fast.Node_Primary Tray | G174: 0 | H174: 0 | I174: 0 | J174: 0 | K174: 0 | L174: 0 | M174: 0 | N174: 0 | O174: 0 | P174: 0 | Q174: 0 | R174: 0
D175: 46 | E175: G.fast.Node_DSLAM | G175: -0.01206340375 | H175: -0.01206340375 | I175: 0.05711266104 | J175: 0.03181738657 | K175: 0.03201429771 | L175: 0.03220896454 | M175: 0.03240133961 | N175: 0.03259137863 | O175: 0.03277904046 | P175: 0.03296428704 | Q175: 0.03314708346 | R175: 0.002865013014
D176: 47 | E176: G.fast.Node_Hybrid Closure | G176: 0 | H176: 0 | I176: 0 | J176: 0 | K176: 0 | L176: 0 | M176: 0 | N176: 0 | O176: 0 | P176: 0 | Q176: 0 | R176: 0
D177: 48 | E177: G.fast.Node_Power_Box | G177: 0.006239746081 | H177: 0.006239746081 | I177: 0.01029158632 | J177: 0.01078739821 | K177: 0.01078739821 | L177: 0.01078739821 | M177: 0.01078739821 | N177: 0.01078739821 | O177: 0.01078739821 | P177: 0.01078739821 | Q177: 0.01078739821 | R177: 0.01078739821
D178: 49 | E178: G.fast.Node_Copper_Intercept_Point | G178: 0.03087972996 | H178: 0.03087972996 | I178: 0.03577857282 | J178: 0.01078739821 | K178: 0.01078739821 | L178: 0.01078739821 | M178: 0.01078739821 | N178: 0.01078739821 | O178: 0.01078739821 | P178: 0.01078739821 | Q178: 0.01078739821 | R178: 0.01078739821
D179: 50 | E179: G.fast.Node_GPON port | G179: 0.006239746081 | H179: 0.006239746081 | I179: 0.01029158632 | J179: 0.01078739821 | K179: 0.01078739821 | L179: 0.01078739821 | M179: 0.01078739821 | N179: 0.01078739821 | O179: 0.01078739821 | P179: 0.01078739821 | Q179: 0.01078739821 | R179: 0.01078739821
D180: 51 | E180: Unused | G180: 0 | H180: 0 | I180: 0 | J180: 0 | K180: 0 | L180: 0 | M180: 0 | N180: 0 | O180: 0 | P180: 0 | Q180: 0 | R180: 0
D181: 52 | E181: G.fast.Segment3_Fibre | G181: 0.02936396027 | H181: 0.02936396027 | I181: 0.03421069835 | J181: 0.01078739821 | K181: 0.01078739821 | L181: 0.01078739821 | M181: 0.01078739821 | N181: 0.01078739821 | O181: 0.01078739821 | P181: 0.01078739821 | Q181: 0.01078739821 | R181: 0.01078739821
D182: 53 | E182: G.fast.Segment3_Fibre testing | G182: 0 | H182: 0 | I182: 0 | J182: 0 | K182: 0 | L182: 0 | M182: 0 | N182: 0 | O182: 0 | P182: 0 | Q182: 0 | R182: 0
D183: 54 | E183: G.fast.Segment3_Duct and Pole | G183: 0.03359528409 | H183: 0.03359528409 | I183: 0.03858747448 | J183: 0.01078739821 | K183: 0.01078739821 | L183: 0.01078739821 | M183: 0.01078739821 | N183: 0.01078739821 | O183: 0.01078739821 | P183: 0.01078739821 | Q183: 0.01078739821 | R183: 0.01078739821
D184: 55 | E184: G.fast.Segment3_Track Joint | G184: 0 | H184: 0 | I184: 0 | J184: 0 | K184: 0 | L184: 0 | M184: 0 | N184: 0 | O184: 0 | P184: 0 | Q184: 0 | R184: 0
D185: 56 | E185: G.fast.Segment3_Aggregation Node | G185: 0 | H185: 0 | I185: 0 | J185: 0 | K185: 0 | L185: 0 | M185: 0 | N185: 0 | O185: 0 | P185: 0 | Q185: 0 | R185: 0
D186: 57 | E186: Unused | G186: 0 | H186: 0 | I186: 0 | J186: 0 | K186: 0 | L186: 0 | M186: 0 | N186: 0 | O186: 0 | P186: 0 | Q186: 0 | R186: 0
D187: 58 | E187: G.fast.Segment2_Fibre | G187: 0.02936396027 | H187: 0.02936396027 | I187: 0.03421069835 | J187: 0.01078739821 | K187: 0.01078739821 | L187: 0.01078739821 | M187: 0.01078739821 | N187: 0.01078739821 | O187: 0.01078739821 | P187: 0.01078739821 | Q187: 0.01078739821 | R187: 0.01078739821
D188: 59 | E188: G.fast.Segment2_Fibre testing | G188: 0 | H188: 0 | I188: 0 | J188: 0 | K188: 0 | L188: 0 | M188: 0 | N188: 0 | O188: 0 | P188: 0 | Q188: 0 | R188: 0
D189: 60 | E189: G.fast.Segment2_Duct and Pole | G189: 0.03359528409 | H189: 0.03359528409 | I189: 0.03858747448 | J189: 0.01078739821 | K189: 0.01078739821 | L189: 0.01078739821 | M189: 0.01078739821 | N189: 0.01078739821 | O189: 0.01078739821 | P189: 0.01078739821 | Q189: 0.01078739821 | R189: 0.01078739821
D190: 61 | E190: Unused | G190: 0 | H190: 0 | I190: 0 | J190: 0 | K190: 0 | L190: 0 | M190: 0 | N190: 0 | O190: 0 | P190: 0 | Q190: 0 | R190: 0
D191: 62 | E191: Unused | G191: 0 | H191: 0 | I191: 0 | J191: 0 | K191: 0 | L191: 0 | M191: 0 | N191: 0 | O191: 0 | P191: 0 | Q191: 0 | R191: 0
D192: 63 | E192: EXCH_GE OLT Card | G192: -0.0005921435629 | H192: -0.0005921435629 | I192: 0.003432186602 | J192: 0.00392463217 | K192: 0.00392463217 | L192: 0.00392463217 | M192: 0.00392463217 | N192: 0.00392463217 | O192: 0.00392463217 | P192: 0.00392463217 | Q192: 0.00392463217 | R192: 0.00392463217
D193: 64 | E193: EXCH_GPON OLT Card | G193: -0.0005921435629 | H193: -0.0005921435629 | I193: 0.003432186602 | J193: 0.00392463217 | K193: 0.00392463217 | L193: 0.00392463217 | M193: 0.00392463217 | N193: 0.00392463217 | O193: 0.00392463217 | P193: 0.00392463217 | Q193: 0.00392463217 | R193: 0.00392463217
D194: 65 | E194: Unused | G194: 0 | H194: 0 | I194: 0 | J194: 0 | K194: 0 | L194: 0 | M194: 0 | N194: 0 | O194: 0 | P194: 0 | Q194: 0 | R194: 0
D195: 66 | E195: EXCH_OCR Subrack | G195: 0 | H195: 0 | I195: 0 | J195: 0 | K195: 0 | L195: 0 | M195: 0 | N195: 0 | O195: 0 | P195: 0 | Q195: 0 | R195: 0
D196: 67 | E196: Unused | G196: 0 | H196: 0 | I196: 0 | J196: 0 | K196: 0 | L196: 0 | M196: 0 | N196: 0 | O196: 0 | P196: 0 | Q196: 0 | R196: 0
D197: 68 | E197: Remote Parent_Fibre | G197: 0 | H197: 0 | I197: 0 | J197: 0 | K197: 0 | L197: 0 | M197: 0 | N197: 0 | O197: 0 | P197: 0 | Q197: 0 | R197: 0
D198: 69 | E198: Remote Parent_Fibre Testing | G198: 0 | H198: 0 | I198: 0 | J198: 0 | K198: 0 | L198: 0 | M198: 0 | N198: 0 | O198: 0 | P198: 0 | Q198: 0 | R198: 0
D199: 70 | E199: Remote Parent_Track Joint | G199: 0 | H199: 0 | I199: 0 | J199: 0 | K199: 0 | L199: 0 | M199: 0 | N199: 0 | O199: 0 | P199: 0 | Q199: 0 | R199: 0
D200: 71 | E200: Unused | G200: 0 | H200: 0 | I200: 0 | J200: 0 | K200: 0 | L200: 0 | M200: 0 | N200: 0 | O200: 0 | P200: 0 | Q200: 0 | R200: 0
D201: 72 | E201: Other_Remote Parent Planning | G201: 0 | H201: 0 | I201: 0 | J201: 0 | K201: 0 | L201: 0 | M201: 0 | N201: 0 | O201: 0 | P201: 0 | Q201: 0 | R201: 0
D202: 73 | E202: Other_FTTC DSLAM planning | G202: 0 | H202: 0 | I202: 0 | J202: 0 | K202: 0 | L202: 0 | M202: 0 | N202: 0 | O202: 0 | P202: 0 | Q202: 0 | R202: 0
D203: 74 | E203: Other_FTTP planning | G203: 0 | H203: 0 | I203: 0 | J203: 0 | K203: 0 | L203: 0 | M203: 0 | N203: 0 | O203: 0 | P203: 0 | Q203: 0 | R203: 0
D204: 75 | E204: Other_G.fast planning | G204: 0 | H204: 0 | I204: 0 | J204: 0 | K204: 0 | L204: 0 | M204: 0 | N204: 0 | O204: 0 | P204: 0 | Q204: 0 | R204: 0
D205: 76 | E205: Unused | G205: 0 | H205: 0 | I205: 0 | J205: 0 | K205: 0 | L205: 0 | M205: 0 | N205: 0 | O205: 0 | P205: 0 | Q205: 0 | R205: 0
D206: 77 | E206: Other_OSSBSS_Hardware | G206: 0 | H206: 0 | I206: 0 | J206: 0 | K206: 0 | L206: 0 | M206: 0 | N206: 0 | O206: 0 | P206: 0 | Q206: 0 | R206: 0
D207: 78 | E207: Other_OSSBSS_Software | G207: 0 | H207: 0 | I207: 0 | J207: 0 | K207: 0 | L207: 0 | M207: 0 | N207: 0 | O207: 0 | P207: 0 | Q207: 0 | R207: 0
D208: 79 | E208: Unused | G208: 0 | H208: 0 | I208: 0 | J208: 0 | K208: 0 | L208: 0 | M208: 0 | N208: 0 | O208: 0 | P208: 0 | Q208: 0 | R208: 0
D209: 80 | E209: Unused | G209: 0 | H209: 0 | I209: 0 | J209: 0 | K209: 0 | L209: 0 | M209: 0 | N209: 0 | O209: 0 | P209: 0 | Q209: 0 | R209: 0
D210: 81 | E210: Unused | G210: 0 | H210: 0 | I210: 0 | J210: 0 | K210: 0 | L210: 0 | M210: 0 | N210: 0 | O210: 0 | P210: 0 | Q210: 0 | R210: 0
D211: 82 | E211: Unused | G211: 0 | H211: 0 | I211: 0 | J211: 0 | K211: 0 | L211: 0 | M211: 0 | N211: 0 | O211: 0 | P211: 0 | Q211: 0 | R211: 0
D212: 83 | E212: Other_Software Configuration | G212: 0.006239746081 | H212: 0.006239746081 | I212: 0.01029158632 | J212: 0.01078739821 | K212: 0.01078739821 | L212: 0.01078739821 | M212: 0.01078739821 | N212: 0.01078739821 | O212: 0.01078739821 | P212: 0.01078739821 | Q212: 0.01078739821 | R212: 0.01078739821
D213: 84 | E213: Other_FTTC Engineer PCP Jumpering | G213: 0.006239746081 | H213: 0.006239746081 | I213: 0.01029158632 | J213: 0.01078739821 | K213: 0.01078739821 | L213: 0.01078739821 | M213: 0.01078739821 | N213: 0.01078739821 | O213: 0.01078739821 | P213: 0.01078739821 | Q213: 0.01078739821 | R213: 0.01078739821
... 338 more rows

Sheet Outputs-->

Sheet CCA
A1: CCA
G8: =years_number -> 1 | H8: 2 | I8: 3 | J8: 4 | K8: 5 | L8: 6 | M8: 7 | N8: 8 | O8: 9 | P8: 10 | Q8: 11 | R8: 12
E9: Element | F9: Total | G9: =financial_years -> 2017/18 | H9: 2018/19 | I9: 2019/20 | J9: 2020/21 | K9: 2021/22 | L9: 2022/23 | M9: 2023/24 | N9: 2024/25 | O9: 2025/26 | P9: 2026/27 | Q9: 2027/28 | R9: 2028/29
A11: [Financial Capital Maintenance (FCM) method]
C13: Network elements deployed
D15: 1 | E15: =Element.Names -> FTTC.PCP_Re-shell | G15: =operating_elements -> 0 | H15: 687 | I15: 1374 | J15: 2060 | K15: 2747 | L15: 2747 | M15: 2747 | N15: 2747 | O15: 2747 | P15: 2747 | Q15: 2747 | R15: 2747
D16: 2 | E16: FTTC.PCP_Connector | G16: 0 | H16: 3939 | I16: 7877 | J16: 11816 | K16: 15754 | L16: 15754 | M16: 15754 | N16: 15754 | O16: 15754 | P16: 15754 | Q16: 15754 | R16: 15754
D17: 3 | E17: FTTC.PCP_Extra faults at PCP/Copper | G17: 0 | H17: 354 | I17: 1061 | J17: 2121 | K17: 3535 | L17: 4949 | M17: 6363 | N17: 7777 | O17: 9191 | P17: 10252 | Q17: 10959 | R17: 11312
D18: 4 | E18: FTTC.PCP_Duct to FTTC Cab | G18: 0 | H18: 3939 | I18: 7877 | J18: 11816 | K18: 15754 | L18: 15754 | M18: 15754 | N18: 15754 | O18: 15754 | P18: 15754 | Q18: 15754 | R18: 15754
D19: 5 | E19: FTTC.PCP_Copper to Cab Type1 | G19: 0 | H19: 3265 | I19: 6529 | J19: 9793 | K19: 13057 | L19: 13057 | M19: 13057 | N19: 13057 | O19: 13057 | P19: 13057 | Q19: 13057 | R19: 13057
D20: 6 | E20: FTTC.PCP_Copper to Cab Type2 | G20: 0 | H20: 675 | I20: 1349 | J20: 2023 | K20: 2697 | L20: 2697 | M20: 2697 | N20: 2697 | O20: 2697 | P20: 2697 | Q20: 2697 | R20: 2697
D21: 7 | E21: Unused | G21: 0 | H21: 0 | I21: 0 | J21: 0 | K21: 0 | L21: 0 | M21: 0 | N21: 0 | O21: 0 | P21: 0 | Q21: 0 | R21: 0
D22: 8 | E22: FTTC.CAB_Power Connection | G22: 0 | H22: 3939 | I22: 7877 | J22: 11816 | K22: 15754 | L22: 15754 | M22: 15754 | N22: 15754 | O22: 15754 | P22: 15754 | Q22: 15754 | R22: 15754
D23: 9 | E23: FTTC.CAB_Civils (concrete Base) | G23: 0 | H23: 3939 | I23: 7877 | J23: 11816 | K23: 15754 | L23: 15754 | M23: 15754 | N23: 15754 | O23: 15754 | P23: 15754 | Q23: 15754 | R23: 15754
D24: 10 | E24: FTTC.CAB_Certification Managed Service | G24: 0 | H24: 3939 | I24: 7877 | J24: 11816 | K24: 15754 | L24: 15754 | M24: 15754 | N24: 15754 | O24: 15754 | P24: 15754 | Q24: 15754 | R24: 15754
D25: 11 | E25: Unused | G25: 0 | H25: 0 | I25: 0 | J25: 0 | K25: 0 | L25: 0 | M25: 0 | N25: 0 | O25: 0 | P25: 0 | Q25: 0 | R25: 0
D26: 12 | E26: FTTC.CAB_Type1 DSLAM Cabinet | G26: 0 | H26: 3265 | I26: 6529 | J26: 9793 | K26: 13057 | L26: 13057 | M26: 13057 | N26: 13057 | O26: 13057 | P26: 13057 | Q26: 13057 | R26: 13057
D27: 13 | E27: FTTC.CAB_Type1 DSLAM Access Card | G27: 0 | H27: 7391 | I27: 14781 | J27: 22172 | K27: 29562 | L27: 29562 | M27: 29562 | N27: 29562 | O27: 29562 | P27: 29562 | Q27: 29562 | R27: 29562
D28: 14 | E28: FTTC.CAB_Type1 DSLAM GE port | G28: 0 | H28: 3265 | I28: 6529 | J28: 9793 | K28: 13057 | L28: 13057 | M28: 13057 | N28: 13057 | O28: 13057 | P28: 13057 | Q28: 13057 | R28: 13057
D29: 15 | E29: FTTC.CAB_Type2 DSLAM Cabinet | G29: 0 | H29: 675 | I29: 1349 | J29: 2023 | K29: 2697 | L29: 2697 | M29: 2697 | N29: 2697 | O29: 2697 | P29: 2697 | Q29: 2697 | R29: 2697
D30: 16 | E30: FTTC.CAB_Type2 DSLAM Access Card | G30: 0 | H30: 3012 | I30: 6024 | J30: 9036 | K30: 12047 | L30: 12047 | M30: 12047 | N30: 12047 | O30: 12047 | P30: 12047 | Q30: 12047 | R30: 12047
D31: 17 | E31: FTTC.CAB_Type2 DSLAM GE port | G31: 0 | H31: 675 | I31: 1349 | J31: 2023 | K31: 2697 | L31: 2697 | M31: 2697 | N31: 2697 | O31: 2697 | P31: 2697 | Q31: 2697 | R31: 2697
D32: 18 | E32: LR-VDSL_ADSL migration costs | G32: 0 | H32: 0 | I32: 0 | J32: 0 | K32: 0 | L32: 0 | M32: 0 | N32: 0 | O32: 0 | P32: 0 | Q32: 0 | R32: 0
D33: 19 | E33: LR-VDSL_ADSL migration vols | G33: 0 | H33: 0 | I33: 0 | J33: 0 | K33: 0 | L33: 0 | M33: 0 | N33: 0 | O33: 0 | P33: 0 | Q33: 0 | R33: 0
D34: 20 | E34: Unused | G34: 0 | H34: 0 | I34: 0 | J34: 0 | K34: 0 | L34: 0 | M34: 0 | N34: 0 | O34: 0 | P34: 0 | Q34: 0 | R34: 0
D35: 21 | E35: FTTC.Segment3_Fibre | G35: 0 | H35: 5286186.519 | I35: 10572373.04 | J35: 15858559.56 | K35: 21143340.18 | L35: 21143340.18 | M35: 21143340.18 | N35: 21143340.18 | O35: 21143340.18 | P35: 21143340.18 | Q35: 21143340.18 | R35: 21143340.18
D36: 22 | E36: FTTC.Segment3_Fibre testing | G36: 0 | H36: 3939 | I36: 7877 | J36: 11816 | K36: 15754 | L36: 15754 | M36: 15754 | N36: 15754 | O36: 15754 | P36: 15754 | Q36: 15754 | R36: 15754
D37: 23 | E37: FTTC.Segment3_Duct and Pole | G37: 0 | H37: 5286186.519 | I37: 10572373.04 | J37: 15858559.56 | K37: 21143340.18 | L37: 21143340.18 | M37: 21143340.18 | N37: 21143340.18 | O37: 21143340.18 | P37: 21143340.18 | Q37: 21143340.18 | R37: 21143340.18
D38: 24 | E38: FTTC.Segment3_Track Joint | G38: 0 | H38: 200 | I38: 399 | J38: 598 | K38: 798 | L38: 798 | M38: 798 | N38: 798 | O38: 798 | P38: 798 | Q38: 798 | R38: 798
D39: 25 | E39: FTTC.Segment3_Aggregation Node | G39: 0 | H39: 2639 | I39: 5277 | J39: 7916 | K39: 10554 | L39: 10554 | M39: 10554 | N39: 10554 | O39: 10554 | P39: 10554 | Q39: 10554 | R39: 10554
D40: 26 | E40: Unused | G40: 0 | H40: 0 | I40: 0 | J40: 0 | K40: 0 | L40: 0 | M40: 0 | N40: 0 | O40: 0 | P40: 0 | Q40: 0 | R40: 0
D41: 27 | E41: FTTP.Node_Primary Splitter | G41: 0 | H41: 439 | I41: 878 | J41: 1317 | K41: 1756 | L41: 1756 | M41: 1756 | N41: 1756 | O41: 1756 | P41: 1756 | Q41: 1756 | R41: 1756
D42: 28 | E42: FTTP.Node_Primary Tray | G42: 0 | H42: 1216 | I42: 2431 | J42: 3647 | K42: 4862 | L42: 4862 | M42: 4862 | N42: 4862 | O42: 4862 | P42: 4862 | Q42: 4862 | R42: 4862
D43: 29 | E43: FTTP.Node_Secondary Splitter | G43: 0 | H43: 1216 | I43: 2431 | J43: 3647 | K43: 4862 | L43: 4862 | M43: 4862 | N43: 4862 | O43: 4862 | P43: 4862 | Q43: 4862 | R43: 4862
D44: 30 | E44: FTTP.Node_Secondary Tray | G44: 0 | H44: 4550 | I44: 9100 | J44: 13650 | K44: 18200 | L44: 18200 | M44: 18200 | N44: 18200 | O44: 18200 | P44: 18200 | Q44: 18200 | R44: 18200
D45: 31 | E45: FTTP.Node_GPON port | G45: 0 | H45: 1216 | I45: 2431 | J45: 3647 | K45: 4862 | L45: 4862 | M45: 4862 | N45: 4862 | O45: 4862 | P45: 4862 | Q45: 4862 | R45: 4862
D46: 32 | E46: Unused | G46: 0 | H46: 0 | I46: 0 | J46: 0 | K46: 0 | L46: 0 | M46: 0 | N46: 0 | O46: 0 | P46: 0 | Q46: 0 | R46: 0
D47: 33 | E47: FTTP.Segment3_Fibre | G47: 0 | H47: 590504.9246 | I47: 1178589.747 | J47: 1769094.672 | K47: 2357179.494 | L47: 2357179.494 | M47: 2357179.494 | N47: 2357179.494 | O47: 2357179.494 | P47: 2357179.494 | Q47: 2357179.494 | R47: 2357179.494
D48: 34 | E48: FTTP.Segment3_Fibre testing | G48: 0 | H48: 1216 | I48: 2431 | J48: 3647 | K48: 4862 | L48: 4862 | M48: 4862 | N48: 4862 | O48: 4862 | P48: 4862 | Q48: 4862 | R48: 4862
D49: 35 | E49: FTTP.Segment3_Duct and Pole | G49: 0 | H49: 590504.9246 | I49: 1178589.747 | J49: 1769094.672 | K49: 2357179.494 | L49: 2357179.494 | M49: 2357179.494 | N49: 2357179.494 | O49: 2357179.494 | P49: 2357179.494 | Q49: 2357179.494 | R49: 2357179.494
D50: 36 | E50: FTTP.Segment3_Track Joint | G50: 0 | H50: 13 | I50: 26 | J50: 39 | K50: 52 | L50: 52 | M50: 52 | N50: 52 | O50: 52 | P50: 52 | Q50: 52 | R50: 52
D51: 37 | E51: FTTP.Segment3_Aggregation Node | G51: 0 | H51: 171 | I51: 342 | J51: 513 | K51: 684 | L51: 684 | M51: 684 | N51: 684 | O51: 684 | P51: 684 | Q51: 684 | R51: 684
D52: 38 | E52: Unused | G52: 0 | H52: 0 | I52: 0 | J52: 0 | K52: 0 | L52: 0 | M52: 0 | N52: 0 | O52: 0 | P52: 0 | Q52: 0 | R52: 0
D53: 39 | E53: FTTP.Segment2_Fibre | G53: 0 | H53: 146366.7072 | I53: 292729.6435 | J53: 439096.3507 | K53: 585459.287 | L53: 585459.287 | M53: 585459.287 | N53: 585459.287 | O53: 585459.287 | P53: 585459.287 | Q53: 585459.287 | R53: 585459.287
D54: 40 | E54: FTTP.Segment2_Fibre testing | G54: 0 | H54: 4550 | I54: 9100 | J54: 13650 | K54: 18200 | L54: 18200 | M54: 18200 | N54: 18200 | O54: 18200 | P54: 18200 | Q54: 18200 | R54: 18200
D55: 41 | E55: FTTP.Segment2_Duct and Pole | G55: 0 | H55: 146366.7072 | I55: 292729.6435 | J55: 439096.3507 | K55: 585459.287 | L55: 585459.287 | M55: 585459.287 | N55: 585459.287 | O55: 585459.287 | P55: 585459.287 | Q55: 585459.287 | R55: 585459.287
D56: 42 | E56: FTTP.Segment1_Fibre | G56: 0 | H56: 2110 | I56: 6329 | J56: 12658 | K56: 21097 | L56: 29536 | M56: 37974 | N56: 46413 | O56: 54851 | P56: 61180 | Q56: 65400 | R56: 67509
D57: 43 | E57: Unused | G57: 0 | H57: 0 | I57: 0 | J57: 0 | K57: 0 | L57: 0 | M57: 0 | N57: 0 | O57: 0 | P57: 0 | Q57: 0 | R57: 0
D58: 44 | E58: G.fast.Node_Primary Splitter | G58: 0 | H58: 1906 | I58: 3812 | J58: 5718 | K58: 7624 | L58: 7624 | M58: 7624 | N58: 7624 | O58: 7624 | P58: 7624 | Q58: 7624 | R58: 7624
D59: 45 | E59: G.fast.Node_Primary Tray | G59: 0 | H59: 3910 | I59: 7819 | J59: 11729 | K59: 15638 | L59: 15638 | M59: 15638 | N59: 15638 | O59: 15638 | P59: 15638 | Q59: 15638 | R59: 15638
D60: 46 | E60: G.fast.Node_DSLAM | G60: 0 | H60: 6630 | I60: 13259 | J60: 19888 | K60: 26517 | L60: 26517 | M60: 26517 | N60: 26517 | O60: 26517 | P60: 26517 | Q60: 26517 | R60: 26517
D61: 47 | E61: G.fast.Node_Hybrid Closure | G61: 0 | H61: 6630 | I61: 13259 | J61: 19888 | K61: 26517 | L61: 26517 | M61: 26517 | N61: 26517 | O61: 26517 | P61: 26517 | Q61: 26517 | R61: 26517
D62: 48 | E62: G.fast.Node_Power_Box | G62: 0 | H62: 6630 | I62: 13259 | J62: 19888 | K62: 26517 | L62: 26517 | M62: 26517 | N62: 26517 | O62: 26517 | P62: 26517 | Q62: 26517 | R62: 26517
D63: 49 | E63: G.fast.Node_Copper_Intercept_Point | G63: 0 | H63: 6630 | I63: 13259 | J63: 19888 | K63: 26517 | L63: 26517 | M63: 26517 | N63: 26517 | O63: 26517 | P63: 26517 | Q63: 26517 | R63: 26517
D64: 50 | E64: G.fast.Node_GPON port | G64: 0 | H64: 3910 | I64: 7819 | J64: 11729 | K64: 15638 | L64: 15638 | M64: 15638 | N64: 15638 | O64: 15638 | P64: 15638 | Q64: 15638 | R64: 15638
D65: 51 | E65: Unused | G65: 0 | H65: 0 | I65: 0 | J65: 0 | K65: 0 | L65: 0 | M65: 0 | N65: 0 | O65: 0 | P65: 0 | Q65: 0 | R65: 0
D66: 52 | E66: G.fast.Segment3_Fibre | G66: 0 | H66: 5624590.33 | I66: 11249180.66 | J66: 16873770.99 | K66: 22498361.32 | L66: 22498361.32 | M66: 22498361.32 | N66: 22498361.32 | O66: 22498361.32 | P66: 22498361.32 | Q66: 22498361.32 | R66: 22498361.32
D67: 53 | E67: G.fast.Segment3_Fibre testing | G67: 0 | H67: 3910 | I67: 7819 | J67: 11729 | K67: 15638 | L67: 15638 | M67: 15638 | N67: 15638 | O67: 15638 | P67: 15638 | Q67: 15638 | R67: 15638
D68: 54 | E68: G.fast.Segment3_Duct and Pole | G68: 0 | H68: 5624590.33 | I68: 11249180.66 | J68: 16873770.99 | K68: 22498361.32 | L68: 22498361.32 | M68: 22498361.32 | N68: 22498361.32 | O68: 22498361.32 | P68: 22498361.32 | Q68: 22498361.32 | R68: 22498361.32
D69: 55 | E69: G.fast.Segment3_Track Joint | G69: 0 | H69: 86 | I69: 171 | J69: 256 | K69: 341 | L69: 341 | M69: 341 | N69: 341 | O69: 341 | P69: 341 | Q69: 341 | R69: 341
D70: 56 | E70: G.fast.Segment3_Aggregation Node | G70: 0 | H70: 1126 | I70: 2252 | J70: 3377 | K70: 4503 | L70: 4503 | M70: 4503 | N70: 4503 | O70: 4503 | P70: 4503 | Q70: 4503 | R70: 4503
D71: 57 | E71: Unused | G71: 0 | H71: 0 | I71: 0 | J71: 0 | K71: 0 | L71: 0 | M71: 0 | N71: 0 | O71: 0 | P71: 0 | Q71: 0 | R71: 0
D72: 58 | E72: G.fast.Segment2_Fibre | G72: 0 | H72: 404056.5321 | I72: 808052.1205 | J72: 1212047.709 | K72: 1616043.297 | L72: 1616043.297 | M72: 1616043.297 | N72: 1616043.297 | O72: 1616043.297 | P72: 1616043.297 | Q72: 1616043.297 | R72: 1616043.297
D73: 59 | E73: G.fast.Segment2_Fibre testing | G73: 0 | H73: 6630 | I73: 13259 | J73: 19888 | K73: 26517 | L73: 26517 | M73: 26517 | N73: 26517 | O73: 26517 | P73: 26517 | Q73: 26517 | R73: 26517
D74: 60 | E74: G.fast.Segment2_Duct and Pole | G74: 0 | H74: 404056.5321 | I74: 808052.1205 | J74: 1212047.709 | K74: 1616043.297 | L74: 1616043.297 | M74: 1616043.297 | N74: 1616043.297 | O74: 1616043.297 | P74: 1616043.297 | Q74: 1616043.297 | R74: 1616043.297
D75: 61 | E75: Unused | G75: 0 | H75: 0 | I75: 0 | J75: 0 | K75: 0 | L75: 0 | M75: 0 | N75: 0 | O75: 0 | P75: 0 | Q75: 0 | R75: 0
D76: 62 | E76: Unused | G76: 0 | H76: 0 | I76: 0 | J76: 0 | K76: 0 | L76: 0 | M76: 0 | N76: 0 | O76: 0 | P76: 0 | Q76: 0 | R76: 0
D77: 63 | E77: EXCH_GE OLT Card | G77: 0 | H77: 247 | I77: 493 | J77: 739 | K77: 985 | L77: 985 | M77: 985 | N77: 985 | O77: 985 | P77: 985 | Q77: 985 | R77: 985
D78: 64 | E78: EXCH_GPON OLT Card | G78: 0 | H78: 641 | I78: 1281 | J78: 1921 | K78: 2561 | L78: 2561 | M78: 2561 | N78: 2561 | O78: 2561 | P78: 2561 | Q78: 2561 | R78: 2561
D79: 65 | E79: Unused | G79: 0 | H79: 0 | I79: 0 | J79: 0 | K79: 0 | L79: 0 | M79: 0 | N79: 0 | O79: 0 | P79: 0 | Q79: 0 | R79: 0
D80: 66 | E80: EXCH_OCR Subrack | G80: 0 | H80: 126 | I80: 252 | J80: 378 | K80: 504 | L80: 504 | M80: 504 | N80: 504 | O80: 504 | P80: 504 | Q80: 504 | R80: 504
D81: 67 | E81: Unused | G81: 0 | H81: 0 | I81: 0 | J81: 0 | K81: 0 | L81: 0 | M81: 0 | N81: 0 | O81: 0 | P81: 0 | Q81: 0 | R81: 0
D82: 68 | E82: Remote Parent_Fibre | G82: 0 | H82: 11 | I82: 22 | J82: 33 | K82: 44 | L82: 44 | M82: 44 | N82: 44 | O82: 44 | P82: 44 | Q82: 44 | R82: 44
D83: 69 | E83: Remote Parent_Fibre Testing | G83: 0 | H83: 717 | I83: 1434 | J83: 2151 | K83: 2868 | L83: 2868 | M83: 2868 | N83: 2868 | O83: 2868 | P83: 2868 | Q83: 2868 | R83: 2868
D84: 70 | E84: Remote Parent_Track Joint | G84: 0 | H84: 11 | I84: 22 | J84: 33 | K84: 44 | L84: 44 | M84: 44 | N84: 44 | O84: 44 | P84: 44 | Q84: 44 | R84: 44
D85: 71 | E85: Unused | G85: 0 | H85: 0 | I85: 0 | J85: 0 | K85: 0 | L85: 0 | M85: 0 | N85: 0 | O85: 0 | P85: 0 | Q85: 0 | R85: 0
D86: 72 | E86: Other_Remote Parent Planning | G86: 0 | H86: 11 | I86: 22 | J86: 33 | K86: 44 | L86: 44 | M86: 44 | N86: 44 | O86: 44 | P86: 44 | Q86: 44 | R86: 44
D87: 73 | E87: Other_FTTC DSLAM planning | G87: 0 | H87: 3939 | I87: 7877 | J87: 11816 | K87: 15754 | L87: 15754 | M87: 15754 | N87: 15754 | O87: 15754 | P87: 15754 | Q87: 15754 | R87: 15754
D88: 74 | E88: Other_FTTP planning | G88: 0 | H88: 439 | I88: 878 | J88: 1317 | K88: 1756 | L88: 1756 | M88: 1756 | N88: 1756 | O88: 1756 | P88: 1756 | Q88: 1756 | R88: 1756
D89: 75 | E89: Other_G.fast planning | G89: 0 | H89: 111602 | I89: 223204 | J89: 334806 | K89: 446407 | L89: 446407 | M89: 446407 | N89: 446407 | O89: 446407 | P89: 446407 | Q89: 446407 | R89: 446407
D90: 76 | E90: Unused | G90: 0 | H90: 0 | I90: 0 | J90: 0 | K90: 0 | L90: 0 | M90: 0 | N90: 0 | O90: 0 | P90: 0 | Q90: 0 | R90: 0
D91: 77 | E91: Other_OSSBSS_Hardware | G91: 0 | H91: 0 | I91: 0 | J91: 0 | K91: 0 | L91: 0 | M91: 0 | N91: 0 | O91: 0 | P91: 0 | Q91: 0 | R91: 0
D92: 78 | E92: Other_OSSBSS_Software | G92: 0 | H92: 0 | I92: 0 | J92: 0 | K92: 0 | L92: 0 | M92: 0 | N92: 0 | O92: 0 | P92: 0 | Q92: 0 | R92: 0
D93: 79 | E93: Unused | G93: 0 | H93: 0 | I93: 0 | J93: 0 | K93: 0 | L93: 0 | M93: 0 | N93: 0 | O93: 0 | P93: 0 | Q93: 0 | R93: 0
D94: 80 | E94: Unused | G94: 0 | H94: 0 | I94: 0 | J94: 0 | K94: 0 | L94: 0 | M94: 0 | N94: 0 | O94: 0 | P94: 0 | Q94: 0 | R94: 0
D95: 81 | E95: Unused | G95: 0 | H95: 0 | I95: 0 | J95: 0 | K95: 0 | L95: 0 | M95: 0 | N95: 0 | O95: 0 | P95: 0 | Q95: 0 | R95: 0
D96: 82 | E96: Unused | G96: 0 | H96: 0 | I96: 0 | J96: 0 | K96: 0 | L96: 0 | M96: 0 | N96: 0 | O96: 0 | P96: 0 | Q96: 0 | R96: 0
D97: 83 | E97: Other_Software Configuration | G97: 0 | H97: 35434 | I97: 80624 | J97: 135571 | K97: 200275 | L97: 239303 | M97: 278331 | N97: 317359 | O97: 356386 | P97: 359981 | Q97: 353819 | R97: 337900
D98: 84 | E98: Other_FTTC Engineer PCP Jumpering | G98: 0 | H98: 18468 | I98: 38300 | J98: 59501 | K98: 82072 | L98: 87543 | M98: 93016 | N98: 98490 | O98: 103963 | P98: 90970 | Q98: 76608 | R98: 60880
D99: 85 | E99: Other_Gfast Engineer PCP Jumpering | G99: 0 | H99: 6401 | I99: 13275 | J99: 20623 | K99: 28447 | L99: 30343 | M99: 32240 | N99: 34137 | O99: 36034 | P99: 31531 | Q99: 26553 | R99: 21101
D100: 86 | E100: Other_FTTC Premise Visit | G100: 0 | H100: 647 | I100: 917 | J100: 1098 | K100: 1284 | L100: 1153 | M100: 1089 | N100: 1059 | O100: 1037 | P100: 860 | Q100: 693 | R100: 557
D101: 87 | E101: Other_FTTP Premise Visit | G101: 0 | H101: 2233 | I101: 4632 | J101: 7195 | K101: 9924 | L101: 10586 | M101: 11247 | N101: 11909 | O101: 12571 | P101: 10999 | Q101: 9263 | R101: 7361
D102: 88 | E102: Other_Gfast Premise Visit | G102: 0 | H102: 225 | I102: 318 | J102: 381 | K102: 446 | L102: 400 | M102: 378 | N102: 367 | O102: 360 | P102: 298 | Q102: 241 | R102: 193
D103: 89 | E103: Unused | G103: 0 | H103: 0 | I103: 0 | J103: 0 | K103: 0 | L103: 0 | M103: 0 | N103: 0 | O103: 0 | P103: 0 | Q103: 0 | R103: 0
D104: 90 | E104: Unused | G104: 0 | H104: 0 | I104: 0 | J104: 0 | K104: 0 | L104: 0 | M104: 0 | N104: 0 | O104: 0 | P104: 0 | Q104: 0 | R104: 0
D105: 91 | E105: Other_FTTC Field Interventions | G105: 0 | H105: 374 | I105: 774 | J105: 1202 | K105: 1658 | L105: 1769 | M105: 1879 | N105: 1990 | O105: 2101 | P105: 1838 | Q105: 1548 | R105: 1230
D106: 92 | E106: Unused | G106: 0 | H106: 0 | I106: 0 | J106: 0 | K106: 0 | L106: 0 | M106: 0 | N106: 0 | O106: 0 | P106: 0 | Q106: 0 | R106: 0
D107: 93 | E107: Other_Gfast Field Interventions | G107: 0 | H107: 130 | I107: 269 | J107: 417 | K107: 575 | L107: 613 | M107: 652 | N107: 690 | O107: 728 | P107: 637 | Q107: 537 | R107: 427
D108: 94 | E108: Other_SLG Payments_Rentals | G108: 0 | H108: 25677 | I108: 77030 | J108: 154058 | K108: 256763 | L108: 359469 | M108: 462174 | N108: 564879 | O108: 667583 | P108: 744612 | Q108: 795965 | R108: 821640
D109: 95 | E109: Other_SLG Payments_Connections | G109: 0 | H109: 26232 | I109: 54972 | J109: 85841 | K109: 118714 | L109: 126919 | M109: 135036 | N109: 143110 | O109: 151171 | P109: 132342 | Q109: 111490 | R109: 88592
D110: 96 | E110: Unused | G110: 0 | H110: 0 | I110: 0 | J110: 0 | K110: 0 | L110: 0 | M110: 0 | N110: 0 | O110: 0 | P110: 0 | Q110: 0 | R110: 0
D111: 97 | E111: Unused | G111: 0 | H111: 0 | I111: 0 | J111: 0 | K111: 0 | L111: 0 | M111: 0 | N111: 0 | O111: 0 | P111: 0 | Q111: 0 | R111: 0
D112: 98 | E112: Other_Cumulo | G112: 0 | H112: 25677 | I112: 77030 | J112: 154058 | K112: 256763 | L112: 359469 | M112: 462174 | N112: 564879 | O112: 667583 | P112: 744612 | Q112: 795965 | R112: 821640
D113: 99 | E113: Unused | G113: 0 | H113: 0 | I113: 0 | J113: 0 | K113: 0 | L113: 0 | M113: 0 | N113: 0 | O113: 0 | P113: 0 | Q113: 0 | R113: 0
D114: 100 | E114: Unused | G114: 0 | H114: 0 | I114: 0 | J114: 0 | K114: 0 | L114: 0 | M114: 0 | N114: 0 | O114: 0 | P114: 0 | Q114: 0 | R114: 0
C117: MEA unit investment costs
D119: 1 | E119: =Element.Names -> FTTC.PCP_Re-shell | G119: =starting_CAPEX -> 1930.11976 | H119: =G119*(1+Other_Inputs!H26) -> 1897.706329 | I119: =H119*(1+Other_Inputs!I26) -> 1873.350426 | J119: =I119*(1+Other_Inputs!J26) -> 1850.214685 | K119: =J119*(1+Other_Inputs!K26) -> 1827.364668 | L119: =K119*(1+Other_Inputs!L26) -> 1804.796847 | M119: =L119*(1+Other_Inputs!M26) -> 1782.507737 | N119: =M119*(1+Other_Inputs!N26) -> 1760.493896 | O119: =N119*(1+Other_Inputs!O26) -> 1738.751925 | P119: =O119*(1+Other_Inputs!P26) -> 1717.278465 | Q119: =P119*(1+Other_Inputs!Q26) -> 1696.070201 | R119: =Q119*(1+Other_Inputs!R26) -> 1675.123857
D120: 2 | E120: FTTC.PCP_Connector | G120: 580.675888 | H120: =G120*(1+Other_Inputs!H27) -> 566.7305122 | I120: =H120*(1+Other_Inputs!I27) -> 555.3473018 | J120: =I120*(1+Other_Inputs!J27) -> 544.4598005 | K120: =J120*(1+Other_Inputs!K27) -> 533.785747 | L120: =K120*(1+Other_Inputs!L27) -> 523.3209568 | M120: =L120*(1+Other_Inputs!M27) -> 513.0613272 | N120: =M120*(1+Other_Inputs!N27) -> 503.0028361 | O120: =N120*(1+Other_Inputs!O27) -> 493.1415402 | P120: =O120*(1+Other_Inputs!P27) -> 483.4735736 | Q120: =P120*(1+Other_Inputs!Q27) -> 473.9951461 | R120: =Q120*(1+Other_Inputs!R27) -> 464.7025417
D121: 3 | E121: FTTC.PCP_Extra faults at PCP/Copper | G121: 0 | H121: =G121*(1+Other_Inputs!H28) -> 0 | I121: =H121*(1+Other_Inputs!I28) -> 0 | J121: =I121*(1+Other_Inputs!J28) -> 0 | K121: =J121*(1+Other_Inputs!K28) -> 0 | L121: =K121*(1+Other_Inputs!L28) -> 0 | M121: =L121*(1+Other_Inputs!M28) -> 0 | N121: =M121*(1+Other_Inputs!N28) -> 0 | O121: =N121*(1+Other_Inputs!O28) -> 0 | P121: =O121*(1+Other_Inputs!P28) -> 0 | Q121: =P121*(1+Other_Inputs!Q28) -> 0 | R121: =Q121*(1+Other_Inputs!R28) -> 0
D122: 4 | E122: FTTC.PCP_Duct to FTTC Cab | G122: 545.6713494 | H122: =G122*(1+Other_Inputs!H29) -> 540.8746739 | I122: =H122*(1+Other_Inputs!I29) -> 538.278966 | J122: =I122*(1+Other_Inputs!J29) -> 535.9586138 | K122: =J122*(1+Other_Inputs!K29) -> 533.6482639 | L122: =K122*(1+Other_Inputs!L29) -> 531.3478732 | M122: =L122*(1+Other_Inputs!M29) -> 529.0573988 | N122: =M122*(1+Other_Inputs!N29) -> 526.7767979 | O122: =N122*(1+Other_Inputs!O29) -> 524.506028 | P122: =O122*(1+Other_Inputs!P29) -> 522.2450466 | Q122: =P122*(1+Other_Inputs!Q29) -> 519.9938117 | R122: =Q122*(1+Other_Inputs!R29) -> 517.7522811
D123: 5 | E123: FTTC.PCP_Copper to Cab Type1 | G123: 557.1992631 | H123: =G123*(1+Other_Inputs!H30) -> 548.3857651 | I123: =H123*(1+Other_Inputs!I30) -> 541.8849394 | J123: =I123*(1+Other_Inputs!J30) -> 535.7239611 | K123: =J123*(1+Other_Inputs!K30) -> 529.6330303 | L123: =K123*(1+Other_Inputs!L30) -> 523.6113506 | M123: =L123*(1+Other_Inputs!M30) -> 517.6581345 | N123: =M123*(1+Other_Inputs!N30) -> 511.7726037 | O123: =N123*(1+Other_Inputs!O30) -> 505.9539886 | P123: =O123*(1+Other_Inputs!P30) -> 500.2015285 | Q123: =P123*(1+Other_Inputs!Q30) -> 494.5144711 | R123: =Q123*(1+Other_Inputs!R30) -> 488.8920729
D124: 6 | E124: FTTC.PCP_Copper to Cab Type2 | G124: 1337.592312 | H124: =G124*(1+Other_Inputs!H31) -> 1316.434949 | I124: =H124*(1+Other_Inputs!I31) -> 1300.829303 | J124: =I124*(1+Other_Inputs!J31) -> 1286.039483 | K124: =J124*(1+Other_Inputs!K31) -> 1271.417815 | L124: =K124*(1+Other_Inputs!L31) -> 1256.96239 | M124: =L124*(1+Other_Inputs!M31) -> 1242.671315 | N124: =M124*(1+Other_Inputs!N31) -> 1228.542724 | O124: =N124*(1+Other_Inputs!O31) -> 1214.574768 | P124: =O124*(1+Other_Inputs!P31) -> 1200.765621 | Q124: =P124*(1+Other_Inputs!Q31) -> 1187.113478 | R124: =Q124*(1+Other_Inputs!R31) -> 1173.616553
D125: 7 | E125: Unused | G125: 0 | H125: =G125*(1+Other_Inputs!H32) -> 0 | I125: =H125*(1+Other_Inputs!I32) -> 0 | J125: =I125*(1+Other_Inputs!J32) -> 0 | K125: =J125*(1+Other_Inputs!K32) -> 0 | L125: =K125*(1+Other_Inputs!L32) -> 0 | M125: =L125*(1+Other_Inputs!M32) -> 0 | N125: =M125*(1+Other_Inputs!N32) -> 0 | O125: =N125*(1+Other_Inputs!O32) -> 0 | P125: =O125*(1+Other_Inputs!P32) -> 0 | Q125: =P125*(1+Other_Inputs!Q32) -> 0 | R125: =Q125*(1+Other_Inputs!R32) -> 0
D126: 8 | E126: FTTC.CAB_Power Connection | G126: 3954.06 | H126: =G126*(1+Other_Inputs!H33) -> 3979.89006 | I126: =H126*(1+Other_Inputs!I33) -> 4022.019428 | J126: =I126*(1+Other_Inputs!J33) -> 4066.589504 | K126: =J126*(1+Other_Inputs!K33) -> 4111.653483 | L126: =K126*(1+Other_Inputs!L33) -> 4157.21684 | M126: =L126*(1+Other_Inputs!M33) -> 4203.285108 | N126: =M126*(1+Other_Inputs!N33) -> 4249.863883 | O126: =N126*(1+Other_Inputs!O33) -> 4296.95882 | P126: =O126*(1+Other_Inputs!P33) -> 4344.575642 | Q126: =P126*(1+Other_Inputs!Q33) -> 4392.720129 | R126: =Q126*(1+Other_Inputs!R33) -> 4441.398131
D127: 9 | E127: FTTC.CAB_Civils (concrete Base) | G127: 1445.434794 | H127: =G127*(1+Other_Inputs!H34) -> 1421.160911 | I127: =H127*(1+Other_Inputs!I34) -> 1402.921178 | J127: =I127*(1+Other_Inputs!J34) -> 1385.595203 | K127: =J127*(1+Other_Inputs!K34) -> 1368.483203 | L127: =K127*(1+Other_Inputs!L34) -> 1351.582535 | M127: =L127*(1+Other_Inputs!M34) -> 1334.890589 | N127: =M127*(1+Other_Inputs!N34) -> 1318.404788 | O127: =N127*(1+Other_Inputs!O34) -> 1302.122584 | P127: =O127*(1+Other_Inputs!P34) -> 1286.041465 | Q127: =P127*(1+Other_Inputs!Q34) -> 1270.158946 | R127: =Q127*(1+Other_Inputs!R34) -> 1254.472576
D128: 10 | E128: FTTC.CAB_Certification Managed Service | G128: 829.89339 | H128: =G128*(1+Other_Inputs!H35) -> 835.3147029 | I128: =H128*(1+Other_Inputs!I35) -> 844.1569773 | J128: =I128*(1+Other_Inputs!J35) -> 853.511517 | K128: =J128*(1+Other_Inputs!K35) -> 862.9697191 | L128: =K128*(1+Other_Inputs!L35) -> 872.5327325 | M128: =L128*(1+Other_Inputs!M35) -> 882.2017186 | N128: =M128*(1+Other_Inputs!N35) -> 891.9778518 | O128: =N128*(1+Other_Inputs!O35) -> 901.8623193 | P128: =O128*(1+Other_Inputs!P35) -> 911.8563217 | Q128: =P128*(1+Other_Inputs!Q35) -> 921.9610728 | R128: =Q128*(1+Other_Inputs!R35) -> 932.1777998
D129: 11 | E129: Unused | G129: 0 | H129: =G129*(1+Other_Inputs!H36) -> 0 | I129: =H129*(1+Other_Inputs!I36) -> 0 | J129: =I129*(1+Other_Inputs!J36) -> 0 | K129: =J129*(1+Other_Inputs!K36) -> 0 | L129: =K129*(1+Other_Inputs!L36) -> 0 | M129: =L129*(1+Other_Inputs!M36) -> 0 | N129: =M129*(1+Other_Inputs!N36) -> 0 | O129: =N129*(1+Other_Inputs!O36) -> 0 | P129: =O129*(1+Other_Inputs!P36) -> 0 | Q129: =P129*(1+Other_Inputs!Q36) -> 0 | R129: =Q129*(1+Other_Inputs!R36) -> 0
D130: 12 | E130: FTTC.CAB_Type1 DSLAM Cabinet | G130: 2344.464432 | H130: =G130*(1+Other_Inputs!H37) -> 2288.160325 | I130: =H130*(1+Other_Inputs!I37) -> 2242.200897 | J130: =I130*(1+Other_Inputs!J37) -> 2198.242881 | K130: =J130*(1+Other_Inputs!K37) -> 2155.146656 | L130: =K130*(1+Other_Inputs!L37) -> 2112.895326 | M130: =L130*(1+Other_Inputs!M37) -> 2071.472327 | N130: =M130*(1+Other_Inputs!N37) -> 2030.86142 | O130: =N130*(1+Other_Inputs!O37) -> 1991.046684 | P130: =O130*(1+Other_Inputs!P37) -> 1952.012509 | Q130: =P130*(1+Other_Inputs!Q37) -> 1913.743594 | R130: =Q130*(1+Other_Inputs!R37) -> 1876.224935
D131: 13 | E131: FTTC.CAB_Type1 DSLAM Access Card | G131: 326.4704978 | H131: =G131*(1+Other_Inputs!H38) -> 313.0858959 | I131: =H131*(1+Other_Inputs!I38) -> 301.4590557 | J131: =I131*(1+Other_Inputs!J38) -> 290.4064432 | K131: =J131*(1+Other_Inputs!K38) -> 279.7590606 | L131: =K131*(1+Other_Inputs!L38) -> 269.5020508 | M131: =L131*(1+Other_Inputs!M38) -> 259.6211012 | N131: =M131*(1+Other_Inputs!N38) -> 250.102424 | O131: =N131*(1+Other_Inputs!O38) -> 240.932737 | P131: =O131*(1+Other_Inputs!P38) -> 232.0992449 | Q131: =P131*(1+Other_Inputs!Q38) -> 223.5896216 | R131: =Q131*(1+Other_Inputs!R38) -> 215.3919928
D132: 14 | E132: FTTC.CAB_Type1 DSLAM GE port | G132: 0 | H132: =G132*(1+Other_Inputs!H39) -> 0 | I132: =H132*(1+Other_Inputs!I39) -> 0 | J132: =I132*(1+Other_Inputs!J39) -> 0 | K132: =J132*(1+Other_Inputs!K39) -> 0 | L132: =K132*(1+Other_Inputs!L39) -> 0 | M132: =L132*(1+Other_Inputs!M39) -> 0 | N132: =M132*(1+Other_Inputs!N39) -> 0 | O132: =N132*(1+Other_Inputs!O39) -> 0 | P132: =O132*(1+Other_Inputs!P39) -> 0 | Q132: =P132*(1+Other_Inputs!Q39) -> 0 | R132: =Q132*(1+Other_Inputs!R39) -> 0
D133: 15 | E133: FTTC.CAB_Type2 DSLAM Cabinet | G133: 3351.837911 | H133: =G133*(1+Other_Inputs!H40) -> 3271.340959 | I133: =H133*(1+Other_Inputs!I40) -> 3205.633605 | J133: =I133*(1+Other_Inputs!J40) -> 3142.787634 | K133: =J133*(1+Other_Inputs!K40) -> 3081.17375 | L133: =K133*(1+Other_Inputs!L40) -> 3020.767796 | M133: =L133*(1+Other_Inputs!M40) -> 2961.546092 | N133: =M133*(1+Other_Inputs!N40) -> 2903.485421 | O133: =N133*(1+Other_Inputs!O40) -> 2846.563021 | P133: =O133*(1+Other_Inputs!P40) -> 2790.756576 | Q133: =P133*(1+Other_Inputs!Q40) -> 2736.044208 | R133: =Q133*(1+Other_Inputs!R40) -> 2682.404468
D134: 16 | E134: FTTC.CAB_Type2 DSLAM Access Card | G134: 540.5650366 | H134: =G134*(1+Other_Inputs!H41) -> 519.1416263 | I134: =H134*(1+Other_Inputs!I41) -> 500.5748463 | J134: =I134*(1+Other_Inputs!J41) -> 482.9089724 | K134: =J134*(1+Other_Inputs!K41) -> 465.8665479 | L134: =K134*(1+Other_Inputs!L41) -> 449.4255706 | M134: =L134*(1+Other_Inputs!M41) -> 433.5648147 | N134: =M134*(1+Other_Inputs!N41) -> 418.2638035 | O134: =N134*(1+Other_Inputs!O41) -> 403.5027829 | P134: =O134*(1+Other_Inputs!P41) -> 389.2626961 | Q134: =P134*(1+Other_Inputs!Q41) -> 375.5251586 | R134: =Q134*(1+Other_Inputs!R41) -> 362.272435
D135: 17 | E135: FTTC.CAB_Type2 DSLAM GE port | G135: 0 | H135: =G135*(1+Other_Inputs!H42) -> 0 | I135: =H135*(1+Other_Inputs!I42) -> 0 | J135: =I135*(1+Other_Inputs!J42) -> 0 | K135: =J135*(1+Other_Inputs!K42) -> 0 | L135: =K135*(1+Other_Inputs!L42) -> 0 | M135: =L135*(1+Other_Inputs!M42) -> 0 | N135: =M135*(1+Other_Inputs!N42) -> 0 | O135: =N135*(1+Other_Inputs!O42) -> 0 | P135: =O135*(1+Other_Inputs!P42) -> 0 | Q135: =P135*(1+Other_Inputs!Q42) -> 0 | R135: =Q135*(1+Other_Inputs!R42) -> 0
D136: 18 | E136: LR-VDSL_ADSL migration costs | G136: 65.8 | H136: =G136*(1+Other_Inputs!H43) -> 64.92618004 | I136: =H136*(1+Other_Inputs!I43) -> 64.32193165 | J136: =I136*(1+Other_Inputs!J43) -> 63.75457975 | K136: =J136*(1+Other_Inputs!K43) -> 63.19223217 | L136: =K136*(1+Other_Inputs!L43) -> 62.63484479 | M136: =L136*(1+Other_Inputs!M43) -> 62.08237384 | N136: =M136*(1+Other_Inputs!N43) -> 61.53477597 | O136: =N136*(1+Other_Inputs!O43) -> 60.99200818 | P136: =O136*(1+Other_Inputs!P43) -> 60.45402788 | Q136: =P136*(1+Other_Inputs!Q43) -> 59.92079284 | R136: =Q136*(1+Other_Inputs!R43) -> 59.3922612
D137: 19 | E137: LR-VDSL_ADSL migration vols | G137: 0 | H137: =G137*(1+Other_Inputs!H44) -> 0 | I137: =H137*(1+Other_Inputs!I44) -> 0 | J137: =I137*(1+Other_Inputs!J44) -> 0 | K137: =J137*(1+Other_Inputs!K44) -> 0 | L137: =K137*(1+Other_Inputs!L44) -> 0 | M137: =L137*(1+Other_Inputs!M44) -> 0 | N137: =M137*(1+Other_Inputs!N44) -> 0 | O137: =N137*(1+Other_Inputs!O44) -> 0 | P137: =O137*(1+Other_Inputs!P44) -> 0 | Q137: =P137*(1+Other_Inputs!Q44) -> 0 | R137: =Q137*(1+Other_Inputs!R44) -> 0
D138: 20 | E138: Unused | G138: 0 | H138: =G138*(1+Other_Inputs!H45) -> 0 | I138: =H138*(1+Other_Inputs!I45) -> 0 | J138: =I138*(1+Other_Inputs!J45) -> 0 | K138: =J138*(1+Other_Inputs!K45) -> 0 | L138: =K138*(1+Other_Inputs!L45) -> 0 | M138: =L138*(1+Other_Inputs!M45) -> 0 | N138: =M138*(1+Other_Inputs!N45) -> 0 | O138: =N138*(1+Other_Inputs!O45) -> 0 | P138: =O138*(1+Other_Inputs!P45) -> 0 | Q138: =P138*(1+Other_Inputs!Q45) -> 0 | R138: =Q138*(1+Other_Inputs!R45) -> 0
D139: 21 | E139: FTTC.Segment3_Fibre | G139: 3 | H139: =G139*(1+Other_Inputs!H46) -> 2.883155028 | I139: =H139*(1+Other_Inputs!I46) -> 2.782018438 | J139: =I139*(1+Other_Inputs!J46) -> 2.685746976 | K139: =J139*(1+Other_Inputs!K46) -> 2.592806978 | L139: =K139*(1+Other_Inputs!L46) -> 2.503083159 | M139: =L139*(1+Other_Inputs!M46) -> 2.416464224 | N139: =M139*(1+Other_Inputs!N46) -> 2.332842728 | O139: =N139*(1+Other_Inputs!O46) -> 2.252114945 | P139: =O139*(1+Other_Inputs!P46) -> 2.174180739 | Q139: =P139*(1+Other_Inputs!Q46) -> 2.098943438 | R139: =Q139*(1+Other_Inputs!R46) -> 2.026309716
D140: 22 | E140: FTTC.Segment3_Fibre testing | G140: 11.58726426 | H140: =G140*(1+Other_Inputs!H47) -> 11.31124904 | I140: =H140*(1+Other_Inputs!I47) -> 11.08627087 | J140: =I140*(1+Other_Inputs!J47) -> 10.87109996 | K140: =J140*(1+Other_Inputs!K47) -> 10.66010526 | L140: =K140*(1+Other_Inputs!L47) -> 10.4532057 | M140: =L140*(1+Other_Inputs!M47) -> 10.25032181 | N140: =M140*(1+Other_Inputs!N47) -> 10.05137565 | O140: =N140*(1+Other_Inputs!O47) -> 9.856290787 | P140: =O140*(1+Other_Inputs!P47) -> 9.664992283 | Q140: =P140*(1+Other_Inputs!Q47) -> 9.477406648 | R140: =Q140*(1+Other_Inputs!R47) -> 9.293461819
D141: 23 | E141: FTTC.Segment3_Duct and Pole | G141: 11.4 | H141: =G141*(1+Other_Inputs!H48) -> 11.29978931 | I141: =H141*(1+Other_Inputs!I48) -> 11.24556057 | J141: =I141*(1+Other_Inputs!J48) -> 11.19708448 | K141: =J141*(1+Other_Inputs!K48) -> 11.14881735 | L141: =K141*(1+Other_Inputs!L48) -> 11.10075829 | M141: =L141*(1+Other_Inputs!M48) -> 11.05290639 | N141: =M141*(1+Other_Inputs!N48) -> 11.00526077 | O141: =N141*(1+Other_Inputs!O48) -> 10.95782054 | P141: =O141*(1+Other_Inputs!P48) -> 10.9105848 | Q141: =P141*(1+Other_Inputs!Q48) -> 10.86355269 | R141: =Q141*(1+Other_Inputs!R48) -> 10.81672331
D142: 24 | E142: FTTC.Segment3_Track Joint | G142: 787.7809613 | H142: =G142*(1+Other_Inputs!H49) -> 770.1688637 | I142: =H142*(1+Other_Inputs!I49) -> 755.9824295 | J142: =I142*(1+Other_Inputs!J49) -> 742.4214808 | K142: =J142*(1+Other_Inputs!K49) -> 729.1037909 | L142: =K142*(1+Other_Inputs!L49) -> 716.0249962 | M142: =L142*(1+Other_Inputs!M49) -> 703.1808111 | N142: =M142*(1+Other_Inputs!N49) -> 690.5670274 | O142: =N142*(1+Other_Inputs!O49) -> 678.179512 | P142: =O142*(1+Other_Inputs!P49) -> 666.0142061 | Q142: =P142*(1+Other_Inputs!Q49) -> 654.0671236 | R142: =Q142*(1+Other_Inputs!R49) -> 642.3343501
D143: 25 | E143: FTTC.Segment3_Aggregation Node | G143: 279.0580724 | H143: =G143*(1+Other_Inputs!H50) -> 267.7262225 | I143: =H143*(1+Other_Inputs!I50) -> 257.8888106 | J143: =I143*(1+Other_Inputs!J50) -> 248.5347788 | K143: =J143*(1+Other_Inputs!K50) -> 239.5200324 | L143: =K143*(1+Other_Inputs!L50) -> 230.8322651 | M143: =L143*(1+Other_Inputs!M50) -> 222.4596167 | N143: =M143*(1+Other_Inputs!N50) -> 214.3906573 | O143: =N143*(1+Other_Inputs!O50) -> 206.6143718 | P143: =O143*(1+Other_Inputs!P50) -> 199.1201444 | Q143: =P143*(1+Other_Inputs!Q50) -> 191.8977444 | R143: =Q143*(1+Other_Inputs!R50) -> 184.9373121
D144: 26 | E144: Unused | G144: 0 | H144: =G144*(1+Other_Inputs!H51) -> 0 | I144: =H144*(1+Other_Inputs!I51) -> 0 | J144: =I144*(1+Other_Inputs!J51) -> 0 | K144: =J144*(1+Other_Inputs!K51) -> 0 | L144: =K144*(1+Other_Inputs!L51) -> 0 | M144: =L144*(1+Other_Inputs!M51) -> 0 | N144: =M144*(1+Other_Inputs!N51) -> 0 | O144: =N144*(1+Other_Inputs!O51) -> 0 | P144: =O144*(1+Other_Inputs!P51) -> 0 | Q144: =P144*(1+Other_Inputs!Q51) -> 0 | R144: =Q144*(1+Other_Inputs!R51) -> 0
D145: 27 | E145: FTTP.Node_Primary Splitter | G145: 707.36862 | H145: =G145*(1+Other_Inputs!H52) -> 690.3806213 | I145: =H145*(1+Other_Inputs!I52) -> 676.5138051 | J145: =I145*(1+Other_Inputs!J52) -> 663.2508525 | K145: =J145*(1+Other_Inputs!K52) -> 650.2479181 | L145: =K145*(1+Other_Inputs!L52) -> 637.4999043 | M145: =L145*(1+Other_Inputs!M52) -> 625.0018134 | N145: =M145*(1+Other_Inputs!N52) -> 612.7487457 | O145: =N145*(1+Other_Inputs!O52) -> 600.7358976 | P145: =O145*(1+Other_Inputs!P52) -> 588.9585596 | Q145: =P145*(1+Other_Inputs!Q52) -> 577.4121146 | R145: =Q145*(1+Other_Inputs!R52) -> 566.0920359
D146: 28 | E146: FTTP.Node_Primary Tray | G146: 11.2176 | H146: =G146*(1+Other_Inputs!H53) -> 10.94820075 | I146: =H146*(1+Other_Inputs!I53) -> 10.72829787 | J146: =I146*(1+Other_Inputs!J53) -> 10.51797119 | K146: =J146*(1+Other_Inputs!K53) -> 10.31176792 | L146: =K146*(1+Other_Inputs!L53) -> 10.10960725 | M146: =L146*(1+Other_Inputs!M53) -> 9.911409898 | N146: =M146*(1+Other_Inputs!N53) -> 9.71709818 | O146: =N146*(1+Other_Inputs!O53) -> 9.526595914 | P146: =O146*(1+Other_Inputs!P53) -> 9.339828417 | Q146: =P146*(1+Other_Inputs!Q53) -> 9.156722469 | R146: =Q146*(1+Other_Inputs!R53) -> 8.977206286
D147: 29 | E147: FTTP.Node_Secondary Splitter | G147: 587.63544 | H147: =G147*(1+Other_Inputs!H54) -> 573.5229253 | I147: =H147*(1+Other_Inputs!I54) -> 562.0032841 | J147: =I147*(1+Other_Inputs!J54) -> 550.9852933 | K147: =J147*(1+Other_Inputs!K54) -> 540.1833085 | L147: =K147*(1+Other_Inputs!L54) -> 529.593095 | M147: =L147*(1+Other_Inputs!M54) -> 519.210501 | N147: =M147*(1+Other_Inputs!N54) -> 509.0314563 | O147: =N147*(1+Other_Inputs!O54) -> 499.0519703 | P147: =O147*(1+Other_Inputs!P54) -> 489.2681306 | Q147: =P147*(1+Other_Inputs!Q54) -> 479.6761016 | R147: =Q147*(1+Other_Inputs!R54) -> 470.2721229
D148: 30 | E148: FTTP.Node_Secondary Tray | G148: 15.5952 | H148: =G148*(1+Other_Inputs!H55) -> 15.22066934 | I148: =H148*(1+Other_Inputs!I55) -> 14.9149507 | J148: =I148*(1+Other_Inputs!J55) -> 14.62254531 | K148: =J148*(1+Other_Inputs!K55) -> 14.33587248 | L148: =K148*(1+Other_Inputs!L55) -> 14.05481983 | M148: =L148*(1+Other_Inputs!M55) -> 13.77927718 | N148: =M148*(1+Other_Inputs!N55) -> 13.50913649 | O148: =N148*(1+Other_Inputs!O55) -> 13.24429188 | P148: =O148*(1+Other_Inputs!P55) -> 12.98463951 | Q148: =P148*(1+Other_Inputs!Q55) -> 12.73007758 | R148: =Q148*(1+Other_Inputs!R55) -> 12.4805063
D149: 31 | E149: FTTP.Node_GPON port | G149: 0 | H149: =G149*(1+Other_Inputs!H56) -> 0 | I149: =H149*(1+Other_Inputs!I56) -> 0 | J149: =I149*(1+Other_Inputs!J56) -> 0 | K149: =J149*(1+Other_Inputs!K56) -> 0 | L149: =K149*(1+Other_Inputs!L56) -> 0 | M149: =L149*(1+Other_Inputs!M56) -> 0 | N149: =M149*(1+Other_Inputs!N56) -> 0 | O149: =N149*(1+Other_Inputs!O56) -> 0 | P149: =O149*(1+Other_Inputs!P56) -> 0 | Q149: =P149*(1+Other_Inputs!Q56) -> 0 | R149: =Q149*(1+Other_Inputs!R56) -> 0
D150: 32 | E150: Unused | G150: 0 | H150: =G150*(1+Other_Inputs!H57) -> 0 | I150: =H150*(1+Other_Inputs!I57) -> 0 | J150: =I150*(1+Other_Inputs!J57) -> 0 | K150: =J150*(1+Other_Inputs!K57) -> 0 | L150: =K150*(1+Other_Inputs!L57) -> 0 | M150: =L150*(1+Other_Inputs!M57) -> 0 | N150: =M150*(1+Other_Inputs!N57) -> 0 | O150: =N150*(1+Other_Inputs!O57) -> 0 | P150: =O150*(1+Other_Inputs!P57) -> 0 | Q150: =P150*(1+Other_Inputs!Q57) -> 0 | R150: =Q150*(1+Other_Inputs!R57) -> 0
D151: 33 | E151: FTTP.Segment3_Fibre | G151: 3 | H151: =G151*(1+Other_Inputs!H58) -> 2.883155028 | I151: =H151*(1+Other_Inputs!I58) -> 2.782018438 | J151: =I151*(1+Other_Inputs!J58) -> 2.685746976 | K151: =J151*(1+Other_Inputs!K58) -> 2.592806978 | L151: =K151*(1+Other_Inputs!L58) -> 2.503083159 | M151: =L151*(1+Other_Inputs!M58) -> 2.416464224 | N151: =M151*(1+Other_Inputs!N58) -> 2.332842728 | O151: =N151*(1+Other_Inputs!O58) -> 2.252114945 | P151: =O151*(1+Other_Inputs!P58) -> 2.174180739 | Q151: =P151*(1+Other_Inputs!Q58) -> 2.098943438 | R151: =Q151*(1+Other_Inputs!R58) -> 2.026309716
D152: 34 | E152: FTTP.Segment3_Fibre testing | G152: 11.58726426 | H152: =G152*(1+Other_Inputs!H59) -> 11.31124904 | I152: =H152*(1+Other_Inputs!I59) -> 11.08627087 | J152: =I152*(1+Other_Inputs!J59) -> 10.87109996 | K152: =J152*(1+Other_Inputs!K59) -> 10.66010526 | L152: =K152*(1+Other_Inputs!L59) -> 10.4532057 | M152: =L152*(1+Other_Inputs!M59) -> 10.25032181 | N152: =M152*(1+Other_Inputs!N59) -> 10.05137565 | O152: =N152*(1+Other_Inputs!O59) -> 9.856290787 | P152: =O152*(1+Other_Inputs!P59) -> 9.664992283 | Q152: =P152*(1+Other_Inputs!Q59) -> 9.477406648 | R152: =Q152*(1+Other_Inputs!R59) -> 9.293461819
D153: 35 | E153: FTTP.Segment3_Duct and Pole | G153: 29 | H153: =G153*(1+Other_Inputs!H60) -> 28.74507808 | I153: =H153*(1+Other_Inputs!I60) -> 28.60712777 | J153: =I153*(1+Other_Inputs!J60) -> 28.4838114 | K153: =J153*(1+Other_Inputs!K60) -> 28.3610266 | L153: =K153*(1+Other_Inputs!L60) -> 28.23877109 | M153: =L153*(1+Other_Inputs!M60) -> 28.11704258 | N153: =M153*(1+Other_Inputs!N60) -> 27.99583881 | O153: =N153*(1+Other_Inputs!O60) -> 27.87515751 | P153: =O153*(1+Other_Inputs!P60) -> 27.75499643 | Q153: =P153*(1+Other_Inputs!Q60) -> 27.63535332 | R153: =Q153*(1+Other_Inputs!R60) -> 27.51622596
D154: 36 | E154: FTTP.Segment3_Track Joint | G154: 787.7809613 | H154: =G154*(1+Other_Inputs!H61) -> 770.1688637 | I154: =H154*(1+Other_Inputs!I61) -> 755.9824295 | J154: =I154*(1+Other_Inputs!J61) -> 742.4214808 | K154: =J154*(1+Other_Inputs!K61) -> 729.1037909 | L154: =K154*(1+Other_Inputs!L61) -> 716.0249962 | M154: =L154*(1+Other_Inputs!M61) -> 703.1808111 | N154: =M154*(1+Other_Inputs!N61) -> 690.5670274 | O154: =N154*(1+Other_Inputs!O61) -> 678.179512 | P154: =O154*(1+Other_Inputs!P61) -> 666.0142061 | Q154: =P154*(1+Other_Inputs!Q61) -> 654.0671236 | R154: =Q154*(1+Other_Inputs!R61) -> 642.3343501
D155: 37 | E155: FTTP.Segment3_Aggregation Node | G155: 279.0580724 | H155: =G155*(1+Other_Inputs!H62) -> 267.7262225 | I155: =H155*(1+Other_Inputs!I62) -> 257.8888106 | J155: =I155*(1+Other_Inputs!J62) -> 248.5347788 | K155: =J155*(1+Other_Inputs!K62) -> 239.5200324 | L155: =K155*(1+Other_Inputs!L62) -> 230.8322651 | M155: =L155*(1+Other_Inputs!M62) -> 222.4596167 | N155: =M155*(1+Other_Inputs!N62) -> 214.3906573 | O155: =N155*(1+Other_Inputs!O62) -> 206.6143718 | P155: =O155*(1+Other_Inputs!P62) -> 199.1201444 | Q155: =P155*(1+Other_Inputs!Q62) -> 191.8977444 | R155: =Q155*(1+Other_Inputs!R62) -> 184.9373121
D156: 38 | E156: Unused | G156: 0 | H156: =G156*(1+Other_Inputs!H63) -> 0 | I156: =H156*(1+Other_Inputs!I63) -> 0 | J156: =I156*(1+Other_Inputs!J63) -> 0 | K156: =J156*(1+Other_Inputs!K63) -> 0 | L156: =K156*(1+Other_Inputs!L63) -> 0 | M156: =L156*(1+Other_Inputs!M63) -> 0 | N156: =M156*(1+Other_Inputs!N63) -> 0 | O156: =N156*(1+Other_Inputs!O63) -> 0 | P156: =O156*(1+Other_Inputs!P63) -> 0 | Q156: =P156*(1+Other_Inputs!Q63) -> 0 | R156: =Q156*(1+Other_Inputs!R63) -> 0
D157: 39 | E157: FTTP.Segment2_Fibre | G157: 3 | H157: =G157*(1+Other_Inputs!H64) -> 2.883155028 | I157: =H157*(1+Other_Inputs!I64) -> 2.782018438 | J157: =I157*(1+Other_Inputs!J64) -> 2.685746976 | K157: =J157*(1+Other_Inputs!K64) -> 2.592806978 | L157: =K157*(1+Other_Inputs!L64) -> 2.503083159 | M157: =L157*(1+Other_Inputs!M64) -> 2.416464224 | N157: =M157*(1+Other_Inputs!N64) -> 2.332842728 | O157: =N157*(1+Other_Inputs!O64) -> 2.252114945 | P157: =O157*(1+Other_Inputs!P64) -> 2.174180739 | Q157: =P157*(1+Other_Inputs!Q64) -> 2.098943438 | R157: =Q157*(1+Other_Inputs!R64) -> 2.026309716
D158: 40 | E158: FTTP.Segment2_Fibre testing | G158: 11.58726426 | H158: =G158*(1+Other_Inputs!H65) -> 11.31124904 | I158: =H158*(1+Other_Inputs!I65) -> 11.08627087 | J158: =I158*(1+Other_Inputs!J65) -> 10.87109996 | K158: =J158*(1+Other_Inputs!K65) -> 10.66010526 | L158: =K158*(1+Other_Inputs!L65) -> 10.4532057 | M158: =L158*(1+Other_Inputs!M65) -> 10.25032181 | N158: =M158*(1+Other_Inputs!N65) -> 10.05137565 | O158: =N158*(1+Other_Inputs!O65) -> 9.856290787 | P158: =O158*(1+Other_Inputs!P65) -> 9.664992283 | Q158: =P158*(1+Other_Inputs!Q65) -> 9.477406648 | R158: =Q158*(1+Other_Inputs!R65) -> 9.293461819
D159: 41 | E159: FTTP.Segment2_Duct and Pole | G159: 40 | H159: =G159*(1+Other_Inputs!H66) -> 39.64838355 | I159: =H159*(1+Other_Inputs!I66) -> 39.45810727 | J159: =I159*(1+Other_Inputs!J66) -> 39.28801572 | K159: =J159*(1+Other_Inputs!K66) -> 39.11865738 | L159: =K159*(1+Other_Inputs!L66) -> 38.95002909 | M159: =L159*(1+Other_Inputs!M66) -> 38.7821277 | N159: =M159*(1+Other_Inputs!N66) -> 38.61495008 | O159: =N159*(1+Other_Inputs!O66) -> 38.44849312 | P159: =O159*(1+Other_Inputs!P66) -> 38.28275369 | Q159: =P159*(1+Other_Inputs!Q66) -> 38.11772872 | R159: =Q159*(1+Other_Inputs!R66) -> 37.95341512
D160: 42 | E160: FTTP.Segment1_Fibre | G160: 273.7 | H160: =G160*(1+Other_Inputs!H67) -> 263.0398437 | I160: =H160*(1+Other_Inputs!I67) -> 253.8128155 | J160: =I160*(1+Other_Inputs!J67) -> 245.0296491 | K160: =J160*(1+Other_Inputs!K67) -> 236.5504233 | L160: =K160*(1+Other_Inputs!L67) -> 228.3646202 | M160: =L160*(1+Other_Inputs!M67) -> 220.462086 | N160: =M160*(1+Other_Inputs!N67) -> 212.8330182 | O160: =N160*(1+Other_Inputs!O67) -> 205.4679535 | P160: =O160*(1+Other_Inputs!P67) -> 198.3577561 | Q160: =P160*(1+Other_Inputs!Q67) -> 191.4936064 | R160: =Q160*(1+Other_Inputs!R67) -> 184.8669898
D161: 43 | E161: Unused | G161: 0 | H161: =G161*(1+Other_Inputs!H68) -> 0 | I161: =H161*(1+Other_Inputs!I68) -> 0 | J161: =I161*(1+Other_Inputs!J68) -> 0 | K161: =J161*(1+Other_Inputs!K68) -> 0 | L161: =K161*(1+Other_Inputs!L68) -> 0 | M161: =L161*(1+Other_Inputs!M68) -> 0 | N161: =M161*(1+Other_Inputs!N68) -> 0 | O161: =N161*(1+Other_Inputs!O68) -> 0 | P161: =O161*(1+Other_Inputs!P68) -> 0 | Q161: =P161*(1+Other_Inputs!Q68) -> 0 | R161: =Q161*(1+Other_Inputs!R68) -> 0
D162: 44 | E162: G.fast.Node_Primary Splitter | G162: 707.36862 | H162: =G162*(1+Other_Inputs!H69) -> 690.3806213 | I162: =H162*(1+Other_Inputs!I69) -> 676.5138051 | J162: =I162*(1+Other_Inputs!J69) -> 663.2508525 | K162: =J162*(1+Other_Inputs!K69) -> 650.2479181 | L162: =K162*(1+Other_Inputs!L69) -> 637.4999043 | M162: =L162*(1+Other_Inputs!M69) -> 625.0018134 | N162: =M162*(1+Other_Inputs!N69) -> 612.7487457 | O162: =N162*(1+Other_Inputs!O69) -> 600.7358976 | P162: =O162*(1+Other_Inputs!P69) -> 588.9585596 | Q162: =P162*(1+Other_Inputs!Q69) -> 577.4121146 | R162: =Q162*(1+Other_Inputs!R69) -> 566.0920359
D163: 45 | E163: G.fast.Node_Primary Tray | G163: 11.2176 | H163: =G163*(1+Other_Inputs!H70) -> 10.94820075 | I163: =H163*(1+Other_Inputs!I70) -> 10.72829787 | J163: =I163*(1+Other_Inputs!J70) -> 10.51797119 | K163: =J163*(1+Other_Inputs!K70) -> 10.31176792 | L163: =K163*(1+Other_Inputs!L70) -> 10.10960725 | M163: =L163*(1+Other_Inputs!M70) -> 9.911409898 | N163: =M163*(1+Other_Inputs!N70) -> 9.71709818 | O163: =N163*(1+Other_Inputs!O70) -> 9.526595914 | P163: =O163*(1+Other_Inputs!P70) -> 9.339828417 | Q163: =P163*(1+Other_Inputs!Q70) -> 9.156722469 | R163: =Q163*(1+Other_Inputs!R70) -> 8.977206286
D164: 46 | E164: G.fast.Node_DSLAM | G164: 1553.16 | H164: =G164*(1+Other_Inputs!H71) -> 1515.859674 | I164: =H164*(1+Other_Inputs!I71) -> 1485.412488 | J164: =I164*(1+Other_Inputs!J71) -> 1456.291197 | K164: =J164*(1+Other_Inputs!K71) -> 1427.740824 | L164: =K164*(1+Other_Inputs!L71) -> 1399.750177 | M164: =L164*(1+Other_Inputs!M71) -> 1372.308283 | N164: =M164*(1+Other_Inputs!N71) -> 1345.404383 | O164: =N164*(1+Other_Inputs!O71) -> 1319.02793 | P164: =O164*(1+Other_Inputs!P71) -> 1293.168584 | Q164: =P164*(1+Other_Inputs!Q71) -> 1267.816206 | R164: =Q164*(1+Other_Inputs!R71) -> 1242.960857
D165: 47 | E165: G.fast.Node_Hybrid Closure | G165: 536.3463 | H165: =G165*(1+Other_Inputs!H72) -> 514.5666191 | I165: =H165*(1+Other_Inputs!I72) -> 495.6592302 | J165: =I165*(1+Other_Inputs!J72) -> 477.6808923 | K165: =J165*(1+Other_Inputs!K72) -> 460.3546569 | L165: =K165*(1+Other_Inputs!L72) -> 443.6568712 | M165: =L165*(1+Other_Inputs!M72) -> 427.5647404 | N165: =M165*(1+Other_Inputs!N72) -> 412.0562965 | O165: =N165*(1+Other_Inputs!O72) -> 397.1103681 | P165: =O165*(1+Other_Inputs!P72) -> 382.706552 | Q165: =P165*(1+Other_Inputs!Q72) -> 368.825185 | R165: =Q165*(1+Other_Inputs!R72) -> 355.4473168
D166: 48 | E166: G.fast.Node_Power_Box | G166: 932.5792 | H166: =G166*(1+Other_Inputs!H73) -> 938.6713122 | I166: =H166*(1+Other_Inputs!I73) -> 948.6076742 | J166: =I166*(1+Other_Inputs!J73) -> 959.1196861 | K166: =J166*(1+Other_Inputs!K73) -> 969.7481869 | L166: =K166*(1+Other_Inputs!L73) -> 980.4944677 | M166: =L166*(1+Other_Inputs!M73) -> 991.3598336 | N166: =M166*(1+Other_Inputs!N73) -> 1002.345604 | O166: =N166*(1+Other_Inputs!O73) -> 1013.453114 | P166: =O166*(1+Other_Inputs!P73) -> 1024.683711 | Q166: =P166*(1+Other_Inputs!Q73) -> 1036.038761 | R166: =Q166*(1+Other_Inputs!R73) -> 1047.519642
D167: 49 | E167: G.fast.Node_Copper_Intercept_Point | G167: 375.7104 | H167: =G167*(1+Other_Inputs!H74) -> 369.7676016 | I167: =H167*(1+Other_Inputs!I74) -> 365.3842006 | J167: =I167*(1+Other_Inputs!J74) -> 361.2299532 | K167: =J167*(1+Other_Inputs!K74) -> 357.1229376 | L167: =K167*(1+Other_Inputs!L74) -> 353.0626169 | M167: =L167*(1+Other_Inputs!M74) -> 349.0484601 | N167: =M167*(1+Other_Inputs!N74) -> 345.0799425 | O167: =N167*(1+Other_Inputs!O74) -> 341.156545 | P167: =O167*(1+Other_Inputs!P74) -> 337.2777547 | Q167: =P167*(1+Other_Inputs!Q74) -> 333.4430644 | R167: =Q167*(1+Other_Inputs!R74) -> 329.6519727
D168: 50 | E168: G.fast.Node_GPON port | G168: 0 | H168: =G168*(1+Other_Inputs!H75) -> 0 | I168: =H168*(1+Other_Inputs!I75) -> 0 | J168: =I168*(1+Other_Inputs!J75) -> 0 | K168: =J168*(1+Other_Inputs!K75) -> 0 | L168: =K168*(1+Other_Inputs!L75) -> 0 | M168: =L168*(1+Other_Inputs!M75) -> 0 | N168: =M168*(1+Other_Inputs!N75) -> 0 | O168: =N168*(1+Other_Inputs!O75) -> 0 | P168: =O168*(1+Other_Inputs!P75) -> 0 | Q168: =P168*(1+Other_Inputs!Q75) -> 0 | R168: =Q168*(1+Other_Inputs!R75) -> 0
D169: 51 | E169: Unused | G169: 0 | H169: =G169*(1+Other_Inputs!H76) -> 0 | I169: =H169*(1+Other_Inputs!I76) -> 0 | J169: =I169*(1+Other_Inputs!J76) -> 0 | K169: =J169*(1+Other_Inputs!K76) -> 0 | L169: =K169*(1+Other_Inputs!L76) -> 0 | M169: =L169*(1+Other_Inputs!M76) -> 0 | N169: =M169*(1+Other_Inputs!N76) -> 0 | O169: =N169*(1+Other_Inputs!O76) -> 0 | P169: =O169*(1+Other_Inputs!P76) -> 0 | Q169: =P169*(1+Other_Inputs!Q76) -> 0 | R169: =Q169*(1+Other_Inputs!R76) -> 0
D170: 52 | E170: G.fast.Segment3_Fibre | G170: 3 | H170: =G170*(1+Other_Inputs!H77) -> 2.883155028 | I170: =H170*(1+Other_Inputs!I77) -> 2.782018438 | J170: =I170*(1+Other_Inputs!J77) -> 2.685746976 | K170: =J170*(1+Other_Inputs!K77) -> 2.592806978 | L170: =K170*(1+Other_Inputs!L77) -> 2.503083159 | M170: =L170*(1+Other_Inputs!M77) -> 2.416464224 | N170: =M170*(1+Other_Inputs!N77) -> 2.332842728 | O170: =N170*(1+Other_Inputs!O77) -> 2.252114945 | P170: =O170*(1+Other_Inputs!P77) -> 2.174180739 | Q170: =P170*(1+Other_Inputs!Q77) -> 2.098943438 | R170: =Q170*(1+Other_Inputs!R77) -> 2.026309716
D171: 53 | E171: G.fast.Segment3_Fibre testing | G171: 11.58726426 | H171: =G171*(1+Other_Inputs!H78) -> 11.31124904 | I171: =H171*(1+Other_Inputs!I78) -> 11.08627087 | J171: =I171*(1+Other_Inputs!J78) -> 10.87109996 | K171: =J171*(1+Other_Inputs!K78) -> 10.66010526 | L171: =K171*(1+Other_Inputs!L78) -> 10.4532057 | M171: =L171*(1+Other_Inputs!M78) -> 10.25032181 | N171: =M171*(1+Other_Inputs!N78) -> 10.05137565 | O171: =N171*(1+Other_Inputs!O78) -> 9.856290787 | P171: =O171*(1+Other_Inputs!P78) -> 9.664992283 | Q171: =P171*(1+Other_Inputs!Q78) -> 9.477406648 | R171: =Q171*(1+Other_Inputs!R78) -> 9.293461819
D172: 54 | E172: G.fast.Segment3_Duct and Pole | G172: 11.4 | H172: =G172*(1+Other_Inputs!H79) -> 11.29978931 | I172: =H172*(1+Other_Inputs!I79) -> 11.24556057 | J172: =I172*(1+Other_Inputs!J79) -> 11.19708448 | K172: =J172*(1+Other_Inputs!K79) -> 11.14881735 | L172: =K172*(1+Other_Inputs!L79) -> 11.10075829 | M172: =L172*(1+Other_Inputs!M79) -> 11.05290639 | N172: =M172*(1+Other_Inputs!N79) -> 11.00526077 | O172: =N172*(1+Other_Inputs!O79) -> 10.95782054 | P172: =O172*(1+Other_Inputs!P79) -> 10.9105848 | Q172: =P172*(1+Other_Inputs!Q79) -> 10.86355269 | R172: =Q172*(1+Other_Inputs!R79) -> 10.81672331
D173: 55 | E173: G.fast.Segment3_Track Joint | G173: 787.7809613 | H173: =G173*(1+Other_Inputs!H80) -> 770.1688637 | I173: =H173*(1+Other_Inputs!I80) -> 755.9824295 | J173: =I173*(1+Other_Inputs!J80) -> 742.4214808 | K173: =J173*(1+Other_Inputs!K80) -> 729.1037909 | L173: =K173*(1+Other_Inputs!L80) -> 716.0249962 | M173: =L173*(1+Other_Inputs!M80) -> 703.1808111 | N173: =M173*(1+Other_Inputs!N80) -> 690.5670274 | O173: =N173*(1+Other_Inputs!O80) -> 678.179512 | P173: =O173*(1+Other_Inputs!P80) -> 666.0142061 | Q173: =P173*(1+Other_Inputs!Q80) -> 654.0671236 | R173: =Q173*(1+Other_Inputs!R80) -> 642.3343501
D174: 56 | E174: G.fast.Segment3_Aggregation Node | G174: 279.0580724 | H174: =G174*(1+Other_Inputs!H81) -> 267.7262225 | I174: =H174*(1+Other_Inputs!I81) -> 257.8888106 | J174: =I174*(1+Other_Inputs!J81) -> 248.5347788 | K174: =J174*(1+Other_Inputs!K81) -> 239.5200324 | L174: =K174*(1+Other_Inputs!L81) -> 230.8322651 | M174: =L174*(1+Other_Inputs!M81) -> 222.4596167 | N174: =M174*(1+Other_Inputs!N81) -> 214.3906573 | O174: =N174*(1+Other_Inputs!O81) -> 206.6143718 | P174: =O174*(1+Other_Inputs!P81) -> 199.1201444 | Q174: =P174*(1+Other_Inputs!Q81) -> 191.8977444 | R174: =Q174*(1+Other_Inputs!R81) -> 184.9373121
D175: 57 | E175: Unused | G175: 0 | H175: =G175*(1+Other_Inputs!H82) -> 0 | I175: =H175*(1+Other_Inputs!I82) -> 0 | J175: =I175*(1+Other_Inputs!J82) -> 0 | K175: =J175*(1+Other_Inputs!K82) -> 0 | L175: =K175*(1+Other_Inputs!L82) -> 0 | M175: =L175*(1+Other_Inputs!M82) -> 0 | N175: =M175*(1+Other_Inputs!N82) -> 0 | O175: =N175*(1+Other_Inputs!O82) -> 0 | P175: =O175*(1+Other_Inputs!P82) -> 0 | Q175: =P175*(1+Other_Inputs!Q82) -> 0 | R175: =Q175*(1+Other_Inputs!R82) -> 0
D176: 58 | E176: G.fast.Segment2_Fibre | G176: 3 | H176: =G176*(1+Other_Inputs!H83) -> 2.883155028 | I176: =H176*(1+Other_Inputs!I83) -> 2.782018438 | J176: =I176*(1+Other_Inputs!J83) -> 2.685746976 | K176: =J176*(1+Other_Inputs!K83) -> 2.592806978 | L176: =K176*(1+Other_Inputs!L83) -> 2.503083159 | M176: =L176*(1+Other_Inputs!M83) -> 2.416464224 | N176: =M176*(1+Other_Inputs!N83) -> 2.332842728 | O176: =N176*(1+Other_Inputs!O83) -> 2.252114945 | P176: =O176*(1+Other_Inputs!P83) -> 2.174180739 | Q176: =P176*(1+Other_Inputs!Q83) -> 2.098943438 | R176: =Q176*(1+Other_Inputs!R83) -> 2.026309716
D177: 59 | E177: G.fast.Segment2_Fibre testing | G177: 11.58726426 | H177: =G177*(1+Other_Inputs!H84) -> 11.31124904 | I177: =H177*(1+Other_Inputs!I84) -> 11.08627087 | J177: =I177*(1+Other_Inputs!J84) -> 10.87109996 | K177: =J177*(1+Other_Inputs!K84) -> 10.66010526 | L177: =K177*(1+Other_Inputs!L84) -> 10.4532057 | M177: =L177*(1+Other_Inputs!M84) -> 10.25032181 | N177: =M177*(1+Other_Inputs!N84) -> 10.05137565 | O177: =N177*(1+Other_Inputs!O84) -> 9.856290787 | P177: =O177*(1+Other_Inputs!P84) -> 9.664992283 | Q177: =P177*(1+Other_Inputs!Q84) -> 9.477406648 | R177: =Q177*(1+Other_Inputs!R84) -> 9.293461819
D178: 60 | E178: G.fast.Segment2_Duct and Pole | G178: 40 | H178: =G178*(1+Other_Inputs!H85) -> 39.64838355 | I178: =H178*(1+Other_Inputs!I85) -> 39.45810727 | J178: =I178*(1+Other_Inputs!J85) -> 39.28801572 | K178: =J178*(1+Other_Inputs!K85) -> 39.11865738 | L178: =K178*(1+Other_Inputs!L85) -> 38.95002909 | M178: =L178*(1+Other_Inputs!M85) -> 38.7821277 | N178: =M178*(1+Other_Inputs!N85) -> 38.61495008 | O178: =N178*(1+Other_Inputs!O85) -> 38.44849312 | P178: =O178*(1+Other_Inputs!P85) -> 38.28275369 | Q178: =P178*(1+Other_Inputs!Q85) -> 38.11772872 | R178: =Q178*(1+Other_Inputs!R85) -> 37.95341512
D179: 61 | E179: Unused | G179: 0 | H179: =G179*(1+Other_Inputs!H86) -> 0 | I179: =H179*(1+Other_Inputs!I86) -> 0 | J179: =I179*(1+Other_Inputs!J86) -> 0 | K179: =J179*(1+Other_Inputs!K86) -> 0 | L179: =K179*(1+Other_Inputs!L86) -> 0 | M179: =L179*(1+Other_Inputs!M86) -> 0 | N179: =M179*(1+Other_Inputs!N86) -> 0 | O179: =N179*(1+Other_Inputs!O86) -> 0 | P179: =O179*(1+Other_Inputs!P86) -> 0 | Q179: =P179*(1+Other_Inputs!Q86) -> 0 | R179: =Q179*(1+Other_Inputs!R86) -> 0
D180: 62 | E180: Unused | G180: 0 | H180: =G180*(1+Other_Inputs!H87) -> 0 | I180: =H180*(1+Other_Inputs!I87) -> 0 | J180: =I180*(1+Other_Inputs!J87) -> 0 | K180: =J180*(1+Other_Inputs!K87) -> 0 | L180: =K180*(1+Other_Inputs!L87) -> 0 | M180: =L180*(1+Other_Inputs!M87) -> 0 | N180: =M180*(1+Other_Inputs!N87) -> 0 | O180: =N180*(1+Other_Inputs!O87) -> 0 | P180: =O180*(1+Other_Inputs!P87) -> 0 | Q180: =P180*(1+Other_Inputs!Q87) -> 0 | R180: =Q180*(1+Other_Inputs!R87) -> 0
D181: 63 | E181: EXCH_GE OLT Card | G181: 5193 | H181: =G181*(1+Other_Inputs!H88) -> 4903.060003 | I181: =H181*(1+Other_Inputs!I88) -> 4647.949086 | J181: =I181*(1+Other_Inputs!J88) -> 4408.274184 | K181: =J181*(1+Other_Inputs!K88) -> 4180.958293 | L181: =K181*(1+Other_Inputs!L88) -> 3965.364113 | M181: =L181*(1+Other_Inputs!M88) -> 3760.887205 | N181: =M181*(1+Other_Inputs!N88) -> 3566.954299 | O181: =N181*(1+Other_Inputs!O88) -> 3383.021685 | P181: =O181*(1+Other_Inputs!P88) -> 3208.573691 | Q181: =P181*(1+Other_Inputs!Q88) -> 3043.121236 | R181: =Q181*(1+Other_Inputs!R88) -> 2886.200458
D182: 64 | E182: EXCH_GPON OLT Card | G182: 6934.6475 | H182: =G182*(1+Other_Inputs!H89) -> 6547.466358 | I182: =H182*(1+Other_Inputs!I89) -> 6206.7954 | J182: =I182*(1+Other_Inputs!J89) -> 5886.737444 | K182: =J182*(1+Other_Inputs!K89) -> 5583.183511 | L182: =K182*(1+Other_Inputs!L89) -> 5295.28256 | M182: =L182*(1+Other_Inputs!M89) -> 5022.227432 | N182: =M182*(1+Other_Inputs!N89) -> 4763.252592 | O182: =N182*(1+Other_Inputs!O89) -> 4517.631979 | P182: =O182*(1+Other_Inputs!P89) -> 4284.676974 | Q182: =P182*(1+Other_Inputs!Q89) -> 4063.734464 | R182: =Q182*(1+Other_Inputs!R89) -> 3854.185017
D183: 65 | E183: Unused | G183: 0 | H183: =G183*(1+Other_Inputs!H90) -> 0 | I183: =H183*(1+Other_Inputs!I90) -> 0 | J183: =I183*(1+Other_Inputs!J90) -> 0 | K183: =J183*(1+Other_Inputs!K90) -> 0 | L183: =K183*(1+Other_Inputs!L90) -> 0 | M183: =L183*(1+Other_Inputs!M90) -> 0 | N183: =M183*(1+Other_Inputs!N90) -> 0 | O183: =N183*(1+Other_Inputs!O90) -> 0 | P183: =O183*(1+Other_Inputs!P90) -> 0 | Q183: =P183*(1+Other_Inputs!Q90) -> 0 | R183: =Q183*(1+Other_Inputs!R90) -> 0
D184: 66 | E184: EXCH_OCR Subrack | G184: 1140 | H184: =G184*(1+Other_Inputs!H91) -> 1114.402223 | I184: =H184*(1+Other_Inputs!I91) -> 1093.765842 | J184: =I184*(1+Other_Inputs!J91) -> 1074.038442 | K184: =J184*(1+Other_Inputs!K91) -> 1054.666849 | L184: =K184*(1+Other_Inputs!L91) -> 1035.644647 | M184: =L184*(1+Other_Inputs!M91) -> 1016.965533 | N184: =M184*(1+Other_Inputs!N91) -> 998.6233197 | O184: =N184*(1+Other_Inputs!O91) -> 980.6119307 | P184: =O184*(1+Other_Inputs!P91) -> 962.925399 | Q184: =P184*(1+Other_Inputs!Q91) -> 945.5578655 | R184: =Q184*(1+Other_Inputs!R91) -> 928.5035766
D185: 67 | E185: Unused | G185: 0 | H185: =G185*(1+Other_Inputs!H92) -> 0 | I185: =H185*(1+Other_Inputs!I92) -> 0 | J185: =I185*(1+Other_Inputs!J92) -> 0 | K185: =J185*(1+Other_Inputs!K92) -> 0 | L185: =K185*(1+Other_Inputs!L92) -> 0 | M185: =L185*(1+Other_Inputs!M92) -> 0 | N185: =M185*(1+Other_Inputs!N92) -> 0 | O185: =N185*(1+Other_Inputs!O92) -> 0 | P185: =O185*(1+Other_Inputs!P92) -> 0 | Q185: =P185*(1+Other_Inputs!Q92) -> 0 | R185: =Q185*(1+Other_Inputs!R92) -> 0
D186: 68 | E186: Remote Parent_Fibre | G186: 24334.76927 | H186: =G186*(1+Other_Inputs!H93) -> 23386.97079 | I186: =H186*(1+Other_Inputs!I93) -> 22566.59227 | J186: =I186*(1+Other_Inputs!J93) -> 21785.67766 | K186: =J186*(1+Other_Inputs!K93) -> 21031.78653 | L186: =K186*(1+Other_Inputs!L93) -> 20303.98372 | M186: =L186*(1+Other_Inputs!M93) -> 19601.36645 | N186: =M186*(1+Other_Inputs!N93) -> 18923.06318 | O186: =N186*(1+Other_Inputs!O93) -> 18268.23252 | P186: =O186*(1+Other_Inputs!P93) -> 17636.06221 | Q186: =P186*(1+Other_Inputs!Q93) -> 17025.76809 | R186: =Q186*(1+Other_Inputs!R93) -> 16436.59314
D187: 69 | E187: Remote Parent_Fibre Testing | G187: 9.849174621 | H187: =G187*(1+Other_Inputs!H94) -> 9.614561684 | I187: =H187*(1+Other_Inputs!I94) -> 9.42333024 | J187: =I187*(1+Other_Inputs!J94) -> 9.240434968 | K187: =J187*(1+Other_Inputs!K94) -> 9.061089469 | L187: =K187*(1+Other_Inputs!L94) -> 8.885224846 | M187: =L187*(1+Other_Inputs!M94) -> 8.71277354 | N187: =M187*(1+Other_Inputs!N94) -> 8.543669302 | O187: =N187*(1+Other_Inputs!O94) -> 8.377847169 | P187: =O187*(1+Other_Inputs!P94) -> 8.21524344 | Q187: =P187*(1+Other_Inputs!Q94) -> 8.05579565 | R187: =Q187*(1+Other_Inputs!R94) -> 7.899442546
D188: 70 | E188: Remote Parent_Track Joint | G188: 2069.886243 | H188: =G188*(1+Other_Inputs!H95) -> 2023.610641 | I188: =H188*(1+Other_Inputs!I95) -> 1986.335933 | J188: =I188*(1+Other_Inputs!J95) -> 1950.704683 | K188: =J188*(1+Other_Inputs!K95) -> 1915.712592 | L188: =K188*(1+Other_Inputs!L95) -> 1881.348195 | M188: =L188*(1+Other_Inputs!M95) -> 1847.600233 | N188: =M188*(1+Other_Inputs!N95) -> 1814.457648 | O188: =N188*(1+Other_Inputs!O95) -> 1781.909581 | P188: =O188*(1+Other_Inputs!P95) -> 1749.945367 | Q188: =P188*(1+Other_Inputs!Q95) -> 1718.554532 | R188: =Q188*(1+Other_Inputs!R95) -> 1687.726792
D189: 71 | E189: Unused | G189: 0 | H189: =G189*(1+Other_Inputs!H96) -> 0 | I189: =H189*(1+Other_Inputs!I96) -> 0 | J189: =I189*(1+Other_Inputs!J96) -> 0 | K189: =J189*(1+Other_Inputs!K96) -> 0 | L189: =K189*(1+Other_Inputs!L96) -> 0 | M189: =L189*(1+Other_Inputs!M96) -> 0 | N189: =M189*(1+Other_Inputs!N96) -> 0 | O189: =N189*(1+Other_Inputs!O96) -> 0 | P189: =O189*(1+Other_Inputs!P96) -> 0 | Q189: =P189*(1+Other_Inputs!Q96) -> 0 | R189: =Q189*(1+Other_Inputs!R96) -> 0
D190: 72 | E190: Other_Remote Parent Planning | G190: 4220.903687 | H190: =G190*(1+Other_Inputs!H97) -> 4119.535455 | I190: =H190*(1+Other_Inputs!I97) -> 4036.791474 | J190: =I190*(1+Other_Inputs!J97) -> 3957.650777 | K190: =J190*(1+Other_Inputs!K97) -> 3880.061622 | L190: =K190*(1+Other_Inputs!L97) -> 3803.99359 | M190: =L190*(1+Other_Inputs!M97) -> 3729.416861 | N190: =M190*(1+Other_Inputs!N97) -> 3656.302198 | O190: =N190*(1+Other_Inputs!O97) -> 3584.620937 | P190: =O190*(1+Other_Inputs!P97) -> 3514.344976 | Q190: =P190*(1+Other_Inputs!Q97) -> 3445.446765 | R190: =Q190*(1+Other_Inputs!R97) -> 3377.899293
D191: 73 | E191: Other_FTTC DSLAM planning | G191: 1129.088942 | H191: =G191*(1+Other_Inputs!H98) -> 1134.260816 | I191: =H191*(1+Other_Inputs!I98) -> 1144.044646 | J191: =I191*(1+Other_Inputs!J98) -> 1154.479165 | K191: =J191*(1+Other_Inputs!K98) -> 1165.008853 | L191: =K191*(1+Other_Inputs!L98) -> 1175.63458 | M191: =L191*(1+Other_Inputs!M98) -> 1186.357222 | N191: =M191*(1+Other_Inputs!N98) -> 1197.177661 | O191: =N191*(1+Other_Inputs!O98) -> 1208.096791 | P191: =O191*(1+Other_Inputs!P98) -> 1219.115512 | Q191: =P191*(1+Other_Inputs!Q98) -> 1230.234731 | R191: =Q191*(1+Other_Inputs!R98) -> 1241.455365
D192: 74 | E192: Other_FTTP planning | G192: 3885.299517 | H192: =G192*(1+Other_Inputs!H99) -> 3903.096414 | I192: =H192*(1+Other_Inputs!I99) -> 3936.763478 | J192: =I192*(1+Other_Inputs!J99) -> 3972.669621 | K192: =J192*(1+Other_Inputs!K99) -> 4008.903254 | L192: =K192*(1+Other_Inputs!L99) -> 4045.467364 | M192: =L192*(1+Other_Inputs!M99) -> 4082.364965 | N192: =M192*(1+Other_Inputs!N99) -> 4119.599099 | O192: =N192*(1+Other_Inputs!O99) -> 4157.172836 | P192: =O192*(1+Other_Inputs!P99) -> 4195.089272 | Q192: =P192*(1+Other_Inputs!Q99) -> 4233.351534 | R192: =Q192*(1+Other_Inputs!R99) -> 4271.962775
D193: 75 | E193: Other_G.fast planning | G193: 17.4365375 | H193: =G193*(1+Other_Inputs!H100) -> 17.51640683 | I193: =H193*(1+Other_Inputs!I100) -> 17.66749866 | J193: =I193*(1+Other_Inputs!J100) -> 17.82863909 | K193: =J193*(1+Other_Inputs!K100) -> 17.99124923 | L193: =K193*(1+Other_Inputs!L100) -> 18.15534249 | M193: =L193*(1+Other_Inputs!M100) -> 18.3209324 | N193: =M193*(1+Other_Inputs!N100) -> 18.48803261 | O193: =N193*(1+Other_Inputs!O100) -> 18.6566569 | P193: =O193*(1+Other_Inputs!P100) -> 18.82681917 | Q193: =P193*(1+Other_Inputs!Q100) -> 18.99853343 | R193: =Q193*(1+Other_Inputs!R100) -> 19.17181386
D194: 76 | E194: Unused | G194: 0 | H194: =G194*(1+Other_Inputs!H101) -> 0 | I194: =H194*(1+Other_Inputs!I101) -> 0 | J194: =I194*(1+Other_Inputs!J101) -> 0 | K194: =J194*(1+Other_Inputs!K101) -> 0 | L194: =K194*(1+Other_Inputs!L101) -> 0 | M194: =L194*(1+Other_Inputs!M101) -> 0 | N194: =M194*(1+Other_Inputs!N101) -> 0 | O194: =N194*(1+Other_Inputs!O101) -> 0 | P194: =O194*(1+Other_Inputs!P101) -> 0 | Q194: =P194*(1+Other_Inputs!Q101) -> 0 | R194: =Q194*(1+Other_Inputs!R101) -> 0
D195: 77 | E195: Other_OSSBSS_Hardware | G195: 1000 | H195: =G195*(1+Other_Inputs!H102) -> 975.9842348 | I195: =H195*(1+Other_Inputs!I102) -> 956.3808543 | J195: =I195*(1+Other_Inputs!J102) -> 937.6311498 | K195: =J195*(1+Other_Inputs!K102) -> 919.2490304 | L195: =K195*(1+Other_Inputs!L102) -> 901.2272898 | M195: =L195*(1+Other_Inputs!M102) -> 883.5588627 | N195: =M195*(1+Other_Inputs!N102) -> 866.2368225 | O195: =N195*(1+Other_Inputs!O102) -> 849.2543783 | P195: =O195*(1+Other_Inputs!P102) -> 832.6048724 | Q195: =P195*(1+Other_Inputs!Q102) -> 816.2817776 | R195: =Q195*(1+Other_Inputs!R102) -> 800.2786947
D196: 78 | E196: Other_OSSBSS_Software | G196: 1000 | H196: =G196*(1+Other_Inputs!H103) -> 975.9842348 | I196: =H196*(1+Other_Inputs!I103) -> 956.3808543 | J196: =I196*(1+Other_Inputs!J103) -> 937.6311498 | K196: =J196*(1+Other_Inputs!K103) -> 919.2490304 | L196: =K196*(1+Other_Inputs!L103) -> 901.2272898 | M196: =L196*(1+Other_Inputs!M103) -> 883.5588627 | N196: =M196*(1+Other_Inputs!N103) -> 866.2368225 | O196: =N196*(1+Other_Inputs!O103) -> 849.2543783 | P196: =O196*(1+Other_Inputs!P103) -> 832.6048724 | Q196: =P196*(1+Other_Inputs!Q103) -> 816.2817776 | R196: =Q196*(1+Other_Inputs!R103) -> 800.2786947
D197: 79 | E197: Unused | G197: 0 | H197: =G197*(1+Other_Inputs!H104) -> 0 | I197: =H197*(1+Other_Inputs!I104) -> 0 | J197: =I197*(1+Other_Inputs!J104) -> 0 | K197: =J197*(1+Other_Inputs!K104) -> 0 | L197: =K197*(1+Other_Inputs!L104) -> 0 | M197: =L197*(1+Other_Inputs!M104) -> 0 | N197: =M197*(1+Other_Inputs!N104) -> 0 | O197: =N197*(1+Other_Inputs!O104) -> 0 | P197: =O197*(1+Other_Inputs!P104) -> 0 | Q197: =P197*(1+Other_Inputs!Q104) -> 0 | R197: =Q197*(1+Other_Inputs!R104) -> 0
D198: 80 | E198: Unused | G198: 0 | H198: =G198*(1+Other_Inputs!H105) -> 0 | I198: =H198*(1+Other_Inputs!I105) -> 0 | J198: =I198*(1+Other_Inputs!J105) -> 0 | K198: =J198*(1+Other_Inputs!K105) -> 0 | L198: =K198*(1+Other_Inputs!L105) -> 0 | M198: =L198*(1+Other_Inputs!M105) -> 0 | N198: =M198*(1+Other_Inputs!N105) -> 0 | O198: =N198*(1+Other_Inputs!O105) -> 0 | P198: =O198*(1+Other_Inputs!P105) -> 0 | Q198: =P198*(1+Other_Inputs!Q105) -> 0 | R198: =Q198*(1+Other_Inputs!R105) -> 0
D199: 81 | E199: Unused | G199: 0 | H199: =G199*(1+Other_Inputs!H106) -> 0 | I199: =H199*(1+Other_Inputs!I106) -> 0 | J199: =I199*(1+Other_Inputs!J106) -> 0 | K199: =J199*(1+Other_Inputs!K106) -> 0 | L199: =K199*(1+Other_Inputs!L106) -> 0 | M199: =L199*(1+Other_Inputs!M106) -> 0 | N199: =M199*(1+Other_Inputs!N106) -> 0 | O199: =N199*(1+Other_Inputs!O106) -> 0 | P199: =O199*(1+Other_Inputs!P106) -> 0 | Q199: =P199*(1+Other_Inputs!Q106) -> 0 | R199: =Q199*(1+Other_Inputs!R106) -> 0
D200: 82 | E200: Unused | G200: 0 | H200: =G200*(1+Other_Inputs!H107) -> 0 | I200: =H200*(1+Other_Inputs!I107) -> 0 | J200: =I200*(1+Other_Inputs!J107) -> 0 | K200: =J200*(1+Other_Inputs!K107) -> 0 | L200: =K200*(1+Other_Inputs!L107) -> 0 | M200: =L200*(1+Other_Inputs!M107) -> 0 | N200: =M200*(1+Other_Inputs!N107) -> 0 | O200: =N200*(1+Other_Inputs!O107) -> 0 | P200: =O200*(1+Other_Inputs!P107) -> 0 | Q200: =P200*(1+Other_Inputs!Q107) -> 0 | R200: =Q200*(1+Other_Inputs!R107) -> 0
D201: 83 | E201: Other_Software Configuration | G201: 0 | H201: =G201*(1+Other_Inputs!H108) -> 0 | I201: =H201*(1+Other_Inputs!I108) -> 0 | J201: =I201*(1+Other_Inputs!J108) -> 0 | K201: =J201*(1+Other_Inputs!K108) -> 0 | L201: =K201*(1+Other_Inputs!L108) -> 0 | M201: =L201*(1+Other_Inputs!M108) -> 0 | N201: =M201*(1+Other_Inputs!N108) -> 0 | O201: =N201*(1+Other_Inputs!O108) -> 0 | P201: =O201*(1+Other_Inputs!P108) -> 0 | Q201: =P201*(1+Other_Inputs!Q108) -> 0 | R201: =Q201*(1+Other_Inputs!R108) -> 0
D202: 84 | E202: Other_FTTC Engineer PCP Jumpering | G202: 0 | H202: =G202*(1+Other_Inputs!H109) -> 0 | I202: =H202*(1+Other_Inputs!I109) -> 0 | J202: =I202*(1+Other_Inputs!J109) -> 0 | K202: =J202*(1+Other_Inputs!K109) -> 0 | L202: =K202*(1+Other_Inputs!L109) -> 0 | M202: =L202*(1+Other_Inputs!M109) -> 0 | N202: =M202*(1+Other_Inputs!N109) -> 0 | O202: =N202*(1+Other_Inputs!O109) -> 0 | P202: =O202*(1+Other_Inputs!P109) -> 0 | Q202: =P202*(1+Other_Inputs!Q109) -> 0 | R202: =Q202*(1+Other_Inputs!R109) -> 0
D203: 85 | E203: Other_Gfast Engineer PCP Jumpering | G203: 0 | H203: =G203*(1+Other_Inputs!H110) -> 0 | I203: =H203*(1+Other_Inputs!I110) -> 0 | J203: =I203*(1+Other_Inputs!J110) -> 0 | K203: =J203*(1+Other_Inputs!K110) -> 0 | L203: =K203*(1+Other_Inputs!L110) -> 0 | M203: =L203*(1+Other_Inputs!M110) -> 0 | N203: =M203*(1+Other_Inputs!N110) -> 0 | O203: =N203*(1+Other_Inputs!O110) -> 0 | P203: =O203*(1+Other_Inputs!P110) -> 0 | Q203: =P203*(1+Other_Inputs!Q110) -> 0 | R203: =Q203*(1+Other_Inputs!R110) -> 0
D204: 86 | E204: Other_FTTC Premise Visit | G204: 0 | H204: =G204*(1+Other_Inputs!H111) -> 0 | I204: =H204*(1+Other_Inputs!I111) -> 0 | J204: =I204*(1+Other_Inputs!J111) -> 0 | K204: =J204*(1+Other_Inputs!K111) -> 0 | L204: =K204*(1+Other_Inputs!L111) -> 0 | M204: =L204*(1+Other_Inputs!M111) -> 0 | N204: =M204*(1+Other_Inputs!N111) -> 0 | O204: =N204*(1+Other_Inputs!O111) -> 0 | P204: =O204*(1+Other_Inputs!P111) -> 0 | Q204: =P204*(1+Other_Inputs!Q111) -> 0 | R204: =Q204*(1+Other_Inputs!R111) -> 0
D205: 87 | E205: Other_FTTP Premise Visit | G205: 0 | H205: =G205*(1+Other_Inputs!H112) -> 0 | I205: =H205*(1+Other_Inputs!I112) -> 0 | J205: =I205*(1+Other_Inputs!J112) -> 0 | K205: =J205*(1+Other_Inputs!K112) -> 0 | L205: =K205*(1+Other_Inputs!L112) -> 0 | M205: =L205*(1+Other_Inputs!M112) -> 0 | N205: =M205*(1+Other_Inputs!N112) -> 0 | O205: =N205*(1+Other_Inputs!O112) -> 0 | P205: =O205*(1+Other_Inputs!P112) -> 0 | Q205: =P205*(1+Other_Inputs!Q112) -> 0 | R205: =Q205*(1+Other_Inputs!R112) -> 0
D206: 88 | E206: Other_Gfast Premise Visit | G206: 0 | H206: =G206*(1+Other_Inputs!H113) -> 0 | I206: =H206*(1+Other_Inputs!I113) -> 0 | J206: =I206*(1+Other_Inputs!J113) -> 0 | K206: =J206*(1+Other_Inputs!K113) -> 0 | L206: =K206*(1+Other_Inputs!L113) -> 0 | M206: =L206*(1+Other_Inputs!M113) -> 0 | N206: =M206*(1+Other_Inputs!N113) -> 0 | O206: =N206*(1+Other_Inputs!O113) -> 0 | P206: =O206*(1+Other_Inputs!P113) -> 0 | Q206: =P206*(1+Other_Inputs!Q113) -> 0 | R206: =Q206*(1+Other_Inputs!R113) -> 0
D207: 89 | E207: Unused | G207: 0 | H207: =G207*(1+Other_Inputs!H114) -> 0 | I207: =H207*(1+Other_Inputs!I114) -> 0 | J207: =I207*(1+Other_Inputs!J114) -> 0 | K207: =J207*(1+Other_Inputs!K114) -> 0 | L207: =K207*(1+Other_Inputs!L114) -> 0 | M207: =L207*(1+Other_Inputs!M114) -> 0 | N207: =M207*(1+Other_Inputs!N114) -> 0 | O207: =N207*(1+Other_Inputs!O114) -> 0 | P207: =O207*(1+Other_Inputs!P114) -> 0 | Q207: =P207*(1+Other_Inputs!Q114) -> 0 | R207: =Q207*(1+Other_Inputs!R114) -> 0
D208: 90 | E208: Unused | G208: 0 | H208: =G208*(1+Other_Inputs!H115) -> 0 | I208: =H208*(1+Other_Inputs!I115) -> 0 | J208: =I208*(1+Other_Inputs!J115) -> 0 | K208: =J208*(1+Other_Inputs!K115) -> 0 | L208: =K208*(1+Other_Inputs!L115) -> 0 | M208: =L208*(1+Other_Inputs!M115) -> 0 | N208: =M208*(1+Other_Inputs!N115) -> 0 | O208: =N208*(1+Other_Inputs!O115) -> 0 | P208: =O208*(1+Other_Inputs!P115) -> 0 | Q208: =P208*(1+Other_Inputs!Q115) -> 0 | R208: =Q208*(1+Other_Inputs!R115) -> 0
D209: 91 | E209: Other_FTTC Field Interventions | G209: 0 | H209: =G209*(1+Other_Inputs!H116) -> 0 | I209: =H209*(1+Other_Inputs!I116) -> 0 | J209: =I209*(1+Other_Inputs!J116) -> 0 | K209: =J209*(1+Other_Inputs!K116) -> 0 | L209: =K209*(1+Other_Inputs!L116) -> 0 | M209: =L209*(1+Other_Inputs!M116) -> 0 | N209: =M209*(1+Other_Inputs!N116) -> 0 | O209: =N209*(1+Other_Inputs!O116) -> 0 | P209: =O209*(1+Other_Inputs!P116) -> 0 | Q209: =P209*(1+Other_Inputs!Q116) -> 0 | R209: =Q209*(1+Other_Inputs!R116) -> 0
D210: 92 | E210: Unused | G210: 0 | H210: =G210*(1+Other_Inputs!H117) -> 0 | I210: =H210*(1+Other_Inputs!I117) -> 0 | J210: =I210*(1+Other_Inputs!J117) -> 0 | K210: =J210*(1+Other_Inputs!K117) -> 0 | L210: =K210*(1+Other_Inputs!L117) -> 0 | M210: =L210*(1+Other_Inputs!M117) -> 0 | N210: =M210*(1+Other_Inputs!N117) -> 0 | O210: =N210*(1+Other_Inputs!O117) -> 0 | P210: =O210*(1+Other_Inputs!P117) -> 0 | Q210: =P210*(1+Other_Inputs!Q117) -> 0 | R210: =Q210*(1+Other_Inputs!R117) -> 0
D211: 93 | E211: Other_Gfast Field Interventions | G211: 0 | H211: =G211*(1+Other_Inputs!H118) -> 0 | I211: =H211*(1+Other_Inputs!I118) -> 0 | J211: =I211*(1+Other_Inputs!J118) -> 0 | K211: =J211*(1+Other_Inputs!K118) -> 0 | L211: =K211*(1+Other_Inputs!L118) -> 0 | M211: =L211*(1+Other_Inputs!M118) -> 0 | N211: =M211*(1+Other_Inputs!N118) -> 0 | O211: =N211*(1+Other_Inputs!O118) -> 0 | P211: =O211*(1+Other_Inputs!P118) -> 0 | Q211: =P211*(1+Other_Inputs!Q118) -> 0 | R211: =Q211*(1+Other_Inputs!R118) -> 0
D212: 94 | E212: Other_SLG Payments_Rentals | G212: 0 | H212: =G212*(1+Other_Inputs!H119) -> 0 | I212: =H212*(1+Other_Inputs!I119) -> 0 | J212: =I212*(1+Other_Inputs!J119) -> 0 | K212: =J212*(1+Other_Inputs!K119) -> 0 | L212: =K212*(1+Other_Inputs!L119) -> 0 | M212: =L212*(1+Other_Inputs!M119) -> 0 | N212: =M212*(1+Other_Inputs!N119) -> 0 | O212: =N212*(1+Other_Inputs!O119) -> 0 | P212: =O212*(1+Other_Inputs!P119) -> 0 | Q212: =P212*(1+Other_Inputs!Q119) -> 0 | R212: =Q212*(1+Other_Inputs!R119) -> 0
... 1545 more rows

Sheet Adjustments
A1: Top-down adjustments
A2: Note: Adjustments to account for future network build
B5: Scenario ->> | C5: =UBC_scenario -> B1
C8: BDUK inputs
G10: 2021/22 | I10: Source:
D11: UK households | E11: millions | G11: ='[1]WLA inputs'!$N$4 -> 29.08877925 | I11: UB Volumes module
D12: % of households with at least 24Mb/s by 2021/22 | E12: % | G12: =BDUK_target -> 0.97 | I12: BDUK target for UK premises covered by at least 24MB/s service
D14: UK households with less than 24Mb/s | E14: millions | G14: =G11*(1-G12) -> 0.8726633775
D16: % of households with less than 24Mb/s not getting 10/1 Mb/s | E16: % | G16: 0.9 | I16: 2016 Connected Nations data
D18: UK households with less than 10Mb/s | E18: millions | G18: =G14*G16 -> 0.7853970398
D19: SFBB areas | E19: millions | G19: 0 | I19: Ofcom assumption
D20: Non-SFBB areas | G20: =G18 -> 0.7853970398 | I20: Ofcom assumption
C22: Geospatial inputs
D24: Premises getting less than 10/1 Mb/s | E24: millions | G24: =[1]!Fixed_premises/million -> 1.88962 | I24: UBC Volumes module
D25: SFBB areas | E25: millions | G25: =G24-G26 -> 0.8625710459 | I25: UBC Volumes module
D26: Non-SFBB areas | E26: millions | G26: =[1]!Non_SFBB_premises/million -> 1.027048954 | I26: UBC Volumes module
D28: Wireless premises getting less than 10/1 MB/s | E28: millions | G28: =[1]!Wireless_premises/million -> 0.480029 | I28: UBC Volumes module
D30: Fixed premises getting less than 10/1 MB/s by 2021/22 | E30: millions | G30: =MAX(G18-G28,0) -> 0.3053680398
D31: SFBB areas | E31: millions | G31: =G19 -> 0
D32: Non-SFBB areas | E32: millions | G32: =G30 -> 0.3053680398
D34: Premises to remove from analysis | E34: millions | G34: =G24-G30 -> 1.58425196
D35: SFBB areas | E35: millions | G35: =G25-G31 -> 0.8625710459
D36: Non-SFBB areas | E36: millions | G36: =G34-G35 -> 0.7216809144
C39: Adjustment
D41: FTTC premises getting less than 10/1 Mb/s | E41: millions | G41: =[3]Calc_GeoVolumes!$F$15/million -> 1.287955 | J41: Min FTTC premises | K41: 0.1
D42: Premises to remove from analysis | E42: millions | G42: =IF(OR(Techset_scenario=9,Techset_scenario=13),IF(G41>G34,G34,G41*(1-K41)),IF(G41>G34,G34,G41)) -> 1.1591595
D43: Adj FTT premises | E43: millions | G43: =G41-G42 -> 0.1287955 | H43: =G43/G41 -> 0.1
D44: Premises-based adjustment | E44: % | G44: =G42/G41*(1-$K$44) -> 0.81 | H44: Premises_adj_FTTC | J44: FTTC high-cost factor | K44: 0.1
D45: Premises left to remove | E45: millions | G45: =G34-G42 -> 0.4250924602
D47: G.Fast premises getting less than 10/1 Mb/s | E47: millions | G47: =[3]Calc_GeoVolumes!$F$14/million -> 0.446407
D48: Premises to remove from analysis | E48: millions | G48: =IF(G47>G45,G45,G47) -> 0.4250924602
D49: Adj G.Fast premises | E49: millions | G49: =G47-G48 -> 0.02131453975
D50: Premises-based adjustment | E50: % | G50: =IF(G47=0,0,IF(G49=0,1,G48/G47*(1-$K$50))) -> 0.7618024991 | H50: Premises_adj_Gfast | J50: G.Fast high-cost factor | K50: 0.2
D51: Premises left to remove | E51: millions | G51: =G45-G48 -> 0
D53: FTTP premises getting less than 10/1 Mb/s | E53: millions | G53: =[3]Calc_GeoVolumes!$F$13/million -> 0.155258
D54: Premises to remove from analysis | E54: millions | G54: =IF(G53>G51,G51,G53) -> 0
D55: Adj FTTP premises | E55: millions | G55: =G53-G54 -> 0.155258
D56: Premises-based adjustment | E56: % | G56: =IF(G53=0,0,IF(G55=0,1,G54/G53)) -> 0 | H56: Premises_adj_FTTP
D57: Premises left to remove | E57: millions | G57: =G51-G54 -> 0
D59: Adjusted fixed premises getting less than 10/1 Mb/s | E59: millions | G59: =G43+G49+G55 -> 0.3053680398
D60: Fixed premises removed from the analysis | E60: millions | G60: =G42+G48+G54 -> 1.58425196
D61: SFBB areas | E61: millions | G61: =G35 -> 0.8625710459
D62: Non-SFBB areas | E62: millions | G62: =G60-G61 -> 0.7216809144
D64: All premises-based adjustment | E64: % | G64: =G60/G24 -> 0.838397117 | H64: TD_cost_adjustment
D65: Take up-based adjustment | E65: % | G65: =G62/G26*[1]!Adjustment_non_SFBB+G61/G25*[1]!Adjustment_SFBB -> 0.7026743092 | H65: TD_rev_adjustment
C68: FTTP Uplift
C69: Note: This is to account for less use of FWA and more FTTP
D71: Geospatial inputs
D72: UBC FWA premises | E72: millions | G72: =[3]Calc_GeoVolumes!$F$16/million -> 0.469819
D73: UBC FTTP premises | E73: millions | G73: =[3]Calc_GeoVolumes!$F$13/million -> 0.155258
D74: Adj UBC FTTP premises | E74: millions | G74: =G73*(1-Premises_adj_FTTP) -> 0.155258
D76: FWA/FTTP | E76: One | G76: =G72/G74 -> 3.026053408
D78: BT inputs
D79: BT FWA/FTTP ratio | E79: One | G79: =225/195 -> 1.153846154
D81: Uplift | H81: Techset--> | I81: 9 | J81: 13
D82: FTTP premises adjustment | E82: millions | G82: =IFERROR(INDEX($I82:$J82,MATCH(Techset_scenario,Adjustments!$I$81:$J$81,0)),"") -> 0.1354786947 | I82: 0.1354786947 | J82: 0.05529582225
D84: Adj UBC FWA premises | E84: millions | G84: =IFERROR(INDEX($I84:$J84,MATCH(Techset_scenario,Adjustments!$I$81:$J$81,0)),"") -> 0.3343403053 | I84: =$G$72-I$82 -> 0.3343403053 | J84: 0.4145231777
D85: Adj UBC FTTP premises | E85: millions | G85: =IFERROR(INDEX($I85:$J85,MATCH(Techset_scenario,Adjustments!$I$81:$J$81,0)),"") -> 0.2907366947 | I85: =$G$74+I82 -> 0.2907366947 | J85: 0.2105538223
D87: Adj FWA/FTTP | E87: One | G87: =IF(G85="","",G84/G85) -> 1.149976289 | I87: =I84/I85 -> 1.149976289 | J87: =J84/J85 -> 1.968727869
D89: FTTP uplift | E89: One | G89: =IF(OR(G74=0,G85=""),0,G85/G74-1) -> 0.8726036318
D90: Additional uplift to account for high-cost areas | E90: One | G90: 1.5
D92: FTTP uplift | E92: One | G92: =G89*G90 -> 1.308905448 | H92: FTTP_uplift

Sheet Adjusted CCA
A1: Adjusted CCA
G5: =years_number -> 1 | H5: 2 | I5: 3 | J5: 4 | K5: 5 | L5: 6 | M5: 7 | N5: 8 | O5: 9 | P5: 10 | Q5: 11 | R5: 12
E6: Element | F6: Total | G6: =financial_years -> 2017/18 | H6: 2018/19 | I6: 2019/20 | J6: 2020/21 | K6: 2021/22 | L6: 2022/23 | M6: 2023/24 | N6: 2024/25 | O6: 2025/26 | P6: 2026/27 | Q6: 2027/28 | R6: 2028/29
C10: Unadjusted Total annual cost (FCM)
D11: Nominal
D12: 1 | E12: =Element.Names -> FTTC.PCP_Re-shell | G12: =CCA!G1495:R1594 -> 0 | H12: 57085.66745 | I12: 209129.9175 | J12: 356585.517 | K12: 503251.5517 | L12: 589181.6777 | M12: 576473.9845 | N12: 563545.9539 | O12: 550395.0207 | P12: 537018.594 | Q12: 523414.0565 | R12: 509578.7647
D13: 2 | E13: FTTC.PCP_Connector | G13: 0 | H13: 97747.10781 | I13: 372821.7528 | J13: 635677.9051 | K13: 892925.4629 | L13: 1044586.491 | M13: 1013311.386 | N13: 982036.2824 | O13: 950761.1784 | P13: 919486.0743 | Q13: 888210.9702 | R13: 856935.8662
D14: 3 | E14: FTTC.PCP_Extra faults at PCP/Copper | G14: 0 | H14: 21256.5009 | I14: 66558.90556 | J14: 134490.397 | K14: 226568.6641 | L14: 320617.8507 | M14: 416669.764 | N14: 514756.6682 | O14: 614911.2903 | P14: 693295.0786 | Q14: 749100.8081 | R14: 781571.2111
D15: 4 | E15: FTTC.PCP_Duct to FTTC Cab | G15: 0 | H15: 46659.05708 | I15: 234475.6698 | J15: 420727.0215 | K15: 611861.7488 | L15: 756047.1499 | M15: 755059.8577 | N15: 753857.7718 | O15: 752434.4309 | P15: 750783.2246 | Q15: 748897.3898 | R15: 746770.0079
D16: 5 | E16: FTTC.PCP_Copper to Cab Type1 | G16: 0 | H16: 113248.7932 | I16: 353331.4696 | J16: 585753.5465 | K16: 815563.2788 | L16: 923814.3038 | M16: 898045.7478 | N16: 871779.0959 | O16: 845007.7982 | P16: 817725.2302 | Q16: 789924.6913 | R16: 761599.4049
D17: 6 | E17: FTTC.PCP_Copper to Cab Type2 | G17: 0 | H17: 56201.17032 | I17: 175281.6754 | J17: 290486.7191 | K17: 404397.6803 | L17: 458054.3366 | M17: 445276.7921 | N17: 432252.2645 | O17: 418977.5061 | P17: 405449.2321 | Q17: 391664.12 | R17: 377618.8095
D18: 7 | E18: Unused | G18: 0 | H18: 0 | I18: 0 | J18: 0 | K18: 0 | L18: 0 | M18: 0 | N18: 0 | O18: 0 | P18: 0 | Q18: 0 | R18: 0
D19: 8 | E19: FTTC.CAB_Power Connection | G19: 0 | H19: 711646.2618 | I19: 2230788.584 | J19: 3777116.463 | K19: 5397836.584 | L19: 6275805.897 | M19: 6318838.551 | N19: 6358460.973 | O19: 6394418.002 | P19: 6426441.85 | Q19: 6454251.559 | R19: 6477552.446
D20: 9 | E20: FTTC.CAB_Civils (concrete Base) | G20: 0 | H20: 498057.4923 | I20: 1408928.511 | J20: 2306150.081 | K20: 3205818.989 | L20: 3585931.683 | M20: 3542740.248 | N20: 3498725.326 | O20: 3453877.224 | P20: 3408186.154 | Q20: 3361642.229 | R20: 3314235.463
D21: 10 | E21: FTTC.CAB_Certification Managed Service | G21: 0 | H21: 452725.7246 | I21: 1081098.2 | J21: 1722049.89 | K21: 2385290.813 | L21: 2583072.24 | M21: 2605759.671 | N21: 2627878.658 | O21: 2649377.235 | P21: 2670200.804 | Q21: 2690292.02 | R21: 2709590.676
D22: 11 | E22: Unused | G22: 0 | H22: 0 | I22: 0 | J22: 0 | K22: 0 | L22: 0 | M22: 0 | N22: 0 | O22: 0 | P22: 0 | Q22: 0 | R22: 0
D23: 12 | E23: FTTC.CAB_Type1 DSLAM Cabinet | G23: 0 | H23: 1808828.508 | I23: 4230290.872 | J23: 6583432.665 | K23: 8908187.426 | L23: 9278126.414 | M23: 9039778.704 | N23: 8805488.736 | O23: 8575420.907 | P23: 8962120.5 | Q23: 9353204.079 | R23: 9632940.87
D24: 13 | E24: FTTC.CAB_Type1 DSLAM Access Card | G24: 0 | H24: 362829.8178 | I24: 915768.3781 | J24: 1414762.74 | K24: 1868392.675 | L24: 1934923.2 | M24: 1783424.723 | N24: 1636709.586 | O24: 1494658.244 | P24: 1561384.175 | Q24: 1625408.554 | R24: 1686860.104
D25: 14 | E25: FTTC.CAB_Type1 DSLAM GE port | G25: 0 | H25: 1011.228274 | I25: 2042.957928 | J25: 3097.336053 | K25: 4174.224436 | L25: 4219.253458 | M25: 4264.768225 | N25: 4310.773978 | O25: 4357.276013 | P25: 4404.279685 | Q25: 4451.790404 | R25: 4499.813639
D26: 15 | E26: FTTC.CAB_Type2 DSLAM Cabinet | G26: 0 | H26: 495029.4088 | I26: 1163986.554 | J26: 1810317.27 | K26: 2444285.149 | L26: 2545492.899 | M26: 2466787.244 | N26: 2388932.03 | O26: 2311961.346 | P26: 2416909.929 | Q26: 2522547.337 | R26: 2605198.24
D27: 16 | E27: FTTC.CAB_Type2 DSLAM Access Card | G27: 0 | H27: 239245.6738 | I27: 605308.6076 | J27: 936214.9305 | K27: 1237429.114 | L27: 1283086.904 | M27: 1182860.544 | N27: 1085554.016 | O27: 991099.9876 | P27: 1036816.152 | Q27: 1080858.08 | R27: 1123268.103
D28: 17 | E28: FTTC.CAB_Type2 DSLAM GE port | G28: 0 | H28: 209.059444 | I28: 422.1090895 | J28: 639.8356821 | K28: 862.2105618 | L28: 871.5115704 | M28: 880.9129128 | N28: 890.4156712 | O28: 900.0209396 | P28: 909.7298239 | Q28: 919.5434417 | R28: 929.462923
D29: 18 | E29: LR-VDSL_ADSL migration costs | G29: 0 | H29: 0 | I29: 0 | J29: 0 | K29: 0 | L29: 0 | M29: 0 | N29: 0 | O29: 0 | P29: 0 | Q29: 0 | R29: 0
D30: 19 | E30: LR-VDSL_ADSL migration vols | G30: 0 | H30: 0 | I30: 0 | J30: 0 | K30: 0 | L30: 0 | M30: 0 | N30: 0 | O30: 0 | P30: 0 | Q30: 0 | R30: 0
D31: 20 | E31: Unused | G31: 0 | H31: 0 | I31: 0 | J31: 0 | K31: 0 | L31: 0 | M31: 0 | N31: 0 | O31: 0 | P31: 0 | Q31: 0 | R31: 0
D32: 21 | E32: FTTC.Segment3_Fibre | G32: 0 | H32: 703772.6668 | I32: 2822118.911 | J32: 4780111.407 | K32: 6626829.067 | L32: 7690022.372 | M32: 7320315.002 | N32: 6960121.545 | O32: 6609237.432 | P32: 6267462.125 | Q32: 5934599.045 | R32: 5610455.496
D33: 22 | E33: FTTC.Segment3_Fibre testing | G33: 0 | H33: 2056.367674 | I33: 7635.511309 | J33: 12965.18703 | K33: 18176.84581 | L33: 21168.01761 | M33: 20515.41677 | N33: 19862.55404 | O33: 19209.42934 | P33: 18556.0426 | Q33: 17902.39374 | R33: 17248.48267
D34: 23 | E34: FTTC.Segment3_Duct and Pole | G34: 0 | H34: 3493259.31 | I34: 11113111.79 | J34: 18678867.58 | K34: 26429922.16 | L34: 30572426.25 | M34: 30645864.06 | N34: 30714370.17 | O34: 30777775.19 | P34: 30835905.66 | Q34: 30888583.98 | R34: 30935628.31
D35: 24 | E35: FTTC.Segment3_Track Joint | G35: 0 | H35: 7587.694124 | I35: 27076.92549 | J35: 45677.37086 | K35: 63936.70189 | L35: 74083.51264 | M35: 71822.76926 | N35: 69554.12525 | O35: 67277.56028 | P35: 64993.05398 | Q35: 62700.58592 | R35: 60400.13565
D36: 25 | E36: FTTC.Segment3_Aggregation Node | G36: 0 | H36: 34803.59956 | I36: 135943.8173 | J36: 228949.7036 | K36: 316171.0247 | L36: 364645.5998 | M36: 345840.3237 | N36: 327569.0445 | O36: 309819.0408 | P36: 292577.8699 | Q36: 275833.361 | R36: 259573.6105
D37: 26 | E37: Unused | G37: 0 | H37: 0 | I37: 0 | J37: 0 | K37: 0 | L37: 0 | M37: 0 | N37: 0 | O37: 0 | P37: 0 | Q37: 0 | R37: 0
D38: 27 | E38: FTTP.Node_Primary Splitter | G38: 0 | H38: 14929.55885 | I38: 53803.1442 | J38: 90891.15431 | K38: 127080.405 | L38: 147145.7321 | M38: 142368.2732 | N38: 137590.8144 | O38: 132813.3556 | P38: 128035.8967 | Q38: 123258.4379 | R38: 118480.9791
D39: 28 | E39: FTTP.Node_Primary Tray | G39: 0 | H39: 655.7981538 | I39: 2362.826079 | J39: 3991.10559 | K39: 5580.264151 | L39: 6460.845751 | M39: 6251.076631 | N39: 6041.307511 | O39: 5831.538391 | P39: 5621.769271 | Q39: 5412.000151 | R39: 5202.231031
D40: 29 | E40: FTTP.Node_Secondary Splitter | G40: 0 | H40: 34354.07188 | I40: 123776.9525 | J40: 209074.5872 | K40: 292322.8658 | L40: 338452.2479 | M40: 327463.4652 | N40: 316474.6824 | O40: 305485.8997 | P40: 294497.117 | Q40: 283508.3342 | R40: 272519.5515
D41: 30 | E41: FTTP.Node_Secondary Tray | G41: 0 | H41: 3411.45 | I41: 12294.18351 | J41: 20768.9076 | K41: 29038.2624 | L41: 33623.2512 | M41: 32531.5872 | N41: 31439.9232 | O41: 30348.2592 | P41: 29256.5952 | Q41: 28164.9312 | R41: 27073.2672
D42: 31 | E42: FTTP.Node_GPON port | G42: 0 | H42: 319.6292186 | I42: 645.5718625 | J42: 978.9380663 | K42: 1319.150136 | L42: 1333.380334 | M42: 1347.764038 | N42: 1362.302906 | O42: 1376.99861 | P42: 1391.852842 | Q42: 1406.867313 | R42: 1422.043751
D43: 32 | E43: Unused | G43: 0 | H43: 0 | I43: 0 | J43: 0 | K43: 0 | L43: 0 | M43: 0 | N43: 0 | O43: 0 | P43: 0 | Q43: 0 | R43: 0
D44: 33 | E44: FTTP.Segment3_Fibre | G44: 0 | H44: 78616.45139 | I44: 314933.6339 | J44: 533019.604 | K44: 739067.8532 | L44: 857300.8579 | M44: 816084.1879 | N44: 775928.1768 | O44: 736810.0181 | P44: 698707.3547 | Q44: 661598.2711 | R44: 625461.2843
D45: 34 | E45: FTTP.Segment3_Fibre testing | G45: 0 | H45: 634.816728 | I45: 2356.780888 | J45: 4001.482585 | K45: 5610.029779 | L45: 6532.845474 | M45: 6331.439775 | N45: 6129.953252 | O45: 5928.385881 | P45: 5726.737637 | Q45: 5525.008498 | R45: 5323.198437
D46: 35 | E46: FTTP.Segment3_Duct and Pole | G46: 0 | H46: 615756.6276 | I46: 2372482.076 | J46: 4113699.06 | K46: 5901157.522 | L46: 7056626.821 | M46: 7060044.568 | N46: 7061875.857 | O46: 7062070.621 | P46: 7060577.618 | Q46: 7057344.409 | R46: 7052317.332
D47: 36 | E47: FTTP.Segment3_Track Joint | G47: 0 | H47: 493.2001181 | I47: 1762.47035 | J47: 2977.807529 | K47: 4168.321373 | L47: 4827.497065 | M47: 4680.180453 | N47: 4532.349014 | O47: 4384.001422 | P47: 4235.13635 | Q47: 4085.752466 | R47: 3935.848438
D48: 37 | E48: FTTP.Segment3_Aggregation Node | G48: 0 | H48: 2255.178296 | I48: 8809.628497 | J48: 14837.75526 | K48: 20490.14905 | L48: 23632.59631 | M48: 22413.83347 | N48: 21229.67875 | O48: 20079.30769 | P48: 18961.91388 | Q48: 17876.70853 | R48: 16822.92017
D49: 38 | E49: Unused | G49: 0 | H49: 0 | I49: 0 | J49: 0 | K49: 0 | L49: 0 | M49: 0 | N49: 0 | O49: 0 | P49: 0 | Q49: 0 | R49: 0
D50: 39 | E50: FTTP.Segment2_Fibre | G50: 0 | H50: 19486.42703 | I50: 78139.81546 | J50: 132352.7488 | K50: 183490.175 | L50: 212937.4527 | M50: 202700.2421 | N50: 192726.4719 | O50: 183010.4777 | P50: 173546.7066 | Q50: 164329.7153 | R50: 155354.168
D51: 40 | E51: FTTP.Segment2_Fibre testing | G51: 0 | H51: 2375.342198 | I51: 8820.500704 | J51: 14977.91231 | K51: 20998.53579 | L51: 24454.65781 | M51: 23700.73277 | N51: 22946.50517 | O51: 22191.97494 | P51: 21437.14197 | Q51: 20682.00619 | R51: 19926.56749
D52: 41 | E52: FTTP.Segment2_Duct and Pole | G52: 0 | H52: 263206.8503 | I52: 921437.8485 | J52: 1574789.352 | K52: 2244497.52 | L52: 2643560.724 | M52: 2647170.56 | N52: 2650263.214 | O52: 2652821.82 | P52: 2654829.108 | Q52: 2656267.405 | R52: 2657118.62
D53: 42 | E53: FTTP.Segment1_Fibre | G53: 0 | H53: 40819.52294 | I53: 175120.0123 | J53: 394805.9935 | K53: 696746.0698 | L53: 1035194.021 | M53: 1357421.523 | N53: 1664082.908 | O53: 1955809.408 | P53: 2193605.27 | Q53: 2332849.303 | R53: 2378748.993
D54: 43 | E54: Unused | G54: 0 | H54: 0 | I54: 0 | J54: 0 | K54: 0 | L54: 0 | M54: 0 | N54: 0 | O54: 0 | P54: 0 | Q54: 0 | R54: 0
D55: 44 | E55: G.fast.Node_Primary Splitter | G55: 0 | H55: 64819.45143 | I55: 233596.3391 | J55: 394620.8203 | K55: 551743.1706 | L55: 638860.5133 | M55: 618118.2888 | N55: 597376.0644 | O55: 576633.8399 | P55: 555891.6155 | Q55: 535149.391 | R55: 514407.1665
D56: 45 | E56: G.fast.Node_Primary Tray | G56: 0 | H56: 2108.693077 | I56: 7598.768803 | J56: 12836.32988 | K56: 17947.30574 | L56: 20780.57811 | M56: 20105.88262 | N56: 19431.18712 | O56: 18756.49163 | P56: 18081.79613 | Q56: 17407.10064 | R56: 16732.40514
D57: 46 | E57: G.fast.Node_DSLAM | G57: 0 | H57: 2867912.492 | I57: 6613917.844 | J57: 10288156.96 | K57: 13957862.35 | L57: 14523037.41 | M57: 14272428.87 | N57: 14030028.85 | O57: 13796170.88 | P57: 14394998.3 | Q57: 15002952.4 | R57: 15384742.63
D58: 47 | E58: G.fast.Node_Hybrid Closure | G58: 0 | H58: 149381.3837 | I58: 621583.6656 | J58: 1056817.594 | K58: 1466307.862 | L58: 1708350.104 | M58: 1625196.208 | N58: 1544375.83 | O58: 1465833.664 | P58: 1389515.607 | Q58: 1315368.738 | R58: 1243341.292
D59: 48 | E59: G.fast.Node_Power_Box | G59: 0 | H59: 289350.889 | I59: 899432.3498 | J59: 1520416.452 | K59: 2171081.2 | L59: 2519957.515 | M59: 2537348.851 | N59: 2553389.692 | O59: 2567978.778 | P59: 2581009.838 | Q59: 2592371.372 | R59: 2601946.43
D60: 49 | E60: G.fast.Node_Copper_Intercept_Point | G60: 0 | H60: 107352.9479 | I60: 391063.0051 | J60: 666905.5089 | K60: 941985.2923 | L60: 1102770.099 | M60: 1080247.219 | N60: 1057268.143 | O60: 1033826.797 | P60: 1009917.036 | Q60: 985532.6435 | R60: 960667.3341
D61: 50 | E61: G.fast.Node_GPON port | G61: 0 | H61: 1027.755136 | I61: 2076.399174 | J61: 3148.33139 | K61: 4242.87738 | L61: 4288.646988 | M61: 4334.910331 | N61: 4381.672735 | O61: 4428.939584 | P61: 4476.716319 | Q61: 4525.00844 | R61: 4573.821508
D62: 51 | E62: Unused | G62: 0 | H62: 0 | I62: 0 | J62: 0 | K62: 0 | L62: 0 | M62: 0 | N62: 0 | O62: 0 | P62: 0 | Q62: 0 | R62: 0
D63: 52 | E63: G.fast.Segment3_Fibre | G63: 0 | H63: 748825.8164 | I63: 3002781.434 | J63: 5086117.998 | K63: 7051246.451 | L63: 8182882.88 | M63: 7789481.52 | N63: 7406203.801 | O63: 7032832.043 | P63: 6669152.858 | Q63: 6314957.067 | R63: 5970039.624
D64: 53 | E64: G.fast.Segment3_Fibre testing | G64: 0 | H64: 2041.22813 | I64: 7579.292733 | J64: 12869.72341 | K64: 18043.00899 | L64: 21012.15276 | M64: 20364.35715 | N64: 19716.30159 | O64: 19067.98599 | P64: 18419.41027 | Q64: 17770.57436 | R64: 17121.47818
D65: 54 | E65: G.fast.Segment3_Duct and Pole | G65: 0 | H65: 3716885.975 | I65: 11824535.68 | J65: 19874625.61 | K65: 28122920.45 | L65: 32531770.21 | M65: 32609915.03 | N65: 32682812.11 | O65: 32750281.2 | P65: 32812137.71 | Q65: 32868192.67 | R65: 32918252.58
D66: 55 | E66: G.fast.Segment3_Track Joint | G66: 0 | H66: 3262.708473 | I66: 11621.41627 | J66: 19564.28946 | K66: 27345.59756 | L66: 31652.76173 | M66: 30686.69711 | N66: 29717.25639 | O66: 28744.43088 | P66: 27768.21189 | Q66: 26788.59068 | R66: 25805.55851
D67: 56 | E67: G.fast.Segment3_Aggregation Node | G67: 0 | H67: 14849.8875 | I67: 58009.60051 | J67: 97690.83785 | K67: 134886.4353 | L67: 155580.6515 | M67: 147557.1398 | N67: 139761.4647 | O67: 132188.1986 | P67: 124832.0324 | Q67: 117687.7735 | R67: 110750.343
D68: 57 | E68: Unused | G68: 0 | H68: 0 | I68: 0 | J68: 0 | K68: 0 | L68: 0 | M68: 0 | N68: 0 | O68: 0 | P68: 0 | Q68: 0 | R68: 0
D69: 58 | E69: G.fast.Segment2_Fibre | G69: 0 | H69: 53793.77782 | I69: 215704.3345 | J69: 365342.1547 | K69: 506489.681 | L69: 587770.2799 | M69: 559512.5218 | N69: 531981.9384 | O69: 505162.8937 | P69: 479040.0602 | Q69: 453598.4128 | R69: 428823.2231
D70: 59 | E70: G.fast.Segment2_Fibre testing | G70: 0 | H70: 3461.212917 | I70: 12852.20744 | J70: 21823.03005 | K70: 30594.57393 | L70: 35629.83644 | M70: 34531.38421 | N70: 33432.49116 | O70: 32333.15718 | P70: 31233.38213 | Q70: 30133.16588 | R70: 29032.50828
D71: 60 | E71: G.fast.Segment2_Duct and Pole | G71: 0 | H71: 726602.7172 | I71: 2543606.55 | J71: 4346986.835 | K71: 6195509.008 | L71: 7297016.046 | M71: 7306980.202 | N71: 7315516.782 | O71: 7322579.224 | P71: 7328119.865 | Q71: 7332089.917 | R71: 7334439.446
D72: 61 | E72: Unused | G72: 0 | H72: 0 | I72: 0 | J72: 0 | K72: 0 | L72: 0 | M72: 0 | N72: 0 | O72: 0 | P72: 0 | Q72: 0 | R72: 0
D73: 62 | E73: Unused | G73: 0 | H73: 0 | I73: 0 | J73: 0 | K73: 0 | L73: 0 | M73: 0 | N73: 0 | O73: 0 | P73: 0 | Q73: 0 | R73: 0
D74: 63 | E74: EXCH_GE OLT Card | G74: 0 | H74: 147825.7349 | I74: 416655.0613 | J74: 655994.3089 | K74: 871707.299 | L74: 930232.1983 | M74: 862342.256 | N74: 798095.4593 | O74: 737327.2316 | P74: 679879.8582 | Q74: 625602.2137 | R74: 574349.4999
D75: 64 | E75: EXCH_GPON OLT Card | G75: 0 | H75: 479204.0863 | I75: 1378817.088 | J75: 2176960.355 | K75: 2892741.069 | L75: 3095692.567 | M75: 2859447.365 | N75: 2635849.242 | O75: 2424326.777 | P75: 2224332.37 | Q75: 2035341.303 | R75: 1856850.823
D76: 65 | E76: Unused | G76: 0 | H76: 0 | I76: 0 | J76: 0 | K76: 0 | L76: 0 | M76: 0 | N76: 0 | O76: 0 | P76: 0 | Q76: 0 | R76: 0
D77: 66 | E77: EXCH_OCR Subrack | G77: 0 | H77: 14386.9824 | I77: 39100.94077 | J77: 62504.82282 | K77: 84981.843 | L77: 91917.98713 | M77: 87524.3536 | N77: 83116.42514 | O77: 78694.16724 | P77: 74257.54534 | Q77: 69806.5248 | R77: 65341.07089
D78: 67 | E78: Unused | G78: 0 | H78: 0 | I78: 0 | J78: 0 | K78: 0 | L78: 0 | M78: 0 | N78: 0 | O78: 0 | P78: 0 | Q78: 0 | R78: 0
D79: 68 | E79: Remote Parent_Fibre | G79: 0 | H79: 11873.2847 | I79: 47623.27 | J79: 80666.58978 | K79: 111834.5417 | L79: 129786.3466 | M79: 123545.224 | N79: 117464.698 | O79: 111541.3155 | P79: 105771.6911 | Q79: 100152.5065 | R79: 94680.50887
D80: 69 | E80: Remote Parent_Fibre Testing | G80: 0 | H80: 318.1653412 | I80: 1181.462451 | J80: 2006.217287 | K80: 2812.65003 | L80: 3275.580485 | M80: 3174.595953 | N80: 3073.570896 | O80: 2972.505302 | P80: 2871.399159 | Q80: 2770.252455 | R80: 2669.065177
D81: 70 | E81: Remote Parent_Track Joint | G81: 0 | H81: 1096.512286 | I81: 3918.430515 | J81: 6620.441524 | K81: 9267.263796 | L81: 10732.783 | M81: 10405.25981 | N81: 10076.59203 | O81: 9746.776704 | P81: 9415.810886 | Q81: 9083.691615 | R81: 8750.415928
D82: 71 | E82: Unused | G82: 0 | H82: 0 | I82: 0 | J82: 0 | K82: 0 | L82: 0 | M82: 0 | N82: 0 | O82: 0 | P82: 0 | Q82: 0 | R82: 0
D83: 72 | E83: Other_Remote Parent Planning | G83: 0 | H83: 2091.438764 | I83: 7774.296173 | J83: 13201.16148 | K83: 18505.05018 | L83: 21550.18502 | M83: 20880.92462 | N83: 20211.66421 | O83: 19542.40381 | P83: 18873.1434 | Q83: 18203.883 | R83: 17534.6226
D84: 73 | E84: Other_FTTC DSLAM planning | G84: 0 | H84: 195632.1601 | I84: 629234.9362 | J84: 1068843.169 | K84: 1527814.942 | L84: 1782355.156 | M84: 1790051.416 | N84: 1796668.543 | O84: 1802136.692 | P84: 1806382.852 | Q84: 1809330.721 | R84: 1810900.574
D85: 74 | E85: Other_FTTP planning | G85: 0 | H85: 75026.5782 | I85: 241336.4936 | J85: 409952.7866 | K85: 585993.3118 | L85: 683636.0188 | M85: 686588.0047 | N85: 689126.0823 | O85: 691223.4623 | P85: 692852.1409 | Q85: 693982.8516 | R85: 694585.0154
D86: 75 | E86: Other_G.fast planning | G86: 0 | H86: 85596.96004 | I86: 275338.0294 | J86: 467710.4185 | K86: 668552.1924 | L86: 779950.6592 | M86: 783318.5366 | N86: 786214.1917 | O86: 788607.0611 | P86: 790465.1956 | Q86: 791755.2055 | R86: 792442.2035
D87: 76 | E87: Unused | G87: 0 | H87: 0 | I87: 0 | J87: 0 | K87: 0 | L87: 0 | M87: 0 | N87: 0 | O87: 0 | P87: 0 | Q87: 0 | R87: 0
D88: 77 | E88: Other_OSSBSS_Hardware | G88: 0 | H88: 0 | I88: 0 | J88: 0 | K88: 0 | L88: 0 | M88: 0 | N88: 0 | O88: 0 | P88: 0 | Q88: 0 | R88: 0
D89: 78 | E89: Other_OSSBSS_Software | G89: 0 | H89: 0 | I89: 0 | J89: 0 | K89: 0 | L89: 0 | M89: 0 | N89: 0 | O89: 0 | P89: 0 | Q89: 0 | R89: 0
D90: 79 | E90: Unused | G90: 0 | H90: 0 | I90: 0 | J90: 0 | K90: 0 | L90: 0 | M90: 0 | N90: 0 | O90: 0 | P90: 0 | Q90: 0 | R90: 0
D91: 80 | E91: Unused | G91: 0 | H91: 0 | I91: 0 | J91: 0 | K91: 0 | L91: 0 | M91: 0 | N91: 0 | O91: 0 | P91: 0 | Q91: 0 | R91: 0
D92: 81 | E92: Unused | G92: 0 | H92: 0 | I92: 0 | J92: 0 | K92: 0 | L92: 0 | M92: 0 | N92: 0 | O92: 0 | P92: 0 | Q92: 0 | R92: 0
D93: 82 | E93: Unused | G93: 0 | H93: 0 | I93: 0 | J93: 0 | K93: 0 | L93: 0 | M93: 0 | N93: 0 | O93: 0 | P93: 0 | Q93: 0 | R93: 0
D94: 83 | E94: Other_Software Configuration | G94: 0 | H94: 106087.1891 | I94: 243867.4509 | J94: 414491.9648 | K94: 618921.9364 | L94: 747510.1553 | M94: 878800.6162 | N94: 1012836.656 | O94: 1149659.006 | P94: 1173782.981 | Q94: 1166135.989 | R94: 1125682.873
D95: 84 | E95: Other_FTTC Engineer PCP Jumpering | G95: 0 | H95: 671130.9895 | I95: 1406154.164 | J95: 2208097.504 | K95: 3078568.473 | L95: 3319212.405 | M95: 3564766.582 | N95: 3815271.028 | O95: 4070726.076 | P95: 3600402.79 | Q95: 3064692.024 | R95: 2461768.307
D96: 85 | E96: Other_Gfast Engineer PCP Jumpering | G96: 0 | H96: 232613.6812 | I96: 487381.1103 | J96: 765324.8654 | K96: 1067063.522 | L96: 1150461.625 | M96: 1235573.177 | N96: 1322387.116 | O96: 1410930.268 | P96: 1247931.19 | Q96: 1062248.947 | R96: 853248.5716
D97: 86 | E97: Other_FTTC Premise Visit | G97: 0 | H97: 22576.9746 | I97: 32327.9031 | J97: 39126.4422 | K97: 46247.98988 | L97: 41977.53802 | M97: 40075.16831 | N97: 39391.5667 | O97: 38989.3387 | P97: 32683.26106 | Q97: 26620.7315 | R97: 21627.2731
D98: 87 | E98: Other_FTTP Premise Visit | G98: 0 | H98: 233760.669 | I98: 489889.3582 | J98: 769165.988 | K98: 1072348.251 | L98: 1156220.861 | M98: 1241667.818 | N98: 1328935.32 | O98: 1417941.109 | P98: 1254011.122 | Q98: 1067479.809 | R98: 857441.7808
D99: 88 | E99: Other_Gfast Premise Visit | G99: 0 | H99: 7851.343564 | I99: 11210.76683 | J99: 13576.66164 | K99: 16064.33293 | L99: 14562.89264 | M99: 13910.389 | N99: 13651.27949 | O99: 13535.35384 | P99: 11325.12999 | Q99: 9257.714705 | R99: 7493.830715
D100: 89 | E100: Unused | G100: 0 | H100: 0 | I100: 0 | J100: 0 | K100: 0 | L100: 0 | M100: 0 | N100: 0 | O100: 0 | P100: 0 | Q100: 0 | R100: 0
D101: 90 | E101: Unused | G101: 0 | H101: 0 | I101: 0 | J101: 0 | K101: 0 | L101: 0 | M101: 0 | N101: 0 | O101: 0 | P101: 0 | Q101: 0 | R101: 0
D102: 91 | E102: Other_FTTC Field Interventions | G102: 0 | H102: 22624.04407 | I102: 48753.67016 | J102: 76529.81096 | K102: 106701.4983 | L102: 115073.0551 | M102: 123547.0584 | N102: 132256.9565 | O102: 141140.392 | P102: 124804.6 | Q102: 106246.8005 | R102: 85331.58936
D103: 92 | E103: Unused | G103: 0 | H103: 0 | I103: 0 | J103: 0 | K103: 0 | L103: 0 | M103: 0 | N103: 0 | O103: 0 | P103: 0 | Q103: 0 | R103: 0
D104: 93 | E104: Other_Gfast Field Interventions | G104: 0 | H104: 7863.972537 | I104: 16944.105 | J104: 26549.85954 | K104: 37004.44001 | L104: 39875.51316 | M104: 42869.97448 | N104: 45857.93969 | O104: 48905.38095 | P104: 43253.82492 | Q104: 36856.93275 | R104: 29623.24281
D105: 94 | E105: Other_SLG Payments_Rentals | G105: 0 | H105: 11026.55277 | I105: 32414.80757 | J105: 63557.81506 | K105: 103852.8211 | L105: 142543.84 | M105: 179677.4909 | N105: 215300.3556 | O105: 249457.0257 | P105: 272785.7349 | Q105: 285881.9591 | R105: 289318.0342
D106: 95 | E106: Other_SLG Payments_Connections | G106: 0 | H106: 93191.34715 | I106: 191369.9727 | J106: 292973.3917 | K106: 397224.935 | L106: 416353.6337 | M106: 434296.6067 | N106: 451240.4321 | O106: 467312.7864 | P106: 401086.4823 | Q106: 331266.4096 | R106: 258069.776
D107: 96 | E107: Unused | G107: 0 | H107: 0 | I107: 0 | J107: 0 | K107: 0 | L107: 0 | M107: 0 | N107: 0 | O107: 0 | P107: 0 | Q107: 0 | R107: 0
D108: 97 | E108: Unused | G108: 0 | H108: 0 | I108: 0 | J108: 0 | K108: 0 | L108: 0 | M108: 0 | N108: 0 | O108: 0 | P108: 0 | Q108: 0 | R108: 0
D109: 98 | E109: Other_Cumulo | G109: 0 | H109: 93329.79194 | I109: 356670.6208 | J109: 769281.9349 | K109: 1382698.713 | L109: 1935782.506 | M109: 2488860.914 | N109: 3041939.322 | O109: 3595012.345 | P109: 4009822.497 | Q109: 4286364.393 | R109: 4424627.264
D110: 99 | E110: Unused | G110: 0 | H110: 0 | I110: 0 | J110: 0 | K110: 0 | L110: 0 | M110: 0 | N110: 0 | O110: 0 | P110: 0 | Q110: 0 | R110: 0
D111: 100 | E111: Unused | G111: 0 | H111: 0 | I111: 0 | J111: 0 | K111: 0 | L111: 0 | M111: 0 | N111: 0 | O111: 0 | P111: 0 | Q111: 0 | R111: 0
C116: FTTC adjustment
D117: Nominal
D118: 1 | E118: =Element.Names -> FTTC.PCP_Re-shell | F118: 1 | G118: =F118:F217*Premises_adj_FTTC -> 0.81 | H118: 0.81 | I118: 0.81 | J118: 0.81 | K118: 0.81 | L118: 0.81 | M118: 0.81 | N118: 0.81 | O118: 0.81 | P118: 0.81 | Q118: 0.81 | R118: 0.81
D119: 2 | E119: FTTC.PCP_Connector | F119: 1 | G119: 0.81 | H119: 0.81 | I119: 0.81 | J119: 0.81 | K119: 0.81 | L119: 0.81 | M119: 0.81 | N119: 0.81 | O119: 0.81 | P119: 0.81 | Q119: 0.81 | R119: 0.81
D120: 3 | E120: FTTC.PCP_Extra faults at PCP/Copper | F120: 1 | G120: 0.81 | H120: 0.81 | I120: 0.81 | J120: 0.81 | K120: 0.81 | L120: 0.81 | M120: 0.81 | N120: 0.81 | O120: 0.81 | P120: 0.81 | Q120: 0.81 | R120: 0.81
D121: 4 | E121: FTTC.PCP_Duct to FTTC Cab | F121: 1 | G121: 0.81 | H121: 0.81 | I121: 0.81 | J121: 0.81 | K121: 0.81 | L121: 0.81 | M121: 0.81 | N121: 0.81 | O121: 0.81 | P121: 0.81 | Q121: 0.81 | R121: 0.81
D122: 5 | E122: FTTC.PCP_Copper to Cab Type1 | F122: 1 | G122: 0.81 | H122: 0.81 | I122: 0.81 | J122: 0.81 | K122: 0.81 | L122: 0.81 | M122: 0.81 | N122: 0.81 | O122: 0.81 | P122: 0.81 | Q122: 0.81 | R122: 0.81
D123: 6 | E123: FTTC.PCP_Copper to Cab Type2 | F123: 1 | G123: 0.81 | H123: 0.81 | I123: 0.81 | J123: 0.81 | K123: 0.81 | L123: 0.81 | M123: 0.81 | N123: 0.81 | O123: 0.81 | P123: 0.81 | Q123: 0.81 | R123: 0.81
D124: 7 | E124: Unused | F124: 1 | G124: 0.81 | H124: 0.81 | I124: 0.81 | J124: 0.81 | K124: 0.81 | L124: 0.81 | M124: 0.81 | N124: 0.81 | O124: 0.81 | P124: 0.81 | Q124: 0.81 | R124: 0.81
D125: 8 | E125: FTTC.CAB_Power Connection | F125: 1 | G125: 0.81 | H125: 0.81 | I125: 0.81 | J125: 0.81 | K125: 0.81 | L125: 0.81 | M125: 0.81 | N125: 0.81 | O125: 0.81 | P125: 0.81 | Q125: 0.81 | R125: 0.81
D126: 9 | E126: FTTC.CAB_Civils (concrete Base) | F126: 1 | G126: 0.81 | H126: 0.81 | I126: 0.81 | J126: 0.81 | K126: 0.81 | L126: 0.81 | M126: 0.81 | N126: 0.81 | O126: 0.81 | P126: 0.81 | Q126: 0.81 | R126: 0.81
D127: 10 | E127: FTTC.CAB_Certification Managed Service | F127: 1 | G127: 0.81 | H127: 0.81 | I127: 0.81 | J127: 0.81 | K127: 0.81 | L127: 0.81 | M127: 0.81 | N127: 0.81 | O127: 0.81 | P127: 0.81 | Q127: 0.81 | R127: 0.81
D128: 11 | E128: Unused | F128: 1 | G128: 0.81 | H128: 0.81 | I128: 0.81 | J128: 0.81 | K128: 0.81 | L128: 0.81 | M128: 0.81 | N128: 0.81 | O128: 0.81 | P128: 0.81 | Q128: 0.81 | R128: 0.81
D129: 12 | E129: FTTC.CAB_Type1 DSLAM Cabinet | F129: 1 | G129: 0.81 | H129: 0.81 | I129: 0.81 | J129: 0.81 | K129: 0.81 | L129: 0.81 | M129: 0.81 | N129: 0.81 | O129: 0.81 | P129: 0.81 | Q129: 0.81 | R129: 0.81
D130: 13 | E130: FTTC.CAB_Type1 DSLAM Access Card | F130: 1 | G130: 0.81 | H130: 0.81 | I130: 0.81 | J130: 0.81 | K130: 0.81 | L130: 0.81 | M130: 0.81 | N130: 0.81 | O130: 0.81 | P130: 0.81 | Q130: 0.81 | R130: 0.81
D131: 14 | E131: FTTC.CAB_Type1 DSLAM GE port | F131: 1 | G131: 0.81 | H131: 0.81 | I131: 0.81 | J131: 0.81 | K131: 0.81 | L131: 0.81 | M131: 0.81 | N131: 0.81 | O131: 0.81 | P131: 0.81 | Q131: 0.81 | R131: 0.81
D132: 15 | E132: FTTC.CAB_Type2 DSLAM Cabinet | F132: 1 | G132: 0.81 | H132: 0.81 | I132: 0.81 | J132: 0.81 | K132: 0.81 | L132: 0.81 | M132: 0.81 | N132: 0.81 | O132: 0.81 | P132: 0.81 | Q132: 0.81 | R132: 0.81
D133: 16 | E133: FTTC.CAB_Type2 DSLAM Access Card | F133: 1 | G133: 0.81 | H133: 0.81 | I133: 0.81 | J133: 0.81 | K133: 0.81 | L133: 0.81 | M133: 0.81 | N133: 0.81 | O133: 0.81 | P133: 0.81 | Q133: 0.81 | R133: 0.81
D134: 17 | E134: FTTC.CAB_Type2 DSLAM GE port | F134: 1 | G134: 0.81 | H134: 0.81 | I134: 0.81 | J134: 0.81 | K134: 0.81 | L134: 0.81 | M134: 0.81 | N134: 0.81 | O134: 0.81 | P134: 0.81 | Q134: 0.81 | R134: 0.81
D135: 18 | E135: LR-VDSL_ADSL migration costs | F135: 1 | G135: 0.81 | H135: 0.81 | I135: 0.81 | J135: 0.81 | K135: 0.81 | L135: 0.81 | M135: 0.81 | N135: 0.81 | O135: 0.81 | P135: 0.81 | Q135: 0.81 | R135: 0.81
D136: 19 | E136: LR-VDSL_ADSL migration vols | F136: 1 | G136: 0.81 | H136: 0.81 | I136: 0.81 | J136: 0.81 | K136: 0.81 | L136: 0.81 | M136: 0.81 | N136: 0.81 | O136: 0.81 | P136: 0.81 | Q136: 0.81 | R136: 0.81
D137: 20 | E137: Unused | F137: 1 | G137: 0.81 | H137: 0.81 | I137: 0.81 | J137: 0.81 | K137: 0.81 | L137: 0.81 | M137: 0.81 | N137: 0.81 | O137: 0.81 | P137: 0.81 | Q137: 0.81 | R137: 0.81
D138: 21 | E138: FTTC.Segment3_Fibre | F138: 1 | G138: 0.81 | H138: 0.81 | I138: 0.81 | J138: 0.81 | K138: 0.81 | L138: 0.81 | M138: 0.81 | N138: 0.81 | O138: 0.81 | P138: 0.81 | Q138: 0.81 | R138: 0.81
D139: 22 | E139: FTTC.Segment3_Fibre testing | F139: 1 | G139: 0.81 | H139: 0.81 | I139: 0.81 | J139: 0.81 | K139: 0.81 | L139: 0.81 | M139: 0.81 | N139: 0.81 | O139: 0.81 | P139: 0.81 | Q139: 0.81 | R139: 0.81
D140: 23 | E140: FTTC.Segment3_Duct and Pole | F140: 1 | G140: 0.81 | H140: 0.81 | I140: 0.81 | J140: 0.81 | K140: 0.81 | L140: 0.81 | M140: 0.81 | N140: 0.81 | O140: 0.81 | P140: 0.81 | Q140: 0.81 | R140: 0.81
D141: 24 | E141: FTTC.Segment3_Track Joint | F141: 1 | G141: 0.81 | H141: 0.81 | I141: 0.81 | J141: 0.81 | K141: 0.81 | L141: 0.81 | M141: 0.81 | N141: 0.81 | O141: 0.81 | P141: 0.81 | Q141: 0.81 | R141: 0.81
D142: 25 | E142: FTTC.Segment3_Aggregation Node | F142: 1 | G142: 0.81 | H142: 0.81 | I142: 0.81 | J142: 0.81 | K142: 0.81 | L142: 0.81 | M142: 0.81 | N142: 0.81 | O142: 0.81 | P142: 0.81 | Q142: 0.81 | R142: 0.81
D143: 26 | E143: Unused | F143: 1 | G143: 0.81 | H143: 0.81 | I143: 0.81 | J143: 0.81 | K143: 0.81 | L143: 0.81 | M143: 0.81 | N143: 0.81 | O143: 0.81 | P143: 0.81 | Q143: 0.81 | R143: 0.81
D144: 27 | E144: FTTP.Node_Primary Splitter | F144: 0 | G144: 0 | H144: 0 | I144: 0 | J144: 0 | K144: 0 | L144: 0 | M144: 0 | N144: 0 | O144: 0 | P144: 0 | Q144: 0 | R144: 0
D145: 28 | E145: FTTP.Node_Primary Tray | F145: 0 | G145: 0 | H145: 0 | I145: 0 | J145: 0 | K145: 0 | L145: 0 | M145: 0 | N145: 0 | O145: 0 | P145: 0 | Q145: 0 | R145: 0
D146: 29 | E146: FTTP.Node_Secondary Splitter | F146: 0 | G146: 0 | H146: 0 | I146: 0 | J146: 0 | K146: 0 | L146: 0 | M146: 0 | N146: 0 | O146: 0 | P146: 0 | Q146: 0 | R146: 0
D147: 30 | E147: FTTP.Node_Secondary Tray | F147: 0 | G147: 0 | H147: 0 | I147: 0 | J147: 0 | K147: 0 | L147: 0 | M147: 0 | N147: 0 | O147: 0 | P147: 0 | Q147: 0 | R147: 0
D148: 31 | E148: FTTP.Node_GPON port | F148: 0 | G148: 0 | H148: 0 | I148: 0 | J148: 0 | K148: 0 | L148: 0 | M148: 0 | N148: 0 | O148: 0 | P148: 0 | Q148: 0 | R148: 0
D149: 32 | E149: Unused | F149: 0 | G149: 0 | H149: 0 | I149: 0 | J149: 0 | K149: 0 | L149: 0 | M149: 0 | N149: 0 | O149: 0 | P149: 0 | Q149: 0 | R149: 0
D150: 33 | E150: FTTP.Segment3_Fibre | F150: 0 | G150: 0 | H150: 0 | I150: 0 | J150: 0 | K150: 0 | L150: 0 | M150: 0 | N150: 0 | O150: 0 | P150: 0 | Q150: 0 | R150: 0
D151: 34 | E151: FTTP.Segment3_Fibre testing | F151: 0 | G151: 0 | H151: 0 | I151: 0 | J151: 0 | K151: 0 | L151: 0 | M151: 0 | N151: 0 | O151: 0 | P151: 0 | Q151: 0 | R151: 0
D152: 35 | E152: FTTP.Segment3_Duct and Pole | F152: 0 | G152: 0 | H152: 0 | I152: 0 | J152: 0 | K152: 0 | L152: 0 | M152: 0 | N152: 0 | O152: 0 | P152: 0 | Q152: 0 | R152: 0
D153: 36 | E153: FTTP.Segment3_Track Joint | F153: 0 | G153: 0 | H153: 0 | I153: 0 | J153: 0 | K153: 0 | L153: 0 | M153: 0 | N153: 0 | O153: 0 | P153: 0 | Q153: 0 | R153: 0
D154: 37 | E154: FTTP.Segment3_Aggregation Node | F154: 0 | G154: 0 | H154: 0 | I154: 0 | J154: 0 | K154: 0 | L154: 0 | M154: 0 | N154: 0 | O154: 0 | P154: 0 | Q154: 0 | R154: 0
D155: 38 | E155: Unused | F155: 0 | G155: 0 | H155: 0 | I155: 0 | J155: 0 | K155: 0 | L155: 0 | M155: 0 | N155: 0 | O155: 0 | P155: 0 | Q155: 0 | R155: 0
D156: 39 | E156: FTTP.Segment2_Fibre | F156: 0 | G156: 0 | H156: 0 | I156: 0 | J156: 0 | K156: 0 | L156: 0 | M156: 0 | N156: 0 | O156: 0 | P156: 0 | Q156: 0 | R156: 0
D157: 40 | E157: FTTP.Segment2_Fibre testing | F157: 0 | G157: 0 | H157: 0 | I157: 0 | J157: 0 | K157: 0 | L157: 0 | M157: 0 | N157: 0 | O157: 0 | P157: 0 | Q157: 0 | R157: 0
D158: 41 | E158: FTTP.Segment2_Duct and Pole | F158: 0 | G158: 0 | H158: 0 | I158: 0 | J158: 0 | K158: 0 | L158: 0 | M158: 0 | N158: 0 | O158: 0 | P158: 0 | Q158: 0 | R158: 0
D159: 42 | E159: FTTP.Segment1_Fibre | F159: 0 | G159: 0 | H159: 0 | I159: 0 | J159: 0 | K159: 0 | L159: 0 | M159: 0 | N159: 0 | O159: 0 | P159: 0 | Q159: 0 | R159: 0
D160: 43 | E160: Unused | F160: 0 | G160: 0 | H160: 0 | I160: 0 | J160: 0 | K160: 0 | L160: 0 | M160: 0 | N160: 0 | O160: 0 | P160: 0 | Q160: 0 | R160: 0
D161: 44 | E161: G.fast.Node_Primary Splitter | F161: 0 | G161: 0 | H161: 0 | I161: 0 | J161: 0 | K161: 0 | L161: 0 | M161: 0 | N161: 0 | O161: 0 | P161: 0 | Q161: 0 | R161: 0
D162: 45 | E162: G.fast.Node_Primary Tray | F162: 0 | G162: 0 | H162: 0 | I162: 0 | J162: 0 | K162: 0 | L162: 0 | M162: 0 | N162: 0 | O162: 0 | P162: 0 | Q162: 0 | R162: 0
D163: 46 | E163: G.fast.Node_DSLAM | F163: 0 | G163: 0 | H163: 0 | I163: 0 | J163: 0 | K163: 0 | L163: 0 | M163: 0 | N163: 0 | O163: 0 | P163: 0 | Q163: 0 | R163: 0
D164: 47 | E164: G.fast.Node_Hybrid Closure | F164: 0 | G164: 0 | H164: 0 | I164: 0 | J164: 0 | K164: 0 | L164: 0 | M164: 0 | N164: 0 | O164: 0 | P164: 0 | Q164: 0 | R164: 0
D165: 48 | E165: G.fast.Node_Power_Box | F165: 0 | G165: 0 | H165: 0 | I165: 0 | J165: 0 | K165: 0 | L165: 0 | M165: 0 | N165: 0 | O165: 0 | P165: 0 | Q165: 0 | R165: 0
D166: 49 | E166: G.fast.Node_Copper_Intercept_Point | F166: 0 | G166: 0 | H166: 0 | I166: 0 | J166: 0 | K166: 0 | L166: 0 | M166: 0 | N166: 0 | O166: 0 | P166: 0 | Q166: 0 | R166: 0
D167: 50 | E167: G.fast.Node_GPON port | F167: 0 | G167: 0 | H167: 0 | I167: 0 | J167: 0 | K167: 0 | L167: 0 | M167: 0 | N167: 0 | O167: 0 | P167: 0 | Q167: 0 | R167: 0
D168: 51 | E168: Unused | F168: 0 | G168: 0 | H168: 0 | I168: 0 | J168: 0 | K168: 0 | L168: 0 | M168: 0 | N168: 0 | O168: 0 | P168: 0 | Q168: 0 | R168: 0
D169: 52 | E169: G.fast.Segment3_Fibre | F169: 0 | G169: 0 | H169: 0 | I169: 0 | J169: 0 | K169: 0 | L169: 0 | M169: 0 | N169: 0 | O169: 0 | P169: 0 | Q169: 0 | R169: 0
D170: 53 | E170: G.fast.Segment3_Fibre testing | F170: 0 | G170: 0 | H170: 0 | I170: 0 | J170: 0 | K170: 0 | L170: 0 | M170: 0 | N170: 0 | O170: 0 | P170: 0 | Q170: 0 | R170: 0
D171: 54 | E171: G.fast.Segment3_Duct and Pole | F171: 0 | G171: 0 | H171: 0 | I171: 0 | J171: 0 | K171: 0 | L171: 0 | M171: 0 | N171: 0 | O171: 0 | P171: 0 | Q171: 0 | R171: 0
D172: 55 | E172: G.fast.Segment3_Track Joint | F172: 0 | G172: 0 | H172: 0 | I172: 0 | J172: 0 | K172: 0 | L172: 0 | M172: 0 | N172: 0 | O172: 0 | P172: 0 | Q172: 0 | R172: 0
D173: 56 | E173: G.fast.Segment3_Aggregation Node | F173: 0 | G173: 0 | H173: 0 | I173: 0 | J173: 0 | K173: 0 | L173: 0 | M173: 0 | N173: 0 | O173: 0 | P173: 0 | Q173: 0 | R173: 0
D174: 57 | E174: Unused | F174: 0 | G174: 0 | H174: 0 | I174: 0 | J174: 0 | K174: 0 | L174: 0 | M174: 0 | N174: 0 | O174: 0 | P174: 0 | Q174: 0 | R174: 0
D175: 58 | E175: G.fast.Segment2_Fibre | F175: 0 | G175: 0 | H175: 0 | I175: 0 | J175: 0 | K175: 0 | L175: 0 | M175: 0 | N175: 0 | O175: 0 | P175: 0 | Q175: 0 | R175: 0
D176: 59 | E176: G.fast.Segment2_Fibre testing | F176: 0 | G176: 0 | H176: 0 | I176: 0 | J176: 0 | K176: 0 | L176: 0 | M176: 0 | N176: 0 | O176: 0 | P176: 0 | Q176: 0 | R176: 0
D177: 60 | E177: G.fast.Segment2_Duct and Pole | F177: 0 | G177: 0 | H177: 0 | I177: 0 | J177: 0 | K177: 0 | L177: 0 | M177: 0 | N177: 0 | O177: 0 | P177: 0 | Q177: 0 | R177: 0
D178: 61 | E178: Unused | F178: 0 | G178: 0 | H178: 0 | I178: 0 | J178: 0 | K178: 0 | L178: 0 | M178: 0 | N178: 0 | O178: 0 | P178: 0 | Q178: 0 | R178: 0
D179: 62 | E179: Unused | F179: 0 | G179: 0 | H179: 0 | I179: 0 | J179: 0 | K179: 0 | L179: 0 | M179: 0 | N179: 0 | O179: 0 | P179: 0 | Q179: 0 | R179: 0
D180: 63 | E180: EXCH_GE OLT Card | F180: 0 | G180: 0 | H180: 0 | I180: 0 | J180: 0 | K180: 0 | L180: 0 | M180: 0 | N180: 0 | O180: 0 | P180: 0 | Q180: 0 | R180: 0
D181: 64 | E181: EXCH_GPON OLT Card | F181: 0 | G181: 0 | H181: 0 | I181: 0 | J181: 0 | K181: 0 | L181: 0 | M181: 0 | N181: 0 | O181: 0 | P181: 0 | Q181: 0 | R181: 0
D182: 65 | E182: Unused | F182: 0 | G182: 0 | H182: 0 | I182: 0 | J182: 0 | K182: 0 | L182: 0 | M182: 0 | N182: 0 | O182: 0 | P182: 0 | Q182: 0 | R182: 0
D183: 66 | E183: EXCH_OCR Subrack | F183: 0 | G183: 0 | H183: 0 | I183: 0 | J183: 0 | K183: 0 | L183: 0 | M183: 0 | N183: 0 | O183: 0 | P183: 0 | Q183: 0 | R183: 0
D184: 67 | E184: Unused | F184: 0 | G184: 0 | H184: 0 | I184: 0 | J184: 0 | K184: 0 | L184: 0 | M184: 0 | N184: 0 | O184: 0 | P184: 0 | Q184: 0 | R184: 0
D185: 68 | E185: Remote Parent_Fibre | F185: 0 | G185: 0 | H185: 0 | I185: 0 | J185: 0 | K185: 0 | L185: 0 | M185: 0 | N185: 0 | O185: 0 | P185: 0 | Q185: 0 | R185: 0
D186: 69 | E186: Remote Parent_Fibre Testing | F186: 0 | G186: 0 | H186: 0 | I186: 0 | J186: 0 | K186: 0 | L186: 0 | M186: 0 | N186: 0 | O186: 0 | P186: 0 | Q186: 0 | R186: 0
D187: 70 | E187: Remote Parent_Track Joint | F187: 0 | G187: 0 | H187: 0 | I187: 0 | J187: 0 | K187: 0 | L187: 0 | M187: 0 | N187: 0 | O187: 0 | P187: 0 | Q187: 0 | R187: 0
D188: 71 | E188: Unused | F188: 0 | G188: 0 | H188: 0 | I188: 0 | J188: 0 | K188: 0 | L188: 0 | M188: 0 | N188: 0 | O188: 0 | P188: 0 | Q188: 0 | R188: 0
D189: 72 | E189: Other_Remote Parent Planning | F189: 0 | G189: 0 | H189: 0 | I189: 0 | J189: 0 | K189: 0 | L189: 0 | M189: 0 | N189: 0 | O189: 0 | P189: 0 | Q189: 0 | R189: 0
D190: 73 | E190: Other_FTTC DSLAM planning | F190: 1 | G190: 0.81 | H190: 0.81 | I190: 0.81 | J190: 0.81 | K190: 0.81 | L190: 0.81 | M190: 0.81 | N190: 0.81 | O190: 0.81 | P190: 0.81 | Q190: 0.81 | R190: 0.81
D191: 74 | E191: Other_FTTP planning | F191: 0 | G191: 0 | H191: 0 | I191: 0 | J191: 0 | K191: 0 | L191: 0 | M191: 0 | N191: 0 | O191: 0 | P191: 0 | Q191: 0 | R191: 0
D192: 75 | E192: Other_G.fast planning | F192: 0 | G192: 0 | H192: 0 | I192: 0 | J192: 0 | K192: 0 | L192: 0 | M192: 0 | N192: 0 | O192: 0 | P192: 0 | Q192: 0 | R192: 0
D193: 76 | E193: Unused | F193: 0 | G193: 0 | H193: 0 | I193: 0 | J193: 0 | K193: 0 | L193: 0 | M193: 0 | N193: 0 | O193: 0 | P193: 0 | Q193: 0 | R193: 0
D194: 77 | E194: Other_OSSBSS_Hardware | F194: 0 | G194: 0 | H194: 0 | I194: 0 | J194: 0 | K194: 0 | L194: 0 | M194: 0 | N194: 0 | O194: 0 | P194: 0 | Q194: 0 | R194: 0
D195: 78 | E195: Other_OSSBSS_Software | F195: 0 | G195: 0 | H195: 0 | I195: 0 | J195: 0 | K195: 0 | L195: 0 | M195: 0 | N195: 0 | O195: 0 | P195: 0 | Q195: 0 | R195: 0
D196: 79 | E196: Unused | F196: 0 | G196: 0 | H196: 0 | I196: 0 | J196: 0 | K196: 0 | L196: 0 | M196: 0 | N196: 0 | O196: 0 | P196: 0 | Q196: 0 | R196: 0
D197: 80 | E197: Unused | F197: 0 | G197: 0 | H197: 0 | I197: 0 | J197: 0 | K197: 0 | L197: 0 | M197: 0 | N197: 0 | O197: 0 | P197: 0 | Q197: 0 | R197: 0
D198: 81 | E198: Unused | F198: 0 | G198: 0 | H198: 0 | I198: 0 | J198: 0 | K198: 0 | L198: 0 | M198: 0 | N198: 0 | O198: 0 | P198: 0 | Q198: 0 | R198: 0
D199: 82 | E199: Unused | F199: 0 | G199: 0 | H199: 0 | I199: 0 | J199: 0 | K199: 0 | L199: 0 | M199: 0 | N199: 0 | O199: 0 | P199: 0 | Q199: 0 | R199: 0
D200: 83 | E200: Other_Software Configuration | F200: =TD_rev_adjustment/Premises_adj_FTTC -> 0.8674991472 | G200: 0.7026743092 | H200: 0.7026743092 | I200: 0.7026743092 | J200: 0.7026743092 | K200: 0.7026743092 | L200: 0.7026743092 | M200: 0.7026743092 | N200: 0.7026743092 | O200: 0.7026743092 | P200: 0.7026743092 | Q200: 0.7026743092 | R200: 0.7026743092
D201: 84 | E201: Other_FTTC Engineer PCP Jumpering | F201: =TD_rev_adjustment/Premises_adj_FTTC -> 0.8674991472 | G201: 0.7026743092 | H201: 0.7026743092 | I201: 0.7026743092 | J201: 0.7026743092 | K201: 0.7026743092 | L201: 0.7026743092 | M201: 0.7026743092 | N201: 0.7026743092 | O201: 0.7026743092 | P201: 0.7026743092 | Q201: 0.7026743092 | R201: 0.7026743092
D202: 85 | E202: Other_Gfast Engineer PCP Jumpering | F202: 0 | G202: 0 | H202: 0 | I202: 0 | J202: 0 | K202: 0 | L202: 0 | M202: 0 | N202: 0 | O202: 0 | P202: 0 | Q202: 0 | R202: 0
D203: 86 | E203: Other_FTTC Premise Visit | F203: =TD_rev_adjustment/Premises_adj_FTTC -> 0.8674991472 | G203: 0.7026743092 | H203: 0.7026743092 | I203: 0.7026743092 | J203: 0.7026743092 | K203: 0.7026743092 | L203: 0.7026743092 | M203: 0.7026743092 | N203: 0.7026743092 | O203: 0.7026743092 | P203: 0.7026743092 | Q203: 0.7026743092 | R203: 0.7026743092
D204: 87 | E204: Other_FTTP Premise Visit | F204: 0 | G204: 0 | H204: 0 | I204: 0 | J204: 0 | K204: 0 | L204: 0 | M204: 0 | N204: 0 | O204: 0 | P204: 0 | Q204: 0 | R204: 0
D205: 88 | E205: Other_Gfast Premise Visit | F205: 0 | G205: 0 | H205: 0 | I205: 0 | J205: 0 | K205: 0 | L205: 0 | M205: 0 | N205: 0 | O205: 0 | P205: 0 | Q205: 0 | R205: 0
D206: 89 | E206: Unused | F206: 0 | G206: 0 | H206: 0 | I206: 0 | J206: 0 | K206: 0 | L206: 0 | M206: 0 | N206: 0 | O206: 0 | P206: 0 | Q206: 0 | R206: 0
D207: 90 | E207: Unused | F207: 0 | G207: 0 | H207: 0 | I207: 0 | J207: 0 | K207: 0 | L207: 0 | M207: 0 | N207: 0 | O207: 0 | P207: 0 | Q207: 0 | R207: 0
D208: 91 | E208: Other_FTTC Field Interventions | F208: =TD_rev_adjustment/Premises_adj_FTTC -> 0.8674991472 | G208: 0.7026743092 | H208: 0.7026743092 | I208: 0.7026743092 | J208: 0.7026743092 | K208: 0.7026743092 | L208: 0.7026743092 | M208: 0.7026743092 | N208: 0.7026743092 | O208: 0.7026743092 | P208: 0.7026743092 | Q208: 0.7026743092 | R208: 0.7026743092
D209: 92 | E209: Unused | F209: 1 | G209: 0.81 | H209: 0.81 | I209: 0.81 | J209: 0.81 | K209: 0.81 | L209: 0.81 | M209: 0.81 | N209: 0.81 | O209: 0.81 | P209: 0.81 | Q209: 0.81 | R209: 0.81
D210: 93 | E210: Other_Gfast Field Interventions | F210: 0 | G210: 0 | H210: 0 | I210: 0 | J210: 0 | K210: 0 | L210: 0 | M210: 0 | N210: 0 | O210: 0 | P210: 0 | Q210: 0 | R210: 0
... 620 more rows

Sheet Additional charge
A1: UBC Mark-up
C3: Scenario: | D3: =UBC_scenario -> B1
G7: =years_number -> 1 | H7: 2 | I7: 3 | J7: 4 | K7: 5 | L7: 6 | M7: 7 | N7: 8 | O7: 9 | P7: 10 | Q7: 11 | R7: 12
D8: Element | G8: =financial_years -> 2017/18 | H8: 2018/19 | I8: 2019/20 | J8: 2020/21 | K8: 2021/22 | L8: 2022/23 | M8: 2023/24 | N8: 2024/25 | O8: 2025/26 | P8: 2026/27 | Q8: 2027/28 | R8: 2028/29
C12: Adjusted CCA costs
D13: Nominal
E14: Adjusted CCA costs | G14: =Adj_CCA_costs -> 0 | H14: 8431657.272 | I14: 26613992.95 | J14: 44560320.1 | K14: 62766894.82 | L14: 72370855.04 | M14: 72422990.11 | N14: 72479216.94 | O14: 72538646.79 | P14: 72269933.53 | Q14: 71693762.27 | R14: 70736126.46
C17: Incremental revenue
D18: Nominal
E19: Unadjusted incremental revenue | G19: ='[1]Indirect benefits'!$G$84:$R$84 -> 0 | H19: 3410665.534 | I19: 7924630.711 | J19: 13770259.39 | K19: 21787245 | L19: 28230353.24 | M19: 34925541.86 | N19: 41550455.19 | O19: 48088887.03 | P19: 51485367.46 | Q19: 53289480.63 | R19: 53401910.89
E20: Adjustments | G20: =G19:R19*TD_rev_adjustment -> 0 | H20: 2396587.048 | I20: 5568434.411 | J20: 9676007.504 | K20: 15309337.33 | L20: 19836743.96 | M20: 24541281 | N20: 29196437.4 | O20: 33790825.47 | P20: 36177445.01 | Q20: 37445148.99 | R20: 37524150.84
E21: Adjusted incremental revenue | G21: =IFG19-G20 -> 0 | H21: =H19-H20 -> 1014078.486 | I21: 2356196.3 | J21: 4094251.885 | K21: 6477907.67 | L21: 8393609.278 | M21: 10384260.86 | N21: 12354017.79 | O21: 14298061.55 | P21: 15307922.44 | Q21: 15844331.64 | R21: 15877760.04
C24: Net costs
D25: Nominal
E26: Adjusted CCA costs | G26: =G14:R14 -> 0 | H26: 8431657.272 | I26: 26613992.95 | J26: 44560320.1 | K26: 62766894.82 | L26: 72370855.04 | M26: 72422990.11 | N26: 72479216.94 | O26: 72538646.79 | P26: 72269933.53 | Q26: 71693762.27 | R26: 70736126.46
E27: Adjusted incremental revenue | G27: =G21:R21 -> 0 | H27: 1014078.486 | I27: 2356196.3 | J27: 4094251.885 | K27: 6477907.67 | L27: 8393609.278 | M27: 10384260.86 | N27: 12354017.79 | O27: 14298061.55 | P27: 15307922.44 | Q27: 15844331.64 | R27: 15877760.04
E28: Net cost | G28: =G26:R26-G27:R27 -> 0 | H28: 7417578.786 | I28: 24257796.65 | J28: 40466068.22 | K28: 56288987.15 | L28: 63977245.76 | M28: 62038729.25 | N28: 60125199.15 | O28: 58240585.24 | P28: 56962011.08 | Q28: 55849430.63 | R28: 54858366.42
C31: Openreach broadband lines | G31: =INDIRECT("BB_lines_"&Broadband_scenario)*million -> 20663096.34 | H31: 20969064.94 | I31: 21292948.08 | J31: 21619011.37 | K31: 22142031.39 | L31: 22635680.19 | M31: 23089989.17 | N31: 23496083.93 | O31: 23872134.11 | P31: 24220203.49 | Q31: 24538706.31 | R31: 24832913.15
C35: Additional charge
D36: Nominal
E37: Incremental cost / bb line / annum | G37: =G28:R28/G31:R31 -> 0 | H37: 0.3537391299 | I37: 1.139240868 | J37: 1.871781624 | K37: 2.542178093 | L37: 2.826389365 | M37: 2.686823662 | N37: 2.558945539 | O37: 2.439689094 | P37: 2.351838667 | Q37: 2.275972903 | R37: 2.209099114
E38: Incremental cost / bb line / month | G38: =G37:R37/12 -> 0 | H38: 0.02947826082 | I38: 0.09493673901 | J38: 0.155981802 | K38: 0.2118481745 | L38: 0.2355324471 | M38: 0.2239019718 | N38: 0.2132454616 | O38: 0.2033074245 | P38: 0.1959865556 | Q38: 0.1896644086 | R38: 0.1840915928

Sheet Impact on WLACC
A1: Impact on WLACC
F6: 2016/17 | G6: 2017/18 | H6: 2018/19 | I6: 2019/20 | J6: 2020/21
C8: Lacuna adjusted CPI - X Prices | F8: Actual Price
C9: Basket | D9: Unit | E9: Period | F9: 2016/17 | G9: 2017/18 | H9: 2018/19 | I9: 2019/20 | J9: 2020/21
C10: Analogue Core WLR Rentals | D10: GBP | E10: Period-end | F10: 86.72 | G10: 86.72 | H10: 87.54126836 | I10: 87.60264903 | J10: 87.53562021
C11: Shared Metallic Path Facility (SMPF) Rentals | D11: GBP | E11: Period-end | F11: 2.5 | G11: 2.5 | H11: 2.164408245 | I11: 2.00519691 | J11: 1.95959572
C12: Metallic Path Facility (MPF) New Provide Services | D12: GBP | E12: Period-end | F12: 39 | G12: 39 | H12: 29.23332785 | I12: 25.19198706 | J12: 24.36017933
C13: Metallic Path Facility (MPF) Single Migrations | D13: GBP | E13: Period-end | F13: 30.26 | G13: 30.26 | H13: 23.88694859 | I13: 21.12689543 | J13: 20.44067963
C14: Metallic Path Facility (MPF) Bulk Migrations | D14: GBP | E14: Period-end | F14: 20.97 | G14: 20.97 | H14: 14.91869126 | I14: 12.52335164 | J14: 12.18952418
C15: Metallic Path Facility (MPF) Rentals | D15: GBP | E15: Period-end | F15: 85.29 | G15: 85.29 | H15: 83.4960417 | I15: 82.27737038 | J15: 81.98341463
C16: Co-Mingling New Provides and Rentals | D16: GBP | E16: Period-end | F16: 2585.751601 | G16: 2585.751601 | H16: 4060.662407 | I16: 5072.306881 | J16: 4906.50294
C17: Tie Cables | D17: GBP | E17: Period-end | F17: 23.72797837 | G17: 23.72797837 | H17: 23.8372504 | I17: 23.79618125 | J17: 23.42679482
C18: Hard Ceases | D18: GBP | E18: Period-end | F18: 23.06630308 | G18: 23.06630308 | H18: 17.26920443 | I18: 14.872899 | J18: 14.47643141
C19: Other LLU Ancillary Services | D19: GBP | E19: Period-end | F19: 16.9 | G19: 16.9 | H19: 7.8620093 | I19: 5.330744793 | J19: 5.117895533
C20: GEA FTTC Rentals | D20: GBP | E20: Period-end | F20: 93.02163662 | G20: 93.02163662 | H20: 71.42452521 | I20: 62.29893769 | J20: 57.4586393
C21: GEA FTTC 18/2 | D21: GBP | E21: Period-end | F21: 48 | G21: 48 | H21: 35.82837357 | I21: 30.81009898 | J21: 28.52386369
C22: GEA FTTC 40/2 | D22: GBP | E22: Period-end | F22: 82.8 | G22: 82.8 | H22: 61.80394442 | I22: 53.14742074 | J22: 49.20366487
C23: GEA FTTC 40/10 | D23: GBP | E23: Period-end | F23: 88.8 | G23: 88.8 | H23: 66.28249111 | I23: 56.99868312 | J23: 52.76914783
C24: GEA FTTC 55/10 | D24: GBP | E24: Period-end | F24: 100.8 | G24: 100.8 | H24: 75.23958451 | I24: 64.70120786 | J24: 59.90011375
C25: GEA FTTC 80/20 | D25: GBP | E25: Period-end | F25: 119.4 | G25: 119.4 | H25: 89.12307927 | I25: 76.64012122 | J25: 70.95311093
C26: GEA FTTC Connections | D26: GBP | E26: Period-end | F26: 49 | G26: 49 | H26: 43.47198143 | I26: 40.77155531 | J26: 42.1180059
C27: GEA CP to CP Migration | D27: GBP | E27: Period-end | F27: 11 | G27: 11 | H27: 4.498420342 | I27: 2.858597805 | J27: 2.947229228
C28: GEA Bandwidth changes (40/10) | D28: GBP | E28: Period-end | F28: 11.25 | G28: 11.25 | H28: 7.74394152 | I28: 6.393754129 | J28: 6.272735028
C29: GEA Start of Stopped Line (40/10) | D29: GBP | E29: Period-end | F29: 32.52 | G29: 32.52 | H29: 6.468039781 | I29: 2.858567814 | J29: 2.947229228
C32: UBC service cost recovery factor
C33: Analogue Core WLR Rentals | F33: 0
C34: Shared Metallic Path Facility (SMPF) Rentals | F34: 0
C35: Metallic Path Facility (MPF) New Provide Services | F35: 0
C36: Metallic Path Facility (MPF) Single Migrations | F36: 0
C37: Metallic Path Facility (MPF) Bulk Migrations | F37: 0
C38: Metallic Path Facility (MPF) Rentals | F38: 1
C39: Co-Mingling New Provides and Rentals | F39: 0
C40: Tie Cables | F40: 0
C41: Hard Ceases | F41: 0
C42: Other LLU Ancillary Services | F42: 0
C43: GEA FTTC Rentals | F43: 0
C44: GEA FTTC 18/2 | F44: 1
C45: GEA FTTC 40/2 | F45: 1
C46: GEA FTTC 40/10 | F46: 1
C47: GEA FTTC 55/10 | F47: 1
C48: GEA FTTC 80/20 | F48: 1
C49: GEA FTTC Connections | F49: 0
C50: GEA CP to CP Migration | F50: 0
C51: GEA Bandwidth changes (40/10) | F51: 0
C52: GEA Start of Stopped Line (40/10) | F52: 0
C55: CPI - X Price plus UBC mark-up
C56: Analogue Core WLR Rentals | F56: =F10 -> 86.72 | G56: =IF($F33=0,G10,G10+'Additional charge'!G$37) -> 86.72 | H56: =IF($F33=0,H10,H10+'Additional charge'!H$37) -> 87.54126836 | I56: =IF($F33=0,I10,I10+'Additional charge'!I$37) -> 87.60264903 | J56: =IF($F33=0,J10,J10+'Additional charge'!J$37) -> 87.53562021
C57: Shared Metallic Path Facility (SMPF) Rentals | F57: =F11 -> 2.5 | G57: =IF($F34=0,G11,G11+'Additional charge'!G$37) -> 2.5 | H57: =IF($F34=0,H11,H11+'Additional charge'!H$37) -> 2.164408245 | I57: =IF($F34=0,I11,I11+'Additional charge'!I$37) -> 2.00519691 | J57: =IF($F34=0,J11,J11+'Additional charge'!J$37) -> 1.95959572
C58: Metallic Path Facility (MPF) New Provide Services | F58: 39 | G58: =IF($F35=0,G12,G12+'Additional charge'!G$37) -> 39 | H58: =IF($F35=0,H12,H12+'Additional charge'!H$37) -> 29.23332785 | I58: =IF($F35=0,I12,I12+'Additional charge'!I$37) -> 25.19198706 | J58: =IF($F35=0,J12,J12+'Additional charge'!J$37) -> 24.36017933
C59: Metallic Path Facility (MPF) Single Migrations | F59: 30.26 | G59: =IF($F36=0,G13,G13+'Additional charge'!G$37) -> 30.26 | H59: =IF($F36=0,H13,H13+'Additional charge'!H$37) -> 23.88694859 | I59: =IF($F36=0,I13,I13+'Additional charge'!I$37) -> 21.12689543 | J59: =IF($F36=0,J13,J13+'Additional charge'!J$37) -> 20.44067963
C60: Metallic Path Facility (MPF) Bulk Migrations | F60: 20.97 | G60: =IF($F37=0,G14,G14+'Additional charge'!G$37) -> 20.97 | H60: =IF($F37=0,H14,H14+'Additional charge'!H$37) -> 14.91869126 | I60: =IF($F37=0,I14,I14+'Additional charge'!I$37) -> 12.52335164 | J60: =IF($F37=0,J14,J14+'Additional charge'!J$37) -> 12.18952418
C61: Metallic Path Facility (MPF) Rentals | F61: 85.29 | G61: =IF($F38=0,G15,G15+'Additional charge'!G$37) -> 85.29 | H61: =IF($F38=0,H15,H15+'Additional charge'!H$37) -> 83.84978083 | I61: =IF($F38=0,I15,I15+'Additional charge'!I$37) -> 83.41661125 | J61: =IF($F38=0,J15,J15+'Additional charge'!J$37) -> 83.85519626
C62: Co-Mingling New Provides and Rentals | F62: 2585.751601 | G62: =IF($F39=0,G16,G16+'Additional charge'!G$37) -> 2585.751601 | H62: =IF($F39=0,H16,H16+'Additional charge'!H$37) -> 4060.662407 | I62: =IF($F39=0,I16,I16+'Additional charge'!I$37) -> 5072.306881 | J62: =IF($F39=0,J16,J16+'Additional charge'!J$37) -> 4906.50294
C63: Tie Cables | F63: 23.72797837 | G63: =IF($F40=0,G17,G17+'Additional charge'!G$37) -> 23.72797837 | H63: =IF($F40=0,H17,H17+'Additional charge'!H$37) -> 23.8372504 | I63: =IF($F40=0,I17,I17+'Additional charge'!I$37) -> 23.79618125 | J63: =IF($F40=0,J17,J17+'Additional charge'!J$37) -> 23.42679482
C64: Hard Ceases | F64: 23.06630308 | G64: =IF($F41=0,G18,G18+'Additional charge'!G$37) -> 23.06630308 | H64: =IF($F41=0,H18,H18+'Additional charge'!H$37) -> 17.26920443 | I64: =IF($F41=0,I18,I18+'Additional charge'!I$37) -> 14.872899 | J64: =IF($F41=0,J18,J18+'Additional charge'!J$37) -> 14.47643141
C65: Other LLU Ancillary Services | F65: 16.9 | G65: =IF($F42=0,G19,G19+'Additional charge'!G$37) -> 16.9 | H65: =IF($F42=0,H19,H19+'Additional charge'!H$37) -> 7.8620093 | I65: =IF($F42=0,I19,I19+'Additional charge'!I$37) -> 5.330744793 | J65: =IF($F42=0,J19,J19+'Additional charge'!J$37) -> 5.117895533
C66: GEA FTTC Rentals | F66: 93.02163662 | G66: =IF($F43=0,G20,G20+'Additional charge'!G$37) -> 93.02163662 | H66: =IF($F43=0,H20,H20+'Additional charge'!H$37) -> 71.42452521 | I66: =IF($F43=0,I20,I20+'Additional charge'!I$37) -> 62.29893769 | J66: =IF($F43=0,J20,J20+'Additional charge'!J$37) -> 57.4586393
C67: GEA FTTC 18/2 | F67: 48 | G67: =IF($F44=0,G21,G21+'Additional charge'!G$37) -> 48 | H67: =IF($F44=0,H21,H21+'Additional charge'!H$37) -> 36.1821127 | I67: =IF($F44=0,I21,I21+'Additional charge'!I$37) -> 31.94933985 | J67: =IF($F44=0,J21,J21+'Additional charge'!J$37) -> 30.39564532
C68: GEA FTTC 40/2 | F68: 82.8 | G68: =IF($F45=0,G22,G22+'Additional charge'!G$37) -> 82.8 | H68: =IF($F45=0,H22,H22+'Additional charge'!H$37) -> 62.15768355 | I68: =IF($F45=0,I22,I22+'Additional charge'!I$37) -> 54.28666161 | J68: =IF($F45=0,J22,J22+'Additional charge'!J$37) -> 51.07544649
C69: GEA FTTC 40/10 | F69: 88.8 | G69: =IF($F46=0,G23,G23+'Additional charge'!G$37) -> 88.8 | H69: =IF($F46=0,H23,H23+'Additional charge'!H$37) -> 66.63623024 | I69: =IF($F46=0,I23,I23+'Additional charge'!I$37) -> 58.13792398 | J69: =IF($F46=0,J23,J23+'Additional charge'!J$37) -> 54.64092945
C70: GEA FTTC 55/10 | F70: 100.8 | G70: =IF($F47=0,G24,G24+'Additional charge'!G$37) -> 100.8 | H70: =IF($F47=0,H24,H24+'Additional charge'!H$37) -> 75.59332364 | I70: =IF($F47=0,I24,I24+'Additional charge'!I$37) -> 65.84044873 | J70: =IF($F47=0,J24,J24+'Additional charge'!J$37) -> 61.77189538
C71: GEA FTTC 80/20 | F71: 119.4 | G71: =IF($F48=0,G25,G25+'Additional charge'!G$37) -> 119.4 | H71: =IF($F48=0,H25,H25+'Additional charge'!H$37) -> 89.4768184 | I71: =IF($F48=0,I25,I25+'Additional charge'!I$37) -> 77.77936209 | J71: =IF($F48=0,J25,J25+'Additional charge'!J$37) -> 72.82489256
C72: GEA FTTC Connections | F72: 49 | G72: =IF($F49=0,G26,G26+'Additional charge'!G$37) -> 49 | H72: =IF($F49=0,H26,H26+'Additional charge'!H$37) -> 43.47198143 | I72: =IF($F49=0,I26,I26+'Additional charge'!I$37) -> 40.77155531 | J72: =IF($F49=0,J26,J26+'Additional charge'!J$37) -> 42.1180059
C73: GEA CP to CP Migration | F73: 11 | G73: =IF($F50=0,G27,G27+'Additional charge'!G$37) -> 11 | H73: =IF($F50=0,H27,H27+'Additional charge'!H$37) -> 4.498420342 | I73: =IF($F50=0,I27,I27+'Additional charge'!I$37) -> 2.858597805 | J73: =IF($F50=0,J27,J27+'Additional charge'!J$37) -> 2.947229228
C74: GEA Bandwidth changes (40/10) | F74: 11.25 | G74: =IF($F51=0,G28,G28+'Additional charge'!G$37) -> 11.25 | H74: =IF($F51=0,H28,H28+'Additional charge'!H$37) -> 7.74394152 | I74: =IF($F51=0,I28,I28+'Additional charge'!I$37) -> 6.393754129 | J74: =IF($F51=0,J28,J28+'Additional charge'!J$37) -> 6.272735028
C75: GEA Start of Stopped Line (40/10) | F75: 32.52 | G75: =IF($F52=0,G29,G29+'Additional charge'!G$37) -> 32.52 | H75: =IF($F52=0,H29,H29+'Additional charge'!H$37) -> 6.468039781 | I75: =IF($F52=0,I29,I29+'Additional charge'!I$37) -> 2.858567814 | J75: =IF($F52=0,J29,J29+'Additional charge'!J$37) -> 2.947229228

Sheet Scenarios
A1: Scenarios
B3: Selected scenario: | D3: 1
F5: 1 | G5: =F5+1 -> 2 | H5: =G5+1 -> 3 | I5: 4 | J5: 5 | K5: 6 | L5: =K5+1 -> 7 | M5: 8 | N5: 9 | O5: 10 | P5: 11 | Q5: 12 | R5: 13 | S5: 14 | T5: 15 | U5: 16 | V5: 17 | W5: 18 | X5: 19 | Y5: 20 | Z5: 21 | AA5: 22 | AB5: 23 | AC5: 24 | AD5: 25 | AE5: 26 | AF5: 27
E6: Selected scenario | F6: Base case | G6: Low | H6: High | J6: LR-VDSL ON | K6: FWA OFF | L6: 5y rollout | M6: 3y rollout | N6: Low take-up | O6: High take-up | P6: Low WACC | Q6: Fibre WACC | R6: Low unit capex | S6: High unit capex | T6: Low unit opex | U6: High unit opex | V6: Low BB lines | W6: High BB lines | X6: Low revenue | Y6: High revenue | Z6: Low BDUK target | AA6: High BDUK target
B8: Geospatial Analysis
C9: UBC Scenario | E9: =INDEX($F9:$AF9,MATCH($D$3,$F$5:$AF$5,0)) -> B1 | F9: B1 | G9: B1 | H9: B1 | J9: B1 | K9: =INDEX($F9:$AF9,MATCH($D$3,$F$5:$AF$5,0)) -> B1 | L9: B1 | M9: B1 | N9: B1 | O9: B1 | P9: B1 | Q9: B1 | R9: B1 | S9: B1 | T9: B1 | U9: B1 | V9: B1 | W9: B1 | X9: B1 | Y9: B1 | Z9: B1 | AA9: B1
C10: Techset | E10: LR-VDSL OFF | F10: LR-VDSL OFF | G10: LR-VDSL OFF | H10: LR-VDSL ON | J10: LR-VDSL ON | K10: FWA OFF | L10: LR-VDSL OFF | M10: LR-VDSL OFF | N10: LR-VDSL OFF | O10: LR-VDSL OFF | P10: LR-VDSL OFF | Q10: LR-VDSL OFF | R10: LR-VDSL OFF | S10: LR-VDSL OFF | T10: LR-VDSL OFF | U10: LR-VDSL OFF | V10: LR-VDSL OFF | W10: LR-VDSL OFF | X10: LR-VDSL OFF | Y10: LR-VDSL OFF | Z10: LR-VDSL OFF | AA10: LR-VDSL OFF
B12: Volumes
C13: Rollout period | E13: =INDEX($F13:$AF13,MATCH($D$3,$F$5:$AF$5,0)) -> 4-year rollout | F13: 4-year rollout | G13: 5-year rollout | H13: 3-year rollout | J13: 4-year rollout | K13: =INDEX($F13:$AF13,MATCH($D$3,$F$5:$AF$5,0)) -> 4-year rollout | L13: 5-year rollout | M13: 3-year rollout | N13: 4-year rollout | O13: 4-year rollout | P13: 4-year rollout | Q13: 4-year rollout | R13: 4-year rollout | S13: 4-year rollout | T13: 4-year rollout | U13: 4-year rollout | V13: 4-year rollout | W13: 4-year rollout | X13: 4-year rollout | Y13: 4-year rollout | Z13: 4-year rollout | AA13: 4-year rollout
C14: Take-up | E14: =INDEX($F14:$AF14,MATCH($D$3,$F$5:$AF$5,0)) -> 0 | F14: 0 | G14: 0 | H14: 0 | J14: 0 | K14: =INDEX($F14:$AF14,MATCH($D$3,$F$5:$AF$5,0)) -> 0 | L14: 0 | M14: 0 | N14: -0.2 | O14: 0.2 | P14: 0 | Q14: 0 | R14: 0 | S14: 0 | T14: 0 | U14: 0 | V14: 0 | W14: 0 | X14: 0 | Y14: 0 | Z14: 0 | AA14: 0
B16: Costs
C17: WACC | E17: =INDEX($F17:$AF17,MATCH($D$3,$F$5:$AF$5,0)) -> Medium | F17: Medium | G17: Low | H17: High | J17: Medium | K17: =INDEX($F17:$AF17,MATCH($D$3,$F$5:$AF$5,0)) -> Medium | L17: Medium | M17: Medium | N17: Medium | O17: Medium | P17: Low | Q17: High | R17: Medium | S17: Medium | T17: Medium | U17: Medium | V17: Medium | W17: Medium | X17: Medium | Y17: Medium | Z17: Medium | AA17: Medium
C18: Unit Capex | E18: =INDEX($F18:$AF18,MATCH($D$3,$F$5:$AF$5,0)) -> 0 | F18: 0 | G18: -0.2 | H18: 0.2 | J18: 0 | K18: =INDEX($F18:$AF18,MATCH($D$3,$F$5:$AF$5,0)) -> 0 | L18: 0 | M18: 0 | N18: 0 | O18: 0 | P18: 0 | Q18: 0 | R18: -0.2 | S18: 0.2 | T18: 0 | U18: 0 | V18: 0 | W18: 0 | X18: 0 | Y18: 0 | Z18: 0 | AA18: 0
C19: Unit Opex | E19: =INDEX($F19:$AF19,MATCH($D$3,$F$5:$AF$5,0)) -> 0 | F19: 0 | G19: -0.2 | H19: 0.2 | J19: 0 | K19: =INDEX($F19:$AF19,MATCH($D$3,$F$5:$AF$5,0)) -> 0 | L19: 0 | M19: 0 | N19: 0 | O19: 0 | P19: 0 | Q19: 0 | R19: 0 | S19: 0 | T19: -0.2 | U19: 0.2 | V19: 0 | W19: 0 | X19: 0 | Y19: 0 | Z19: 0 | AA19: 0
B21: Cost recovery
C22: BB lines | E22: =INDEX($F22:$AF22,MATCH($D$3,$F$5:$AF$5,0)) -> Medium | F22: Medium | G22: High | H22: Low | J22: Medium | K22: =INDEX($F22:$AF22,MATCH($D$3,$F$5:$AF$5,0)) -> Medium | L22: Medium | M22: Medium | N22: Medium | O22: Medium | P22: Medium | Q22: Medium | R22: Medium | S22: Medium | T22: Medium | U22: Medium | V22: Low | W22: High | X22: Medium | Y22: Medium | Z22: Medium | AA22: Medium
C23: BDUK target | E23: =INDEX($F23:$AF23,MATCH($D$3,$F$5:$AF$5,0)) -> 0.97 | F23: 0.97 | G23: 0.97 | H23: 0.95 | J23: 0.97 | K23: 0.97 | L23: 0.97 | M23: 0.97 | N23: 0.97 | O23: 0.97 | P23: 0.97 | Q23: 0.97 | R23: 0.97 | S23: 0.97 | T23: 0.97 | U23: 0.97 | V23: 0.97 | W23: 0.97 | X23: 0.97 | Y23: 0.97 | Z23: 0.95 | AA23: 0.99
C25: Incremental revenue | E25: =INDEX($F25:$AF25,MATCH($D$3,$F$5:$AF$5,0)) -> 0 | F25: 0 | G25: 0 | H25: 0 | J25: 0 | K25: =INDEX($F25:$AF25,MATCH($D$3,$F$5:$AF$5,0)) -> 0 | L25: 0 | M25: 0 | N25: 0 | O25: 0 | P25: 0 | Q25: 0 | R25: 0 | S25: 0 | T25: 0 | U25: 0 | V25: 0 | W25: 0 | X25: -0.2 | Y25: 0.2 | Z25: 0 | AA25: 0
B28: UBC Mark-up
C29: 2018/19 | E29: =INDEX($F29:$AF29,MATCH($D$3,$F$5:$AF$5,0)) -> 0.3537391299 | F29: 0.3537391299 | G29: 0.2122247494 | H29: 1.112249846 | J29: 0.598648136 | K29: 0.79250797 | L29: 0.2829921463 | M29: 0.471498279 | N29: 0.3567908806 | O29: 0.3506919526 | P29: 0.3537391299 | Q29: 0.3537391299 | R29: 0.3327268808 | S29: 0.4411564875 | T29: 0.3568636524 | U29: 0.417019716 | V29: 0.3672447698 | W29: 0.3393791127 | X29: 0.3634112682 | Y29: 0.3440669915 | Z29: 0.656547096 | AA29: 0.07933496057
C30: 2019/20 | E30: 1.139240868 | F30: 1.139240868 | G30: 0.6801073903 | H30: 3.532928734 | J30: 1.462833085 | K30: 2.127379624 | L30: 0.9115547544 | M30: 1.518981416 | N30: 1.145243166 | O30: 1.133234094 | P30: 1.139240868 | Q30: 1.22373008 | R30: 0.9973201817 | S30: 1.380425109 | T30: 1.12656307 | U30: 1.251182221 | V30: 1.197529958 | W30: 1.080688558 | X30: 1.161372104 | Y30: 1.117109632 | Z30: 2.06912959 | AA30: 0.239120125
C31: 2020/21 | E31: 1.871781624 | F31: 1.871781624 | G31: 1.104730389 | H31: 5.837712183 | J31: 2.238469627 | K31: 3.351515255 | L31: 1.497899487 | M31: 2.495807865 | N31: 1.881473938 | O31: 1.862095378 | P31: 1.871781624 | Q31: 2.037049246 | R31: 1.613691066 | S31: 2.254589748 | T31: 1.838984289 | U31: 2.029296525 | V31: 1.992073393 | W31: 1.757815989 | X31: 1.909658027 | Y31: 1.833905222 | Z31: 3.3711219 | AA31: 0.3829673655
C33: 2018/19 | E33: =E29/12 -> 0.02947826082 | F33: =F29/12 -> 0.02947826082 | G33: =G29/12 -> 0.01768539578 | H33: =H29/12 -> 0.09268748717
C34: 2019/20 | E34: =E30/12 -> 0.09493673901 | F34: =F30/12 -> 0.09493673901 | G34: 0.05667561586 | H34: 0.2944107278
C35: 2020/21 | E35: =E31/12 -> 0.155981802 | F35: 0.155981802 | G35: 0.09206086573 | H35: 0.4864760152

Sheet Charts
C3: 2 | D3: 1 | E3: 3 | G3: 1 | H3: 1 | I3: 5
C4: =INDEX(Scenarios!$F$6:$AF$6,MATCH(Charts!C$3,Scenarios!$F$5:$AF$5,0)) -> Low | D4: =INDEX(Scenarios!$F$6:$AF$6,MATCH(Charts!D$3,Scenarios!$F$5:$AF$5,0)) -> Base case | E4: =INDEX(Scenarios!$F$6:$AF$6,MATCH(Charts!E$3,Scenarios!$F$5:$AF$5,0)) -> High | G4: =INDEX(Scenarios!$F$6:$AF$6,MATCH(Charts!G$3,Scenarios!$F$5:$AF$5,0)) -> Base case | H4: =INDEX(Scenarios!$F$6:$AF$6,MATCH(Charts!H$3,Scenarios!$F$5:$AF$5,0)) -> Base case | I4: =INDEX(Scenarios!$F$6:$AF$6,MATCH(Charts!I$3,Scenarios!$F$5:$AF$5,0)) -> LR-VDSL ON
B5: 2018/19 | C5: =INDEX(Scenarios!$F$29:$AF$31,MATCH(Charts!$B5,Scenarios!$C$29:$C$31,0),MATCH(Charts!C$3,Scenarios!$F$5:$AF$5,0)) -> 0.2122247494 | D5: =INDEX(Scenarios!$F$29:$AF$31,MATCH(Charts!$B5,Scenarios!$C$29:$C$31,0),MATCH(Charts!D$3,Scenarios!$F$5:$AF$5,0)) -> 0.3537391299 | E5: =INDEX(Scenarios!$F$29:$AF$31,MATCH(Charts!$B5,Scenarios!$C$29:$C$31,0),MATCH(Charts!E$3,Scenarios!$F$5:$AF$5,0)) -> 1.112249846 | G5: =INDEX(Scenarios!$F$29:$AF$31,MATCH(Charts!$B5,Scenarios!$C$29:$C$31,0),MATCH(Charts!G$3,Scenarios!$F$5:$AF$5,0)) -> 0.3537391299 | H5: =INDEX(Scenarios!$F$29:$AF$31,MATCH(Charts!$B5,Scenarios!$C$29:$C$31,0),MATCH(Charts!H$3,Scenarios!$F$5:$AF$5,0)) -> 0.3537391299 | I5: =INDEX(Scenarios!$F$29:$AF$31,MATCH(Charts!$B5,Scenarios!$C$29:$C$31,0),MATCH(Charts!I$3,Scenarios!$F$5:$AF$5,0)) -> 0.598648136
B6: 2019/20 | C6: =INDEX(Scenarios!$F$29:$AF$31,MATCH(Charts!$B6,Scenarios!$C$29:$C$31,0),MATCH(Charts!C$3,Scenarios!$F$5:$AF$5,0)) -> 0.6801073903 | D6: =INDEX(Scenarios!$F$29:$AF$31,MATCH(Charts!$B6,Scenarios!$C$29:$C$31,0),MATCH(Charts!D$3,Scenarios!$F$5:$AF$5,0)) -> 1.139240868 | E6: =INDEX(Scenarios!$F$29:$AF$31,MATCH(Charts!$B6,Scenarios!$C$29:$C$31,0),MATCH(Charts!E$3,Scenarios!$F$5:$AF$5,0)) -> 3.532928734 | G6: =INDEX(Scenarios!$F$29:$AF$31,MATCH(Charts!$B6,Scenarios!$C$29:$C$31,0),MATCH(Charts!G$3,Scenarios!$F$5:$AF$5,0)) -> 1.139240868 | H6: =INDEX(Scenarios!$F$29:$AF$31,MATCH(Charts!$B6,Scenarios!$C$29:$C$31,0),MATCH(Charts!H$3,Scenarios!$F$5:$AF$5,0)) -> 1.139240868 | I6: =INDEX(Scenarios!$F$29:$AF$31,MATCH(Charts!$B6,Scenarios!$C$29:$C$31,0),MATCH(Charts!I$3,Scenarios!$F$5:$AF$5,0)) -> 1.462833085
B7: 2020/21 | C7: =INDEX(Scenarios!$F$29:$AF$31,MATCH(Charts!$B7,Scenarios!$C$29:$C$31,0),MATCH(Charts!C$3,Scenarios!$F$5:$AF$5,0)) -> 1.104730389 | D7: =INDEX(Scenarios!$F$29:$AF$31,MATCH(Charts!$B7,Scenarios!$C$29:$C$31,0),MATCH(Charts!D$3,Scenarios!$F$5:$AF$5,0)) -> 1.871781624 | E7: =INDEX(Scenarios!$F$29:$AF$31,MATCH(Charts!$B7,Scenarios!$C$29:$C$31,0),MATCH(Charts!E$3,Scenarios!$F$5:$AF$5,0)) -> 5.837712183 | G7: =INDEX(Scenarios!$F$29:$AF$31,MATCH(Charts!$B7,Scenarios!$C$29:$C$31,0),MATCH(Charts!G$3,Scenarios!$F$5:$AF$5,0)) -> 1.871781624 | H7: =INDEX(Scenarios!$F$29:$AF$31,MATCH(Charts!$B7,Scenarios!$C$29:$C$31,0),MATCH(Charts!H$3,Scenarios!$F$5:$AF$5,0)) -> 1.871781624 | I7: =INDEX(Scenarios!$F$29:$AF$31,MATCH(Charts!$B7,Scenarios!$C$29:$C$31,0),MATCH(Charts!I$3,Scenarios!$F$5:$AF$5,0)) -> 2.238469627
C21: 7 | D21: 1 | E21: 8 | G21: 9 | H21: 1 | I21: 10 | K21: 11 | L21: 1 | M21: 12
C22: =INDEX(Scenarios!$F$6:$AF$6,MATCH(Charts!C$21,Scenarios!$F$5:$AF$5,0)) -> 5y rollout | D22: =INDEX(Scenarios!$F$6:$AF$6,MATCH(Charts!D$21,Scenarios!$F$5:$AF$5,0)) -> Base case | E22: =INDEX(Scenarios!$F$6:$AF$6,MATCH(Charts!E$21,Scenarios!$F$5:$AF$5,0)) -> 3y rollout | G22: =INDEX(Scenarios!$F$6:$AF$6,MATCH(Charts!G$21,Scenarios!$F$5:$AF$5,0)) -> Low take-up | H22: =INDEX(Scenarios!$F$6:$AF$6,MATCH(Charts!H$21,Scenarios!$F$5:$AF$5,0)) -> Base case | I22: =INDEX(Scenarios!$F$6:$AF$6,MATCH(Charts!I$21,Scenarios!$F$5:$AF$5,0)) -> High take-up | K22: =INDEX(Scenarios!$F$6:$AF$6,MATCH(Charts!K$21,Scenarios!$F$5:$AF$5,0)) -> Low WACC | L22: =INDEX(Scenarios!$F$6:$AF$6,MATCH(Charts!L$21,Scenarios!$F$5:$AF$5,0)) -> Base case | M22: =INDEX(Scenarios!$F$6:$AF$6,MATCH(Charts!M$21,Scenarios!$F$5:$AF$5,0)) -> Fibre WACC
B23: 2018/19 | C23: =INDEX(Scenarios!$F$29:$AF$31,MATCH(Charts!$B5,Scenarios!$C$29:$C$31,0),MATCH(Charts!C$21,Scenarios!$F$5:$AF$5,0)) -> 0.2829921463 | D23: =INDEX(Scenarios!$F$29:$AF$31,MATCH(Charts!$B5,Scenarios!$C$29:$C$31,0),MATCH(Charts!D$21,Scenarios!$F$5:$AF$5,0)) -> 0.3537391299 | E23: =INDEX(Scenarios!$F$29:$AF$31,MATCH(Charts!$B5,Scenarios!$C$29:$C$31,0),MATCH(Charts!E$21,Scenarios!$F$5:$AF$5,0)) -> 0.471498279 | G23: =INDEX(Scenarios!$F$29:$AF$31,MATCH(Charts!$B5,Scenarios!$C$29:$C$31,0),MATCH(Charts!G$21,Scenarios!$F$5:$AF$5,0)) -> 0.3567908806 | H23: =INDEX(Scenarios!$F$29:$AF$31,MATCH(Charts!$B5,Scenarios!$C$29:$C$31,0),MATCH(Charts!H$21,Scenarios!$F$5:$AF$5,0)) -> 0.3537391299 | I23: =INDEX(Scenarios!$F$29:$AF$31,MATCH(Charts!$B5,Scenarios!$C$29:$C$31,0),MATCH(Charts!I$21,Scenarios!$F$5:$AF$5,0)) -> 0.3506919526 | K23: =INDEX(Scenarios!$F$29:$AF$31,MATCH(Charts!$B5,Scenarios!$C$29:$C$31,0),MATCH(Charts!K$21,Scenarios!$F$5:$AF$5,0)) -> 0.3537391299 | L23: =INDEX(Scenarios!$F$29:$AF$31,MATCH(Charts!$B5,Scenarios!$C$29:$C$31,0),MATCH(Charts!L$21,Scenarios!$F$5:$AF$5,0)) -> 0.3537391299 | M23: =INDEX(Scenarios!$F$29:$AF$31,MATCH(Charts!$B5,Scenarios!$C$29:$C$31,0),MATCH(Charts!M$21,Scenarios!$F$5:$AF$5,0)) -> 0.3537391299
B24: 2019/20 | C24: =INDEX(Scenarios!$F$29:$AF$31,MATCH(Charts!$B6,Scenarios!$C$29:$C$31,0),MATCH(Charts!C$21,Scenarios!$F$5:$AF$5,0)) -> 0.9115547544 | D24: =INDEX(Scenarios!$F$29:$AF$31,MATCH(Charts!$B6,Scenarios!$C$29:$C$31,0),MATCH(Charts!D$21,Scenarios!$F$5:$AF$5,0)) -> 1.139240868 | E24: =INDEX(Scenarios!$F$29:$AF$31,MATCH(Charts!$B6,Scenarios!$C$29:$C$31,0),MATCH(Charts!E$21,Scenarios!$F$5:$AF$5,0)) -> 1.518981416 | G24: =INDEX(Scenarios!$F$29:$AF$31,MATCH(Charts!$B6,Scenarios!$C$29:$C$31,0),MATCH(Charts!G$21,Scenarios!$F$5:$AF$5,0)) -> 1.145243166 | H24: =INDEX(Scenarios!$F$29:$AF$31,MATCH(Charts!$B6,Scenarios!$C$29:$C$31,0),MATCH(Charts!H$21,Scenarios!$F$5:$AF$5,0)) -> 1.139240868 | I24: =INDEX(Scenarios!$F$29:$AF$31,MATCH(Charts!$B6,Scenarios!$C$29:$C$31,0),MATCH(Charts!I$21,Scenarios!$F$5:$AF$5,0)) -> 1.133234094 | K24: =INDEX(Scenarios!$F$29:$AF$31,MATCH(Charts!$B6,Scenarios!$C$29:$C$31,0),MATCH(Charts!K$21,Scenarios!$F$5:$AF$5,0)) -> 1.139240868 | L24: =INDEX(Scenarios!$F$29:$AF$31,MATCH(Charts!$B6,Scenarios!$C$29:$C$31,0),MATCH(Charts!L$21,Scenarios!$F$5:$AF$5,0)) -> 1.139240868 | M24: =INDEX(Scenarios!$F$29:$AF$31,MATCH(Charts!$B6,Scenarios!$C$29:$C$31,0),MATCH(Charts!M$21,Scenarios!$F$5:$AF$5,0)) -> 1.22373008
B25: 2020/21 | C25: =INDEX(Scenarios!$F$29:$AF$31,MATCH(Charts!$B7,Scenarios!$C$29:$C$31,0),MATCH(Charts!C$21,Scenarios!$F$5:$AF$5,0)) -> 1.497899487 | D25: =INDEX(Scenarios!$F$29:$AF$31,MATCH(Charts!$B7,Scenarios!$C$29:$C$31,0),MATCH(Charts!D$21,Scenarios!$F$5:$AF$5,0)) -> 1.871781624 | E25: =INDEX(Scenarios!$F$29:$AF$31,MATCH(Charts!$B7,Scenarios!$C$29:$C$31,0),MATCH(Charts!E$21,Scenarios!$F$5:$AF$5,0)) -> 2.495807865 | G25: =INDEX(Scenarios!$F$29:$AF$31,MATCH(Charts!$B7,Scenarios!$C$29:$C$31,0),MATCH(Charts!G$21,Scenarios!$F$5:$AF$5,0)) -> 1.881473938 | H25: =INDEX(Scenarios!$F$29:$AF$31,MATCH(Charts!$B7,Scenarios!$C$29:$C$31,0),MATCH(Charts!H$21,Scenarios!$F$5:$AF$5,0)) -> 1.871781624 | I25: =INDEX(Scenarios!$F$29:$AF$31,MATCH(Charts!$B7,Scenarios!$C$29:$C$31,0),MATCH(Charts!I$21,Scenarios!$F$5:$AF$5,0)) -> 1.862095378 | K25: =INDEX(Scenarios!$F$29:$AF$31,MATCH(Charts!$B7,Scenarios!$C$29:$C$31,0),MATCH(Charts!K$21,Scenarios!$F$5:$AF$5,0)) -> 1.871781624 | L25: =INDEX(Scenarios!$F$29:$AF$31,MATCH(Charts!$B7,Scenarios!$C$29:$C$31,0),MATCH(Charts!L$21,Scenarios!$F$5:$AF$5,0)) -> 1.871781624 | M25: =INDEX(Scenarios!$F$29:$AF$31,MATCH(Charts!$B7,Scenarios!$C$29:$C$31,0),MATCH(Charts!M$21,Scenarios!$F$5:$AF$5,0)) -> 2.037049246
C38: 13 | D38: 1 | E38: 14 | G38: 15 | H38: 1 | I38: 16 | K38: 17 | L38: 1 | M38: 18
C39: =INDEX(Scenarios!$F$6:$AF$6,MATCH(Charts!C$38,Scenarios!$F$5:$AF$5,0)) -> Low unit capex | D39: =INDEX(Scenarios!$F$6:$AF$6,MATCH(Charts!D$38,Scenarios!$F$5:$AF$5,0)) -> Base case | E39: =INDEX(Scenarios!$F$6:$AF$6,MATCH(Charts!E$38,Scenarios!$F$5:$AF$5,0)) -> High unit capex | G39: =INDEX(Scenarios!$F$6:$AF$6,MATCH(Charts!G$38,Scenarios!$F$5:$AF$5,0)) -> Low unit opex | H39: =INDEX(Scenarios!$F$6:$AF$6,MATCH(Charts!H$38,Scenarios!$F$5:$AF$5,0)) -> Base case | I39: =INDEX(Scenarios!$F$6:$AF$6,MATCH(Charts!I$38,Scenarios!$F$5:$AF$5,0)) -> High unit opex | K39: =INDEX(Scenarios!$F$6:$AF$6,MATCH(Charts!K$38,Scenarios!$F$5:$AF$5,0)) -> Low BB lines | L39: =INDEX(Scenarios!$F$6:$AF$6,MATCH(Charts!L$38,Scenarios!$F$5:$AF$5,0)) -> Base case | M39: =INDEX(Scenarios!$F$6:$AF$6,MATCH(Charts!M$38,Scenarios!$F$5:$AF$5,0)) -> High BB lines
B40: 2018/19 | C40: =INDEX(Scenarios!$F$29:$AF$31,MATCH(Charts!$B40,Scenarios!$C$29:$C$31,0),MATCH(Charts!C$38,Scenarios!$F$5:$AF$5,0)) -> 0.3327268808 | D40: =INDEX(Scenarios!$F$29:$AF$31,MATCH(Charts!$B40,Scenarios!$C$29:$C$31,0),MATCH(Charts!D$38,Scenarios!$F$5:$AF$5,0)) -> 0.3537391299 | E40: =INDEX(Scenarios!$F$29:$AF$31,MATCH(Charts!$B40,Scenarios!$C$29:$C$31,0),MATCH(Charts!E$38,Scenarios!$F$5:$AF$5,0)) -> 0.4411564875 | G40: =INDEX(Scenarios!$F$29:$AF$31,MATCH(Charts!$B40,Scenarios!$C$29:$C$31,0),MATCH(Charts!G$38,Scenarios!$F$5:$AF$5,0)) -> 0.3568636524 | H40: =INDEX(Scenarios!$F$29:$AF$31,MATCH(Charts!$B40,Scenarios!$C$29:$C$31,0),MATCH(Charts!H$38,Scenarios!$F$5:$AF$5,0)) -> 0.3537391299 | I40: =INDEX(Scenarios!$F$29:$AF$31,MATCH(Charts!$B40,Scenarios!$C$29:$C$31,0),MATCH(Charts!I$38,Scenarios!$F$5:$AF$5,0)) -> 0.417019716 | K40: =INDEX(Scenarios!$F$29:$AF$31,MATCH(Charts!$B40,Scenarios!$C$29:$C$31,0),MATCH(Charts!K$38,Scenarios!$F$5:$AF$5,0)) -> 0.3672447698 | L40: =INDEX(Scenarios!$F$29:$AF$31,MATCH(Charts!$B40,Scenarios!$C$29:$C$31,0),MATCH(Charts!L$38,Scenarios!$F$5:$AF$5,0)) -> 0.3537391299 | M40: =INDEX(Scenarios!$F$29:$AF$31,MATCH(Charts!$B40,Scenarios!$C$29:$C$31,0),MATCH(Charts!M$38,Scenarios!$F$5:$AF$5,0)) -> 0.3393791127
B41: 2019/20 | C41: =INDEX(Scenarios!$F$29:$AF$31,MATCH(Charts!$B41,Scenarios!$C$29:$C$31,0),MATCH(Charts!C$38,Scenarios!$F$5:$AF$5,0)) -> 0.9973201817 | D41: =INDEX(Scenarios!$F$29:$AF$31,MATCH(Charts!$B41,Scenarios!$C$29:$C$31,0),MATCH(Charts!D$38,Scenarios!$F$5:$AF$5,0)) -> 1.139240868 | E41: =INDEX(Scenarios!$F$29:$AF$31,MATCH(Charts!$B41,Scenarios!$C$29:$C$31,0),MATCH(Charts!E$38,Scenarios!$F$5:$AF$5,0)) -> 1.380425109 | G41: =INDEX(Scenarios!$F$29:$AF$31,MATCH(Charts!$B41,Scenarios!$C$29:$C$31,0),MATCH(Charts!G$38,Scenarios!$F$5:$AF$5,0)) -> 1.12656307 | H41: =INDEX(Scenarios!$F$29:$AF$31,MATCH(Charts!$B41,Scenarios!$C$29:$C$31,0),MATCH(Charts!H$38,Scenarios!$F$5:$AF$5,0)) -> 1.139240868 | I41: =INDEX(Scenarios!$F$29:$AF$31,MATCH(Charts!$B41,Scenarios!$C$29:$C$31,0),MATCH(Charts!I$38,Scenarios!$F$5:$AF$5,0)) -> 1.251182221 | K41: =INDEX(Scenarios!$F$29:$AF$31,MATCH(Charts!$B41,Scenarios!$C$29:$C$31,0),MATCH(Charts!K$38,Scenarios!$F$5:$AF$5,0)) -> 1.197529958 | L41: =INDEX(Scenarios!$F$29:$AF$31,MATCH(Charts!$B41,Scenarios!$C$29:$C$31,0),MATCH(Charts!L$38,Scenarios!$F$5:$AF$5,0)) -> 1.139240868 | M41: =INDEX(Scenarios!$F$29:$AF$31,MATCH(Charts!$B41,Scenarios!$C$29:$C$31,0),MATCH(Charts!M$38,Scenarios!$F$5:$AF$5,0)) -> 1.080688558
B42: 2020/21 | C42: =INDEX(Scenarios!$F$29:$AF$31,MATCH(Charts!$B42,Scenarios!$C$29:$C$31,0),MATCH(Charts!C$38,Scenarios!$F$5:$AF$5,0)) -> 1.613691066 | D42: =INDEX(Scenarios!$F$29:$AF$31,MATCH(Charts!$B42,Scenarios!$C$29:$C$31,0),MATCH(Charts!D$38,Scenarios!$F$5:$AF$5,0)) -> 1.871781624 | E42: =INDEX(Scenarios!$F$29:$AF$31,MATCH(Charts!$B42,Scenarios!$C$29:$C$31,0),MATCH(Charts!E$38,Scenarios!$F$5:$AF$5,0)) -> 2.254589748 | G42: =INDEX(Scenarios!$F$29:$AF$31,MATCH(Charts!$B42,Scenarios!$C$29:$C$31,0),MATCH(Charts!G$38,Scenarios!$F$5:$AF$5,0)) -> 1.838984289 | H42: =INDEX(Scenarios!$F$29:$AF$31,MATCH(Charts!$B42,Scenarios!$C$29:$C$31,0),MATCH(Charts!H$38,Scenarios!$F$5:$AF$5,0)) -> 1.871781624 | I42: =INDEX(Scenarios!$F$29:$AF$31,MATCH(Charts!$B42,Scenarios!$C$29:$C$31,0),MATCH(Charts!I$38,Scenarios!$F$5:$AF$5,0)) -> 2.029296525 | K42: =INDEX(Scenarios!$F$29:$AF$31,MATCH(Charts!$B42,Scenarios!$C$29:$C$31,0),MATCH(Charts!K$38,Scenarios!$F$5:$AF$5,0)) -> 1.992073393 | L42: =INDEX(Scenarios!$F$29:$AF$31,MATCH(Charts!$B42,Scenarios!$C$29:$C$31,0),MATCH(Charts!L$38,Scenarios!$F$5:$AF$5,0)) -> 1.871781624 | M42: =INDEX(Scenarios!$F$29:$AF$31,MATCH(Charts!$B42,Scenarios!$C$29:$C$31,0),MATCH(Charts!M$38,Scenarios!$F$5:$AF$5,0)) -> 1.757815989
C56: 19 | D56: 1 | E56: 20 | G56: 21 | H56: 1 | I56: 22
C57: =INDEX(Scenarios!$F$6:$AF$6,MATCH(Charts!C$56,Scenarios!$F$5:$AF$5,0)) -> Low revenue | D57: =INDEX(Scenarios!$F$6:$AF$6,MATCH(Charts!D$56,Scenarios!$F$5:$AF$5,0)) -> Base case | E57: =INDEX(Scenarios!$F$6:$AF$6,MATCH(Charts!E$56,Scenarios!$F$5:$AF$5,0)) -> High revenue | G57: =INDEX(Scenarios!$F$6:$AF$6,MATCH(Charts!G$56,Scenarios!$F$5:$AF$5,0)) -> Low BDUK target | H57: =INDEX(Scenarios!$F$6:$AF$6,MATCH(Charts!H$56,Scenarios!$F$5:$AF$5,0)) -> Base case | I57: =INDEX(Scenarios!$F$6:$AF$6,MATCH(Charts!I$56,Scenarios!$F$5:$AF$5,0)) -> High BDUK target
B58: 2018/19 | C58: =INDEX(Scenarios!$F$29:$AF$31,MATCH(Charts!$B58,Scenarios!$C$29:$C$31,0),MATCH(Charts!C$56,Scenarios!$F$5:$AF$5,0)) -> 0.3634112682 | D58: =INDEX(Scenarios!$F$29:$AF$31,MATCH(Charts!$B58,Scenarios!$C$29:$C$31,0),MATCH(Charts!D$56,Scenarios!$F$5:$AF$5,0)) -> 0.3537391299 | E58: =INDEX(Scenarios!$F$29:$AF$31,MATCH(Charts!$B58,Scenarios!$C$29:$C$31,0),MATCH(Charts!E$56,Scenarios!$F$5:$AF$5,0)) -> 0.3440669915 | G58: =INDEX(Scenarios!$F$29:$AF$31,MATCH(Charts!$B58,Scenarios!$C$29:$C$31,0),MATCH(Charts!G$56,Scenarios!$F$5:$AF$5,0)) -> 0.656547096 | H58: =INDEX(Scenarios!$F$29:$AF$31,MATCH(Charts!$B58,Scenarios!$C$29:$C$31,0),MATCH(Charts!H$56,Scenarios!$F$5:$AF$5,0)) -> 0.3537391299 | I58: =INDEX(Scenarios!$F$29:$AF$31,MATCH(Charts!$B58,Scenarios!$C$29:$C$31,0),MATCH(Charts!I$56,Scenarios!$F$5:$AF$5,0)) -> 0.07933496057
B59: 2019/20 | C59: =INDEX(Scenarios!$F$29:$AF$31,MATCH(Charts!$B59,Scenarios!$C$29:$C$31,0),MATCH(Charts!C$56,Scenarios!$F$5:$AF$5,0)) -> 1.161372104 | D59: =INDEX(Scenarios!$F$29:$AF$31,MATCH(Charts!$B59,Scenarios!$C$29:$C$31,0),MATCH(Charts!D$56,Scenarios!$F$5:$AF$5,0)) -> 1.139240868 | E59: =INDEX(Scenarios!$F$29:$AF$31,MATCH(Charts!$B59,Scenarios!$C$29:$C$31,0),MATCH(Charts!E$56,Scenarios!$F$5:$AF$5,0)) -> 1.117109632 | G59: =INDEX(Scenarios!$F$29:$AF$31,MATCH(Charts!$B59,Scenarios!$C$29:$C$31,0),MATCH(Charts!G$56,Scenarios!$F$5:$AF$5,0)) -> 2.06912959 | H59: =INDEX(Scenarios!$F$29:$AF$31,MATCH(Charts!$B59,Scenarios!$C$29:$C$31,0),MATCH(Charts!H$56,Scenarios!$F$5:$AF$5,0)) -> 1.139240868 | I59: =INDEX(Scenarios!$F$29:$AF$31,MATCH(Charts!$B59,Scenarios!$C$29:$C$31,0),MATCH(Charts!I$56,Scenarios!$F$5:$AF$5,0)) -> 0.239120125
B60: 2020/21 | C60: =INDEX(Scenarios!$F$29:$AF$31,MATCH(Charts!$B60,Scenarios!$C$29:$C$31,0),MATCH(Charts!C$56,Scenarios!$F$5:$AF$5,0)) -> 1.909658027 | D60: =INDEX(Scenarios!$F$29:$AF$31,MATCH(Charts!$B60,Scenarios!$C$29:$C$31,0),MATCH(Charts!D$56,Scenarios!$F$5:$AF$5,0)) -> 1.871781624 | E60: =INDEX(Scenarios!$F$29:$AF$31,MATCH(Charts!$B60,Scenarios!$C$29:$C$31,0),MATCH(Charts!E$56,Scenarios!$F$5:$AF$5,0)) -> 1.833905222 | G60: =INDEX(Scenarios!$F$29:$AF$31,MATCH(Charts!$B60,Scenarios!$C$29:$C$31,0),MATCH(Charts!G$56,Scenarios!$F$5:$AF$5,0)) -> 3.3711219 | H60: =INDEX(Scenarios!$F$29:$AF$31,MATCH(Charts!$B60,Scenarios!$C$29:$C$31,0),MATCH(Charts!H$56,Scenarios!$F$5:$AF$5,0)) -> 1.871781624 | I60: =INDEX(Scenarios!$F$29:$AF$31,MATCH(Charts!$B60,Scenarios!$C$29:$C$31,0),MATCH(Charts!I$56,Scenarios!$F$5:$AF$5,0)) -> 0.3829673655
